Workbook

Sheet Отчет
A1: Кумулятивный рейтинг студентов
A2: Дата выгрузки: 26.10.2015
A3: Период: с начала обучения по 2014/2015 учебный год II семестр
A4: Факультет/отделение: Факультет коммуникаций, медиа и дизайна
A5: Направление подготовки: Направление "Журналистика"
A6: Уровень образования, номер курса: Бакалавриат 2 курс
G7: * | H7: - изучение по ИУП
A8: Место | B8: Студент | C8: ID | D8: Группа | E8: Образовательная программа студента | F8: 2013/2014 учебный год 1 модуль | J8: 2013/2014 учебный год 2 модуль | AH8: 2013/2014 учебный год 3 модуль | AL8: 2013/2014 учебный год 4 модуль | BS8: 2014/2015 учебный год 1 модуль | BV8: 2014/2015 учебный год 2 модуль | CP8: 2014/2015 учебный год 3 модуль | CW8: 2014/2015 учебный год 4 модуль | EC8: 2014/2015 учебный год II семестр | ED8: Кумулятивный рейтинг | EE8: Сумма оценок | EF8: Количество оценок | EG8: Средняя оценка | EH8: Минимальный балл | EI8: Номер места
F9: Экзамен | H9: Зачет | J9: Экзамен | Q9: Зачет | AH9: Экзамен | AJ9: Зачет | AL9: Экзамен | BB9: Зачет | BS9: Экзамен | BU9: Зачет | BV9: Экзамен | CI9: Зачет | CP9: Экзамен | CW9: Экзамен | DW9: Зачет | EC9: Экзамен
F10: Информационные технологии подготовки печатных и электронных СМИ | G10: Информационные технологии подготовки печатных и электронных СМИ | H10: Безопасность жизнедеятельности | I10: Безопасность жизнедеятельности | J10: Иностранный язык (английский) | K10: История | L10: Философия | M10: Философия | N10: Философия | O10: Философия | P10: Философия | Q10: Иностранный язык (английский) | R10: Иностранный язык (английский) | S10: Иностранный язык (английский) | T10: Иностранный язык (английский) | U10: Иностранный язык (английский) | V10: Иностранный язык (английский) | W10: Иностранный язык (английский) | X10: Иностранный язык (английский) | Y10: История | Z10: История | AA10: История | AB10: История | AC10: История и теория литературы | AD10: Технология работы журналиста (платформы) | AE10: Физическая культура | AF10: Физическая культура | AG10: Физическая культура | AH10: История и теория литературы | AI10: История и теория литературы | AJ10: Информационно-библиотечная культура | AK10: Предпринимательство: создание успешного нового бизнеса | AL10: Иностранный язык (английский) | AM10: Иностранный язык (английский) | AN10: Иностранный язык (английский) | AO10: Иностранный язык (английский) | AP10: Иностранный язык (английский) | AQ10: Иностранный язык (английский) | AR10: История | AS10: История | AT10: История | AU10: Социология | AV10: Теория и практика русского литературного языка | AW10: Теория и практика русского литературного языка | AX10: Теория и практика русского литературного языка | AY10: Учебно-ознакомительная практика | AZ10: Экономика | BA10: Экономика | BB10: Жанры и форматы современного радиовещания | BC10: Иностранный язык (английский) | BD10: Исследование медиа-процессов | BE10: История | BF10: История | BG10: Математическое введение в экономику | BH10: Практикум по эффективной письменной коммуникации | BI10: Практикум по эффективной письменной коммуникации | BJ10: Практикум по эффективной письменной коммуникации | BK10: Рассказывание историй в журналистике | BL10: Режиссура презентаций и публичных выступлений | BM10: Социология | BN10: Теория и практика русского литературного языка | BO10: Технология работы журналиста (платформы) | BP10: Физическая культура | BQ10: Физическая культура | BR10: Физическая культура | BS10: Безопасность жизнедеятельности | BT10: Учебно-ознакомительная практика | BU10: Учебно-ознакомительная практика | BV10: Иностранный язык (английский) | BW10: Иностранный язык (английский) | BX10: Исследование медиа-процессов | BY10: История | BZ10: История и теория литературы | CA10: История и теория литературы | CB10: История и теория массовых коммуникаций | CC10: История и теория массовых коммуникаций | CD10: Основы Web-дизайна. Язык HTML | CE10: Технология работы журналиста (платформы) | CF10: Философия | CG10: Экономика | CH10: Экономика | CI10: Иностранный язык (английский) | CJ10: Исследование медиа-процессов | CK10: История и теория литературы | CL10: История и теория литературы | CM10: Физическая культура | CN10: Физическая культура | CO10: Физическая культура | CP10: Иностранный язык (английский) | CQ10: Иностранный язык (английский) | CR10: Иностранный язык (английский) | CS10: Мегаполисы мира | CT10: Психология (включая основы социальной психологии) | CU10: Создание Интернет-проектов. Уровень 2. Язык CSS | CV10: Создание Интернет-проектов. Уровень 3. Основы языка программирования JavaScript | CW10: «Мягкая сила» и «управляемый хаос» - инструменты современной мировой политики | CX10: Визуальная информация и визуализация данных | CY10: Европейская музыка от античности до XXI века: исторические этюды | CZ10: Земное и внеземное: космос в науке, мифологии, искусстве и политике | DA10: Иностранный язык (немецкий) | DB10: Иностранный язык (французский) | DC10: Иностранный язык (французский) | DD10: Исследование медиа-процессов | DE10: Исследование медиа-процессов | DF10: История | DG10: История | DH10: История и теория литературы | DI10: История и теория литературы | DJ10: Курсовая работа | DK10: Основы операторской и режиссерской культуры для тележурналистов | DL10: Первая производственная практика | DM10: Психология (включая основы социальной психологии) | DN10: Психология (включая основы социальной психологии) | DO10: Современные телевизионные форматы | DP10: Создание Интернет-проектов. Уровень 4. Основы языка программирования PHP | DQ10: Теория и практика русского литературного языка | DR10: Теория и практика русского литературного языка | DS10: Техника речи | DT10: Технологии манипулирования в СМИ: выявление, анализ, противодействие | DU10: Технология работы журналиста (платформы) | DV10: Язык и политика | DW10: История и теория литературы | DX10: Теория и практика русского литературного языка | DY10: Физическая культура | DZ10: Физическая культура | EA10: Физическая культура | EB10: Язык и политика | EC10: Итальянский язык. Начальный уровень
A11: Число кумулятивных кредитов: | F11: 3 | G11: 4.5 | H11: 0 | I11: 0.5 | J11: 2 | K11: 2.83 | L11: 3.5 | M11: 5 | N11: 6 | O11: 5 | P11: 6 | Q11: 3.33 | R11: 1.78 | S11: 2.21 | T11: 2.22 | V11: 2.22 | W11: 2.38 | X11: 8.89 | Y11: 1.96 | AA11: 1.96 | AB11: 3.5 | AC11: 4.72 | AD11: 4.75 | AE11: 0 | AF11: 0.22 | AG11: 0.25 | AH11: 1.28 | AI11: 2.28 | AJ11: 1.5 | AK11: 0 | AL11: 2.78 | AN11: 2.78 | AO11: 2.79 | AP11: 8.62 | AQ11: 9.55 | AR11: 4.04 | AT11: 4.04 | AU11: 4.5 | AV11: 3 | AW11: 3.5 | AX11: 4 | AY11: 4.5 | AZ11: 6 | BA11: 6.5 | BB11: 3 | BC11: 4.17 | BD11: 3 | BE11: 2 | BF11: 3.17 | BG11: 2.5 | BH11: 1.5 | BI11: 2 | BJ11: 3 | BK11: 3 | BL11: 1.5 | BM11: 3 | BN11: 3 | BO11: 4.75 | BP11: 0 | BQ11: 0.25 | BR11: 0.28 | BS11: 1 | BT11: 0 | BU11: 3 | BV11: 1.08 | BW11: 3.08 | BX11: 1.33 | BY11: 2.4 | BZ11: 2.28 | CA11: 5 | CB11: 4 | CC11: 4.5 | CD11: 2 | CE11: 3.22 | CF11: 4 | CG11: 4.5 | CH11: 6.5 | CI11: 11.45 | CJ11: 1.04 | CK11: 2.69 | CL11: 2.97 | CM11: 0 | CN11: 0.22 | CO11: 0.25 | CP11: 1.92 | CQ11: 3 | CR11: 5 | CS11: 2 | CT11: 3 | CU11: 2 | CV11: 2 | CW11: 6 | CX11: 4.5 | CY11: 4 | CZ11: 2 | DA11: 5 | DB11: 5 | DC11: 6 | DD11: 1.67 | DE11: 1.96 | DF11: 3.6 | DG11: 7 | DH11: 3.72 | DI11: 4.03 | DJ11: 5 | DK11: 3 | DL11: 6 | DM11: 3 | DN11: 6 | DO11: 3 | DP11: 2 | DQ11: 3 | DR11: 4 | DS11: 5 | DT11: 3 | DU11: 4.78 | DV11: 3 | DW11: 3.31 | DX11: 3 | DY11: 0 | DZ11: 0.25 | EA11: 0.28 | EB11: 1.5 | EC11: 6
A12: 1 | B12: Королева Ольга Викторовна | C12: 481504458 | D12: БЖУР134 | E12: Журналистика | F12: 9 | I12: 8 | N12: 9 | T12: 8 | AA12: 9 | AC12: 9 | AD12: 10 | AE12: 10 | AH12: 10 | AN12: 7 | AR12: 9 | AU12: 9 | AZ12: 8 | BD12: 10 | BK12: 10 | BN12: 10 | BO12: 10 | BP12: 10 | BT12: 10 | BW12: 9 | BX12: 10 | BY12: 8 | BZ12: 6 | CC12: 9 | CD12: 9 | CE12: 9 | CG12: 9 | CM12: 10 | CP12: 9 | CT12: 9 | CU12: 8 | CV12: 9 | DA12: 10 | DD12: 9 | DF12: 9 | DH12: 10 | DJ12: 10 | DM12: 10 | DO12: 9 | DP12: 9 | DQ12: 10 | DS12: 8 | DU12: 10 | DY12: 10 | ED12: 1162.59 | EE12: 403 | EF12: 44 | EG12: =IF(EF12 > 0,EE12/EF12,0) -> 9.159090909 | EH12: =MIN($F12:EC12) -> 6 | EI12: 1
A13: 2 | B13: Правдюк Анна Сергеевна | C13: 481500535 | D13: БЖУР132 | E13: Журналистика | F13: 9 | I13: 9 | N13: 10 | T13: 9 | AA13: 9 | AC13: 9 | AD13: 9 | AE13: 10 | AH13: 10 | AN13: 9 | AR13: 9 | AU13: 10 | AZ13: 9 | BD13: 9 | BJ13: 9 | BK13: 10 | BN13: 10 | BO13: 9 | BP13: 10 | BT13: 10 | BW13: 10 | BX13: 10 | BY13: 9 | BZ13: 9 | CC13: 10 | CE13: 10 | CG13: 9 | CM13: 10 | CP13: 10 | CS13: 10 | CT13: 10 | DA13: 10 | DD13: 10 | DF13: 10 | DH13: 10 | DJ13: 10 | DM13: 10 | DO13: 10 | DQ13: 10 | DU13: 9 | DY13: 10 | ED13: 1140.32 | EE13: 394 | EF13: 41 | EG13: =IF(EF13 > 0,EE13/EF13,0) -> 9.609756098 | EH13: =MIN($F13:EC13) -> 9 | EI13: 2
A14: 3 | B14: Савина София Леонидовна | C14: 481505031 | D14: БЖУР134 | E14: Журналистика | F14: 9 | I14: 9 | N14: 8 | Q14: 7 | Y14: 9 | AC14: 9 | AD14: 10 | AE14: 10 | AH14: 10 | AT14: 6 | AU14: 8 | AZ14: 8 | BC14: 8 | BD14: 8 | BJ14: 7 | BN14: 10 | BO14: 10 | BP14: 10 | BT14: 9 | BW14: 9 | BX14: 10 | BY14: 8 | BZ14: 9 | CC14: 9 | CE14: 9 | CG14: 9 | CM14: 10 | CP14: 9 | CT14: 9 | DA14: 9 | DB14: 9 | DD14: 9 | DF14: 9 | DH14: 10 | DJ14: 8 | DM14: 10 | DQ14: 10 | DS14: 8 | DT14: 10 | DU14: 10 | DY14: 10 | ED14: 1114.76 | EE14: 368 | EF14: 41 | EG14: =IF(EF14 > 0,EE14/EF14,0) -> 8.975609756 | EH14: =MIN($F14:EC14) -> 6 | EI14: 3
A15: 4 | B15: Морозова Николь Дмитриевна | C15: 481497225 | D15: БЖУР131 | E15: Журналистика | F15: 10 | I15: 10 | N15: 10 | T15: 9 | AA15: 8 | AC15: 9 | AD15: 9 | AE15: 10 | AH15: 10 | AK15: 10 | AN15: 8 | AR15: 8 | AU15: 9 | AZ15: 8 | BD15: 10 | BJ15: 7 | BN15: 10 | BO15: 9 | BP15: 10 | BT15: 8 | BW15: 9 | BX15: 10 | BY15: 8 | BZ15: 8 | CC15: 9 | CE15: 9 | CG15: 8 | CM15: 10 | CP15: 9 | CT15: 9 | CY15: 9 | DA15: 9 | DD15: 9 | DF15: 8 | DH15: 9 | DJ15: 10 | DK15: 10 | DM15: 9 | DQ15: 10 | DS15: 10 | DU15: 9 | DY15: 10 | ED15: 1112.05 | EE15: 383 | EF15: 42 | EG15: =IF(EF15 > 0,EE15/EF15,0) -> 9.119047619 | EH15: =MIN($F15:EC15) -> 7 | EI15: 4
A16: 5 | B16: Суханова Юлия Александровна | C16: 475503448 | D16: БЖУР134 | E16: Журналистика | F16: 9 | I16: 8 | N16: 10 | Q16: 7 | Y16: 8 | AC16: 8 | AD16: 10 | AE16: 10 | AH16: 9 | AR16: 8 | AU16: 10 | AZ16: 8 | BB16: 10 | BC16: 8 | BD16: 7 | BN16: 10 | BO16: 10 | BP16: 10 | BT16: 10 | BW16: 9 | BX16: 10 | BY16: 6 | BZ16: 8 | CC16: 10 | CE16: 10 | CG16: 9 | CM16: 10 | CP16: 9 | CT16: 9 | DA16: 9 | DD16: 9 | DF16: 9 | DH16: 10 | DJ16: 10 | DM16: 10 | DQ16: 10 | DS16: 9 | DT16: 10 | DU16: 10 | DY16: 10 | ED16: 1112.02 | EE16: 366 | EF16: 40 | EG16: =IF(EF16 > 0,EE16/EF16,0) -> 9.15 | EH16: =MIN($F16:EC16) -> 6 | EI16: 5
A17: 6 | B17: Чернова Кристина Валериевна | C17: 475501776 | D17: БЖУР133 | E17: Журналистика | F17: 9 | I17: 10 | N17: 9 | T17: 8 | Y17: 9 | AC17: 9 | AD17: 9 | AE17: 10 | AH17: 9 | AL17: 8 | AT17: 8 | AU17: 8 | AZ17: 7 | BB17: 9 | BD17: 8 | BN17: 9 | BO17: 9 | BP17: 10 | BT17: 10 | BW17: 10 | BX17: 10 | BY17: 8 | BZ17: 9 | CC17: 9 | CE17: 10 | CG17: 7 | CM17: 10 | CP17: 9 | CT17: 8 | CY17: 9 | DA17: 8 | DB17: 9 | DD17: 9 | DF17: 8 | DH17: 10 | DJ17: 10 | DM17: 8 | DO17: 8 | DQ17: 10 | DT17: 8 | DU17: 10 | DY17: 10 | ED17: 1102.59 | EE17: 375 | EF17: 42 | EG17: =IF(EF17 > 0,EE17/EF17,0) -> 8.928571429 | EH17: =MIN($F17:EC17) -> 7 | EI17: 6
A18: 7 | B18: Скворцова Дарья Андреевна | C18: 475498901 | D18: БЖУР132 | E18: Журналистика | F18: 9 | I18: 10 | P18: 10 | V18: 9 | AA18: 8 | AC18: 8 | AD18: 8 | AE18: 10 | AH18: 10 | AL18: 9 | AR18: 8 | AU18: 10 | AZ18: 9 | BD18: 9 | BK18: 10 | BN18: 10 | BO18: 10 | BP18: 10 | BT18: 10 | BW18: 10 | BX18: 10 | BY18: 9 | BZ18: 9 | CC18: 10 | CE18: 9 | CG18: 9 | CM18: 10 | CP18: 9 | CT18: 9 | DA18: 9 | DD18: 10 | DF18: 9 | DH18: 10 | DJ18: 10 | DK18: 9 | DM18: 10 | DQ18: 9 | DS18: 8 | DU18: 9 | DY18: 10 | ED18: 1100.36 | EE18: 374 | EF18: 40 | EG18: =IF(EF18 > 0,EE18/EF18,0) -> 9.35 | EH18: =MIN($F18:EC18) -> 8 | EI18: 7
A19: 8 | B19: Чернышева Евгения Эдуардовна | C19: 475501916 | D19: БЖУР133 | E19: Журналистика | F19: 9 | I19: 9 | N19: 9 | T19: 8 | Y19: 9 | AC19: 9 | AD19: 9 | AE19: 10 | AH19: 9 | AL19: 9 | AT19: 8 | AU19: 8 | AZ19: 8 | BB19: 8 | BD19: 8 | BN19: 10 | BO19: 9 | BP19: 10 | BT19: 10 | BW19: 10 | BX19: 6 | BY19: 8 | BZ19: 9 | CC19: 9 | CE19: 9 | CG19: 9 | CM19: 10 | CP19: 9 | CT19: 8 | CW19: 10 | DA19: 8 | DD19: 7 | DF19: 8 | DH19: 9 | DJ19: 10 | DM19: 9 | DQ19: 8 | DS19: 8 | DT19: 9 | DU19: 8 | DY19: 10 | ED19: 1089.71 | EE19: 360 | EF19: 41 | EG19: =IF(EF19 > 0,EE19/EF19,0) -> 8.780487805 | EH19: =MIN($F19:EC19) -> 6 | EI19: 8
A20: 9 | B20: Вильшанская Елена Андреевна | C20: 475500480 | D20: БЖУР133 | E20: Журналистика | F20: 9 | I20: 9 | P20: 9 | V20: 8 | AA20: 8 | AC20: 9 | AD20: 9 | AE20: 10 | AH20: 9 | AL20: 8 | AR20: 7 | AU20: 7 | AZ20: 8 | BB20: 8 | BD20: 9 | BK20: 10 | BN20: 9 | BO20: 9 | BP20: 10 | BT20: 10 | BW20: 8 | BX20: 10 | BY20: 8 | BZ20: 7 | CC20: 8 | CE20: 9 | CG20: 7 | CM20: 10 | CP20: 9 | CT20: 9 | DA20: 9 | DB20: 8 | DD20: 8 | DF20: 8 | DH20: 8 | DJ20: 10 | DK20: 10 | DM20: 8 | DQ20: 8 | DS20: 9 | DU20: 10 | DY20: 10 | ED20: 1088.04 | EE20: 366 | EF20: 42 | EG20: =IF(EF20 > 0,EE20/EF20,0) -> 8.714285714 | EH20: =MIN($F20:EC20) -> 7 | EI20: 9
A21: 10 | B21: Рублева Милена Валерьевна | C21: 475501513 | D21: БЖУР133 | E21: Журналистика | F21: 9 | I21: 9 | N21: 9 | T21: 9 | Y21: 10 | AC21: 9 | AD21: 9 | AE21: 10 | AH21: 10 | AL21: 10 | AR21: 10 | AU21: 8 | AZ21: 8 | BB21: 8 | BD21: 10 | BN21: 9 | BO21: 10 | BP21: 10 | BT21: 10 | BW21: 10 | BX21: 8 | BY21: 8 | BZ21: 8 | CC21: 9 | CE21: 10 | CG21: 8 | CM21: 10 | CP21: 10 | CT21: 9 | DB21: 10 | DD21: 9 | DF21: 9 | DH21: 10 | DJ21: 10 | DM21: 8 | DQ21: 10 | DS21: 8 | DT21: 8 | DU21: 8 | DY21: 10 | ED21: 1078.46 | EE21: 367 | EF21: 40 | EG21: =IF(EF21 > 0,EE21/EF21,0) -> 9.175 | EH21: =MIN($F21:EC21) -> 8 | EI21: 10
A22: 11 | B22: Булатова Катерина Николаевна | C22: 475498195 | D22: БЖУР132 | E22: Журналистика | F22: 9 | I22: 9 | N22: 9 | T22: 9 | AA22: 6 | AC22: 9 | AD22: 8 | AE22: 10 | AH22: 10 | AN22: 9 | AR22: 5 | AU22: 9 | AZ22: 7 | BB22: 9 | BD22: 8 | BJ22: 6 | BK22: 10 | BN22: 9 | BO22: 9 | BP22: 10 | BT22: 10 | BW22: 10 | BX22: 10 | BY22: 7 | BZ22: 5 | CC22: 9 | CE22: 8 | CG22: 8 | CM22: 10 | CP22: 9 | CT22: 8 | DA22: 9 | DD22: 9 | DF22: 7 | DH22: 9 | DJ22: 9 | DK22: 10 | DM22: 10 | DQ22: 9 | DS22: 9 | DU22: 9 | DY22: 10 | ED22: 1061.56 | EE22: 364 | EF22: 42 | EG22: =IF(EF22 > 0,EE22/EF22,0) -> 8.666666667 | EH22: =MIN($F22:EC22) -> 5 | EI22: 11
A23: 12 | B23: Ревоненко Анна Николаевна | C23: 481500688 | D23: БЖУР132 | E23: Журналистика | F23: 9 | I23: 9 | N23: 8 | T23: 10 | AA23: 10 | AC23: 8 | AD23: 9 | AE23: 10 | AH23: 8 | AN23: 9 | AR23: 8 | AU23: 7 | AZ23: 7 | BD23: 10 | BJ23: 8 | BN23: 9 | BO23: 10 | BP23: 10 | BT23: 8 | BW23: 9 | BX23: 10 | BY23: 8 | BZ23: 9 | CC23: 8 | CE23: 10 | CG23: 8 | CM23: 10 | CP23: 9 | CT23: 9 | DB23: 9 | DD23: 8 | DF23: 8 | DH23: 10 | DJ23: 10 | DM23: 9 | DQ23: 9 | DS23: 10 | DT23: 8 | DU23: 10 | DY23: 10 | ED23: 1050.77 | EE23: 358 | EF23: 40 | EG23: =IF(EF23 > 0,EE23/EF23,0) -> 8.95 | EH23: =MIN($F23:EC23) -> 7 | EI23: 12
A24: 13 | B24: Рудакова Юлия Владиславовна | C24: 475498778 | D24: БЖУР132 | E24: Журналистика | F24: 9 | I24: 9 | P24: 10 | V24: 9 | AA24: 8 | AC24: 9 | AD24: 8 | AE24: 10 | AH24: 10 | AL24: 8 | AR24: 7 | AU24: 7 | AZ24: 8 | BD24: 9 | BJ24: 7 | BN24: 9 | BO24: 9 | BP24: 10 | BT24: 10 | BW24: 9 | BX24: 10 | BY24: 9 | BZ24: 8 | CC24: 9 | CE24: 9 | CG24: 9 | CM24: 10 | CP24: 9 | CT24: 9 | DA24: 9 | DD24: 10 | DF24: 9 | DH24: 10 | DJ24: 10 | DK24: 9 | DM24: 10 | DQ24: 8 | DS24: 8 | DU24: 9 | DY24: 10 | ED24: 1048.65 | EE24: 359 | EF24: 40 | EG24: =IF(EF24 > 0,EE24/EF24,0) -> 8.975 | EH24: =MIN($F24:EC24) -> 7 | EI24: 13
A25: 14 | B25: Таиров Ринат Маратович | C25: 475503575 | D25: БЖУР134 | E25: Журналистика | F25: 9 | I25: 9 | N25: 9 | T25: 8 | Y25: 8 | AC25: 9 | AD25: 10 | AE25: 10 | AH25: 10 | AL25: 7 | AR25: 7 | AU25: 7 | AZ25: 8 | BD25: 10 | BJ25: 8 | BN25: 10 | BO25: 10 | BP25: 10 | BT25: 10 | BW25: 8 | BX25: 10 | BY25: 7 | BZ25: 7 | CC25: 10 | CE25: 9 | CG25: 8 | CM25: 10 | CP25: 8 | CT25: 7 | DA25: 9 | DD25: 8 | DF25: 8 | DH25: 10 | DJ25: 7 | DM25: 7 | DO25: 9 | DQ25: 10 | DS25: 9 | DU25: 9 | DY25: 10 | ED25: 1022.88 | EE25: 349 | EF25: 40 | EG25: =IF(EF25 > 0,EE25/EF25,0) -> 8.725 | EH25: =MIN($F25:EC25) -> 7 | EI25: 14
A26: 15 | B26: Молоствова Анна Александровна | C26: 481501975 | D26: БЖУР133 | E26: Журналистика | F26: 9 | I26: 9 | N26: 9 | T26: 9 | AA26: 8 | AC26: 8 | AD26: 8 | AE26: 10 | AH26: 9 | AN26: 9 | AR26: 5 | AU26: 7 | AZ26: 8 | BD26: 8 | BK26: 10 | BN26: 8 | BO26: 10 | BP26: 10 | BT26: 10 | BW26: 10 | BX26: 10 | BY26: 8 | BZ26: 7 | CC26: 10 | CE26: 9 | CG26: 8 | CM26: 10 | CP26: 9 | CT26: 9 | DA26: 8 | DD26: 10 | DF26: 9 | DH26: 10 | DJ26: 8 | DM26: 10 | DO26: 9 | DQ26: 8 | DS26: 9 | DU26: 8 | DY26: 10 | ED26: 1022.72 | EE26: 353 | EF26: 40 | EG26: =IF(EF26 > 0,EE26/EF26,0) -> 8.825 | EH26: =MIN($F26:EC26) -> 5 | EI26: 15
A27: 16 | B27: Федорова Анастасия Александровна | C27: 475499056 | D27: БЖУР132 | E27: Журналистика | F27: 9 | I27: 9 | P27: 9 | V27: 9 | AA27: 8 | AC27: 9 | AD27: 9 | AE27: 10 | AH27: 10 | AL27: 8 | AR27: 5 | AU27: 8 | AZ27: 8 | BD27: 7 | BJ27: 7 | BN27: 10 | BO27: 9 | BP27: 10 | BT27: 7 | BW27: 9 | BX27: 10 | BY27: 7 | BZ27: 9 | CC27: 10 | CE27: 9 | CG27: 9 | CM27: 10 | CP27: 9 | CT27: 9 | DB27: 8 | DD27: 10 | DF27: 8 | DH27: 9 | DJ27: 9 | DM27: 10 | DO27: 9 | DQ27: 8 | DS27: 7 | DU27: 9 | DY27: 10 | ED27: 1020.48 | EE27: 349 | EF27: 40 | EG27: =IF(EF27 > 0,EE27/EF27,0) -> 8.725 | EH27: =MIN($F27:EC27) -> 5 | EI27: 16
A28: 17 | B28: Дмитриева Екатерина Александровна | C28: 475500772 | D28: БЖУР133 | E28: Журналистика | F28: 9 | I28: 10 | N28: 9 | T28: 9 | AA28: 9 | AC28: 9 | AD28: 9 | AE28: 10 | AH28: 10 | AL28: 9 | AR28: 8 | AU28: 7 | AZ28: 6 | BB28: 9 | BD28: 8 | BN28: 9 | BO28: 10 | BP28: 10 | BT28: 10 | BW28: 9 | BX28: 8 | BY28: 7 | BZ28: 8 | CC28: 8 | CE28: 8 | CG28: 8 | CM28: 10 | CP28: 9 | CT28: 9 | DA28: 9 | DD28: 8 | DF28: 8 | DH28: 8 | DJ28: 10 | DM28: 9 | DQ28: 9 | DS28: 9 | DT28: 8 | DU28: 8 | DY28: 10 | ED28: 1015.59 | EE28: 350 | EF28: 40 | EG28: =IF(EF28 > 0,EE28/EF28,0) -> 8.75 | EH28: =MIN($F28:EC28) -> 6 | EI28: 17
A29: 18 | B29: Липчанская Анастасия Алексеевна | C29: 475501239 | D29: БЖУР133 | E29: Журналистика | F29: 9 | I29: 9 | N29: 9 | T29: 9 | Y29: 6 | AC29: 10 | AD29: 9 | AE29: 10 | AH29: 10 | AL29: 9 | AT29: 5 | AU29: 8 | AZ29: 8 | BD29: 8 | BK29: 9 | BN29: 7 | BO29: 9 | BP29: 10 | BT29: 10 | BW29: 10 | BX29: 10 | BY29: 8 | BZ29: 10 | CC29: 10 | CE29: 10 | CG29: 8 | CM29: 10 | CP29: 9 | CT29: 10 | DD29: 10 | DF29: 8 | DH29: 10 | DJ29: 10 | DM29: 10 | DO29: 9 | DQ29: 10 | DS29: 9 | DU29: 8 | DY29: 10 | ED29: 1013.48 | EE29: 353 | EF29: 39 | EG29: =IF(EF29 > 0,EE29/EF29,0) -> 9.051282051 | EH29: =MIN($F29:EC29) -> 5 | EI29: 18
A30: 19 | B30: Литвякова Евдокия Алексеевна | C30: 475502924 | D30: БЖУР134 | E30: Журналистика | F30: 9 | I30: 10 | N30: 6 | Q30: 7 | Y30: 6 | AC30: 9 | AD30: 9 | AE30: 10 | AH30: 10 | AT30: 7 | AU30: 9 | AZ30: 8 | BB30: 8 | BC30: 7 | BD30: 7 | BN30: 9 | BO30: 9 | BP30: 10 | BT30: 8 | BW30: 9 | BX30: 10 | BY30: 6 | BZ30: 9 | CC30: 8 | CE30: 9 | CG30: 9 | CM30: 10 | CP30: 9 | CT30: 8 | DA30: 7 | DD30: 8 | DF30: 8 | DH30: 10 | DJ30: 7 | DM30: 10 | DQ30: 9 | DS30: 9 | DT30: 9 | DU30: 10 | DY30: 10 | ED30: 1010.68 | EE30: 342 | EF30: 40 | EG30: =IF(EF30 > 0,EE30/EF30,0) -> 8.55 | EH30: =MIN($F30:EC30) -> 6 | EI30: 19
A31: 20 | B31: Лебедева Ксения Кирилловна | C31: 481500039 | D31: БЖУР132 | E31: Журналистика | F31: 9 | I31: 5 | N31: 8 | T31: 9 | Y31: 8 | AC31: 8 | AD31: 9 | AE31: 10 | AH31: 10 | AN31: 9 | AR31: 8 | AU31: 7 | AZ31: 8 | BB31: 9 | BD31: 8 | BN31: 8 | BO31: 10 | BP31: 10 | BT31: 10 | BW31: 9 | BX31: 10 | BY31: 9 | BZ31: 8 | CC31: 9 | CE31: 10 | CG31: 7 | CM31: 10 | CP31: 10 | CT31: 9 | DB31: 9 | DD31: 9 | DF31: 10 | DH31: 10 | DJ31: 9 | DM31: 10 | DO31: 10 | DQ31: 10 | DU31: 9 | DY31: 10 | ED31: 1008.32 | EE31: 350 | EF31: 39 | EG31: =IF(EF31 > 0,EE31/EF31,0) -> 8.974358974 | EH31: =MIN($F31:EC31) -> 5 | EI31: 20
A32: 21 | B32: Нещадимова Дарья Викторовна | C32: 481497484 | D32: БЖУР131 | E32: Журналистика | F32: 10 | I32: 9 | N32: 9 | T32: 7 | AA32: 7 | AC32: 9 | AD32: 9 | AE32: 10 | AH32: 10 | AN32: 8 | AR32: 4 | AU32: 7 | AZ32: 7 | BB32: 9 | BD32: 8 | BN32: 9 | BO32: 9 | BP32: 10 | BT32: 7 | BW32: 8 | BX32: 10 | BY32: 8 | BZ32: 8 | CC32: 9 | CE32: 10 | CG32: 9 | CM32: 10 | CP32: 8 | CT32: 8 | DB32: 9 | DD32: 9 | DF32: 8 | DH32: 9 | DJ32: 9 | DM32: 8 | DO32: 9 | DQ32: 10 | DS32: 8 | DU32: 9 | DY32: 10 | ED32: 1007.71 | EE32: 344 | EF32: 40 | EG32: =IF(EF32 > 0,EE32/EF32,0) -> 8.6 | EH32: =MIN($F32:EC32) -> 4 | EI32: 21
A33: 22 | B33: Королькова Елизавета Дмитриевна | C33: 481499652 | D33: БЖУР132 | E33: Журналистика | F33: 9 | I33: 9 | N33: 7 | T33: 8 | AA33: 6 | AC33: 9 | AD33: 8 | AE33: 10 | AH33: 10 | AN33: 9 | AR33: 5 | AU33: 7 | AZ33: 7 | BB33: 7 | BD33: 7 | BN33: 7 | BO33: 9 | BP33: 10 | BT33: 9 | BW33: 10 | BX33: 10 | BY33: 6 | BZ33: 8 | CC33: 10 | CE33: 10 | CG33: 8 | CM33: 10 | CP33: 9 | CT33: 9 | DA33: 7 | DD33: 9 | DF33: 10 | DH33: 10 | DJ33: 10 | DM33: 10 | DO33: 9 | DQ33: 9 | DS33: 9 | DU33: 9 | DY33: 10 | ED33: 1000.24 | EE33: 345 | EF33: 40 | EG33: =IF(EF33 > 0,EE33/EF33,0) -> 8.625 | EH33: =MIN($F33:EC33) -> 5 | EI33: 22
A34: 23 | B34: Яковец Елизавета Николаевна | C34: 475497867 | D34: БЖУР131 | E34: Журналистика | F34: 9 | I34: 9 | N34: 10 | T34: 10 | AA34: 6 | AC34: 9 | AD34: 9 | AE34: 10 | AH34: 10 | AN34: 10 | AR34: 7 | AU34: 7 | AZ34: 8 | BB34: 8 | BD34: 10 | BN34: 8 | BO34: 10 | BP34: 10 | BT34: 8 | BW34: 9 | BX34: 10 | BY34: 8 | BZ34: 9 | CC34: 6 | CE34: 10 | CG34: 9 | CM34: 10 | CP34: 9 | CT34: 7 | DD34: 9 | DF34: 9 | DH34: 9 | DJ34: 10 | DM34: 10 | DO34: 8 | DQ34: 10 | DS34: 7 | DU34: 9 | DY34: 10 | ED34: 996.22 | EE34: 346 | EF34: 39 | EG34: =IF(EF34 > 0,EE34/EF34,0) -> 8.871794872 | EH34: =MIN($F34:EC34) -> 6 | EI34: 23
A35: 24 | B35: Мусина Юлия Маратовна | C35: 475563331 | D35: БЖУР133 | E35: Журналистика | F35: 9 | I35: 8 | P35: 8 | V35: 9 | AA35: 8 | AC35: 9 | AD35: 10 | AE35: 10 | AH35: 9 | AL35: 9 | AR35: 5 | AU35: 6 | AZ35: 6 | BB35: 7 | BD35: 6 | BK35: 10 | BN35: 6 | BO35: 9 | BP35: 10 | BT35: 10 | BW35: 9 | BX35: 10 | BY35: 8 | BZ35: 5 | CC35: 5 | CE35: 9 | CG35: 7 | CM35: 10 | CP35: 9 | CT35: 9 | DB35: 9 | DD35: 9 | DF35: 8 | DH35: 8 | DJ35: 10 | DK35: 10 | DM35: 9 | DQ35: 8 | DS35: 9 | DU35: 10 | DY35: 10 | ED35: 995.4 | EE35: 345 | EF35: 41 | EG35: =IF(EF35 > 0,EE35/EF35,0) -> 8.414634146 | EH35: =MIN($F35:EC35) -> 5 | EI35: 24
A36: 25 | B36: Огурцова Евгения Алексеевна | C36: 475498638 | D36: БЖУР132 | E36: Журналистика | F36: 9 | I36: 9 | N36: 10 | T36: 9 | AA36: 10 | AC36: 8 | AD36: 9 | AE36: 10 | AH36: 10 | AN36: 9 | AR36: 8 | AU36: 7 | AZ36: 6 | BD36: 7 | BK36: 10 | BN36: 10 | BO36: 8 | BP36: 10 | BT36: 9 | BW36: 9 | BX36: 10 | BY36: 8 | BZ36: 8 | CC36: 9 | CE36: 8 | CG36: 9 | CM36: 10 | CP36: 9 | CT36: 9 | DB36: 10 | DD36: 9 | DF36: 9 | DH36: 10 | DJ36: 8 | DK36: 9 | DM36: 8 | DQ36: 8 | DU36: 9 | DY36: 10 | ED36: 990.38 | EE36: 347 | EF36: 39 | EG36: =IF(EF36 > 0,EE36/EF36,0) -> 8.897435897 | EH36: =MIN($F36:EC36) -> 6 | EI36: 25
A37: 26 | B37: Цегалко Яна Николаевна | C37: 481500835 | D37: БЖУР132 | E37: Журналистика | F37: 9 | I37: 9 | N37: 9 | T37: 8 | AA37: 8 | AC37: 9 | AD37: 8 | AE37: 10 | AH37: 10 | AN37: 8 | AR37: 8 | AU37: 8 | AZ37: 8 | BD37: 9 | BJ37: 7 | BN37: 10 | BO37: 9 | BP37: 10 | BT37: 9 | BW37: 9 | BX37: 10 | BY37: 6 | BZ37: 9 | CC37: 9 | CE37: 8 | CG37: 8 | CM37: 10 | CP37: 8 | CT37: 7 | CY37: 8 | DD37: 8 | DF37: 8 | DH37: 9 | DJ37: 6 | DM37: 10 | DQ37: 9 | DS37: 9 | DT37: 8 | DU37: 8 | DY37: 10 | ED37: 987.97 | EE37: 343 | EF37: 40 | EG37: =IF(EF37 > 0,EE37/EF37,0) -> 8.575 | EH37: =MIN($F37:EC37) -> 6 | EI37: 26
A38: 27 | B38: Аммосова Людмила Михайловна | C38: 475562216 | D38: БЖУР133 | E38: Журналистика | F38: 9 | I38: 8 | N38: 8 | T38: 8 | Y38: 6 | AC38: 9 | AD38: 9 | AE38: 10 | AH38: 9 | AL38: 9 | AR38: 4 | AU38: 6 | AZ38: 7 | BB38: 8 | BD38: 8 | BK38: 10 | BN38: 6 | BO38: 8 | BP38: 10 | BT38: 10 | BW38: 9 | BX38: 10 | BY38: 6 | BZ38: 6 | CC38: 6 | CE38: 9 | CG38: 7 | CM38: 10 | CP38: 9 | CT38: 8 | DB38: 9 | DD38: 8 | DF38: 6 | DH38: 8 | DJ38: 9 | DK38: 10 | DM38: 10 | DQ38: 9 | DS38: 9 | DU38: 10 | DY38: 10 | ED38: 981.83 | EE38: 340 | EF38: 41 | EG38: =IF(EF38 > 0,EE38/EF38,0) -> 8.292682927 | EH38: =MIN($F38:EC38) -> 4 | EI38: 27
A39: 28 | B39: Кокорева Мария Викторовна | C39: 481504306 | D39: БЖУР134 | E39: Журналистика | F39: 9 | I39: 8 | N39: 9 | Q39: 7 | Y39: 9 | AC39: 9 | AD39: 9 | AE39: 10 | AH39: 10 | AR39: 5 | AU39: 8 | AZ39: 8 | BB39: 8 | BC39: 8 | BD39: 8 | BN39: 10 | BO39: 10 | BP39: 10 | BT39: 10 | BW39: 9 | BX39: 10 | BY39: 8 | BZ39: 8 | CC39: 9 | CE39: 10 | CG39: 8 | CM39: 10 | CP39: 9 | CT39: 9 | DD39: 9 | DF39: 9 | DH39: 10 | DJ39: 8 | DM39: 10 | DQ39: 10 | DT39: 10 | DU39: 10 | DY39: 10 | ED39: 980.91 | EE39: 341 | EF39: 38 | EG39: =IF(EF39 > 0,EE39/EF39,0) -> 8.973684211 | EH39: =MIN($F39:EC39) -> 5 | EI39: 28
A40: 29 | B40: Сидоров Всеволод Дмитриевич | C40: 481502112 | D40: БЖУР133 | E40: Журналистика | F40: 9 | I40: 9 | N40: 9 | T40: 7 | AA40: 9 | AC40: 8 | AD40: 9 | AE40: 10 | AH40: 8 | AN40: 8 | AR40: 8 | AU40: 6 | AZ40: 8 | BB40: 9 | BD40: 9 | BK40: 8 | BN40: 7 | BO40: 9 | BP40: 10 | BT40: 10 | BW40: 10 | BX40: 6 | BY40: 8 | BZ40: 7 | CC40: 6 | CE40: 8 | CG40: 8 | CM40: 10 | CP40: 9 | CT40: 8 | DA40: 7 | DD40: 6 | DF40: 8 | DH40: 7 | DJ40: 9 | DK40: 8 | DM40: 8 | DQ40: 8 | DS40: 8 | DU40: 8 | DY40: 10 | ED40: 979.82 | EE40: 337 | EF40: 41 | EG40: =IF(EF40 > 0,EE40/EF40,0) -> 8.219512195 | EH40: =MIN($F40:EC40) -> 6 | EI40: 29
A41: 30 | B41: Ставрианиди Анна Георгиевна | C41: 475497611 | D41: БЖУР131 | E41: Журналистика | F41: 10 | I41: 10 | N41: 8 | T41: 8 | AA41: 7 | AC41: 9 | AD41: 9 | AE41: 10 | AH41: 8 | AN41: 9 | AR41: 4 | AU41: 7 | AZ41: 7 | BD41: 8 | BJ41: 7 | BN41: 9 | BO41: 10 | BP41: 10 | BT41: 8 | BW41: 9 | BX41: 10 | BY41: 6 | BZ41: 6 | CC41: 6 | CE41: 9 | CG41: 7 | CM41: 10 | CP41: 9 | CT41: 8 | DA41: 6 | DB41: 7 | DD41: 9 | DF41: 6 | DH41: 8 | DJ41: 9 | DK41: 10 | DM41: 6 | DQ41: 10 | DS41: 8 | DU41: 9 | DY41: 10 | ED41: 979.4 | EE41: 336 | EF41: 41 | EG41: =IF(EF41 > 0,EE41/EF41,0) -> 8.195121951 | EH41: =MIN($F41:EC41) -> 4 | EI41: 30
A42: 31 | B42: Круглова Ирина Викторовна | C42: 481504593 | D42: БЖУР134 | E42: Журналистика | F42: 9 | I42: 8 | N42: 10 | T42: 8 | Y42: 8 | AC42: 9 | AD42: 9 | AE42: 10 | AH42: 9 | AN42: 8 | AT42: 5 | AU42: 9 | AZ42: 7 | BD42: 9 | BJ42: 7 | BN42: 10 | BO42: 9 | BP42: 10 | BT42: 10 | BW42: 8 | BX42: 10 | BY42: 6 | BZ42: 8 | CC42: 10 | CE42: 9 | CG42: 8 | CM42: 10 | CP42: 8 | CT42: 9 | DD42: 7 | DF42: 9 | DH42: 9 | DJ42: 8 | DM42: 8 | DQ42: 10 | DS42: 7 | DT42: 10 | DU42: 10 | DY42: 10 | ED42: 974.17 | EE42: 338 | EF42: 39 | EG42: =IF(EF42 > 0,EE42/EF42,0) -> 8.666666667 | EH42: =MIN($F42:EC42) -> 5 | EI42: 31
A43: 32 | B43: Афанасьева Татьяна Валерьевна | C43: 481496658 | D43: БЖУР131 | E43: Журналистика | F43: 9 | I43: 8 | N43: 8 | T43: 8 | AA43: 8 | AC43: 9 | AD43: 9 | AE43: 10 | AH43: 9 | AN43: 8 | AR43: 8 | AU43: 8 | AZ43: 7 | BD43: 9 | BJ43: 7 | BN43: 8 | BO43: 9 | BP43: 10 | BT43: 9 | BW43: 9 | BX43: 9 | BY43: 9 | BZ43: 8 | CC43: 8 | CE43: 8 | CG43: 7 | CM43: 10 | CP43: 9 | CT43: 8 | DB43: 8 | DD43: 8 | DF43: 8 | DH43: 9 | DJ43: 10 | DM43: 10 | DQ43: 9 | DU43: 9 | DV43: 8 | DY43: 10 | ED43: 960.23 | EE43: 335 | EF43: 39 | EG43: =IF(EF43 > 0,EE43/EF43,0) -> 8.58974359 | EH43: =MIN($F43:EC43) -> 7 | EI43: 32
A44: 33 | B44: Титов Игорь Игоревич | C44: 481502259 | D44: БЖУР133 | E44: Журналистика | F44: 9 | I44: 8 | N44: 9 | T44: 7 | Y44: 10 | AC44: 7 | AD44: 9 | AE44: 10 | AH44: 7 | AN44: 9 | AR44: 8 | AU44: 8 | AZ44: 7 | BD44: 9 | BJ44: 8 | BN44: 7 | BO44: 9 | BP44: 10 | BT44: 10 | BW44: 10 | BX44: 6 | BY44: 8 | BZ44: 8 | CC44: 9 | CE44: 7 | CG44: 7 | CM44: 10 | CP44: 9 | CT44: 7 | CY44: 7 | DB44: 8 | DD44: 7 | DF44: 7 | DH44: 8 | DJ44: 10 | DK44: 8 | DM44: 7 | DQ44: 8 | DU44: 8 | DY44: 10 | ED44: 955.91 | EE44: 330 | EF44: 40 | EG44: =IF(EF44 > 0,EE44/EF44,0) -> 8.25 | EH44: =MIN($F44:EC44) -> 6 | EI44: 33
A45: 34 | B45: Дергалов Руслан Сергеевич | C45: 475502790 | D45: БЖУР134 | E45: Журналистика | F45: 9 | I45: 9 | N45: 7 | Q45: 6 | Y45: 7 | AC45: 8 | AD45: 9 | AE45: 10 | AH45: 9 | AT45: 6 | AU45: 7 | AZ45: 7 | BB45: 8 | BC45: 7 | BD45: 9 | BN45: 7 | BO45: 8 | BP45: 10 | BT45: 10 | BW45: 8 | BX45: 10 | BY45: 6 | BZ45: 7 | CC45: 8 | CE45: 8 | CG45: 7 | CM45: 10 | CP45: 8 | CT45: 6 | DA45: 10 | DD45: 7 | DF45: 6 | DH45: 8 | DJ45: 9 | DM45: 8 | DQ45: 8 | DS45: 9 | DT45: 8 | DU45: 10 | DY45: 10 | ED45: 953.93 | EE45: 324 | EF45: 40 | EG45: =IF(EF45 > 0,EE45/EF45,0) -> 8.1 | EH45: =MIN($F45:EC45) -> 6 | EI45: 34
A46: 35 | B46: Николаева Мария Дмитриевна | C46: 475497479 | D46: БЖУР131 | E46: Журналистика | F46: 8 | I46: 9 | N46: 9 | T46: 9 | AA46: 8 | AC46: 9 | AD46: 8 | AE46: 10 | AH46: 10 | AN46: 8 | AR46: 5 | AU46: 6 | AZ46: 7 | BB46: 9 | BD46: 7 | BN46: 6 | BO46: 9 | BP46: 10 | BT46: 9 | BW46: 9 | BX46: 10 | BY46: 8 | BZ46: 9 | CC46: 9 | CE46: 8 | CG46: 7 | CM46: 10 | CP46: 9 | CT46: 7 | DA46: 9 | DD46: 9 | DF46: 8 | DH46: 9 | DJ46: 10 | DM46: 8 | DO46: 10 | DQ46: 10 | DU46: 9 | DY46: 10 | ED46: 947.74 | EE46: 334 | EF46: 39 | EG46: =IF(EF46 > 0,EE46/EF46,0) -> 8.564102564 | EH46: =MIN($F46:EC46) -> 5 | EI46: 35
A47: 36 | B47: Вагапова Юлия Рстамовна | C47: 475502663 | D47: БЖУР134 | E47: Журналистика | F47: 9 | I47: 9 | N47: 10 | T47: 8 | Y47: 8 | AC47: 9 | AD47: 9 | AE47: 10 | AH47: 9 | AL47: 7 | AT47: 8 | AU47: 7 | AZ47: 7 | BD47: 8 | BJ47: 7 | BN47: 8 | BO47: 9 | BP47: 10 | BT47: 10 | BW47: 8 | BX47: 10 | BY47: 6 | BZ47: 6 | CC47: 8 | CE47: 8 | CG47: 8 | CM47: 10 | CP47: 8 | CT47: 7 | DA47: 8 | DD47: 7 | DF47: 8 | DH47: 9 | DJ47: 10 | DM47: 9 | DO47: 9 | DQ47: 8 | DU47: 9 | DY47: 10 | ED47: 943.85 | EE47: 328 | EF47: 39 | EG47: =IF(EF47 > 0,EE47/EF47,0) -> 8.41025641 | EH47: =MIN($F47:EC47) -> 6 | EI47: 36
A48: 37 | B48: Жвик Анастасия Николаевна | C48: 475497229 | D48: БЖУР131 | E48: Журналистика | F48: 9 | I48: 9 | N48: 10 | V48: 9 | AA48: 5 | AC48: 9 | AD48: 9 | AE48: 10 | AH48: 10 | AN48: 9 | AR48: 7 | AU48: 8 | AZ48: 7 | BD48: 8 | BJ48: 7 | BK48: 10 | BN48: 9 | BO48: 10 | BP48: 10 | BT48: 9 | BW48: 10 | BX48: 10 | BY48: 8 | BZ48: 6 | CC48: 8 | CE48: 10 | CG48: 9 | CM48: 10 | CP48: 9 | CT48: н/я (ув) | DA48: 7 | DD48: 9 | DF48: 8 | DH48: 8 | DJ48: 10 | DL48: нет оценки | DM48: н/я (ув) | DQ48: н/я (ув) | DT48: 7 | DU48: н/я (ув) | DY48: 10 | EC48: 10 | ED48: 942.66 | EE48: 323 | EF48: 37 | EG48: =IF(EF48 > 0,EE48/EF48,0) -> 8.72972973 | EH48: =MIN($F48:EC48) -> 5 | EI48: 37
A49: 38 | B49: Якубович Анастасия Александровна | C49: 475499320 | D49: БЖУР132 | E49: Журналистика | F49: 9 | I49: 10 | P49: 9 | V49: 9 | AA49: 8 | AC49: 9 | AD49: 9 | AE49: 10 | AH49: 9 | AL49: 9 | AR49: 7 | AU49: 7 | AZ49: 6 | BD49: 9 | BJ49: 6 | BN49: 10 | BO49: 10 | BP49: 10 | BT49: 10 | BW49: 8 | BX49: 10 | BY49: 8 | BZ49: 9 | CC49: 9 | CE49: 8 | CG49: 6 | CM49: 10 | CP49: 8 | CT49: 8 | DB49: 9 | DD49: 8 | DF49: 5 | DH49: 10 | DJ49: 8 | DM49: 7 | DO49: 9 | DQ49: 9 | DU49: 8 | DY49: 10 | ED49: 938.79 | EE49: 333 | EF49: 39 | EG49: =IF(EF49 > 0,EE49/EF49,0) -> 8.538461538 | EH49: =MIN($F49:EC49) -> 5 | EI49: 38
A50: 39 | B50: Тищенко Виктория Андреевна | C50: 475497743 | D50: БЖУР131 | E50: Журналистика | F50: 9 | I50: 9 | N50: 10 | T50: 8 | AA50: 9 | AC50: 9 | AD50: 9 | AE50: 10 | AH50: 9 | AN50: 8 | AR50: 6 | AU50: 7 | AZ50: 7 | BD50: 7 | BJ50: 7 | BN50: 9 | BO50: 9 | BP50: 10 | BT50: 7 | BW50: 7 | BX50: 7 | BY50: 7 | BZ50: 7 | CC50: 9 | CE50: 8 | CG50: 8 | CM50: 10 | CP50: 9 | CT50: 8 | DB50: 9 | DD50: 7 | DF50: 8 | DH50: 9 | DJ50: 9 | DK50: 10 | DM50: 5 | DQ50: 8 | DU50: 9 | DY50: 10 | ED50: 938.54 | EE50: 323 | EF50: 39 | EG50: =IF(EF50 > 0,EE50/EF50,0) -> 8.282051282 | EH50: =MIN($F50:EC50) -> 5 | EI50: 39
A51: 40 | B51: Атасунцев Александр Григорьевич | C51: 481501546 | D51: БЖУР133 | E51: Журналистика | F51: 10 | I51: 9 | N51: 9 | T51: 8 | AA51: 8 | AC51: 9 | AD51: 10 | AE51: 10 | AH51: 9 | AN51: 9 | AR51: 5 | AU51: 6 | AZ51: 7 | BB51: 10 | BD51: 6 | BJ51: 4 | BN51: 6 | BO51: 10 | BP51: 10 | BT51: 10 | BW51: 7 | BX51: 7 | BY51: 6 | BZ51: 5 | CC51: 6 | CE51: 9 | CG51: 7 | CM51: 10 | CP51: 8 | CT51: 9 | DB51: 7 | DD51: 5 | DF51: 9 | DH51: 9 | DJ51: 6 | DK51: 7 | DM51: 6 | DQ51: 8 | DS51: 7 | DU51: 10 | DY51: 10 | ED51: 934.7 | EE51: 323 | EF51: 41 | EG51: =IF(EF51 > 0,EE51/EF51,0) -> 7.87804878 | EH51: =MIN($F51:EC51) -> 4 | EI51: 40
A52: 41 | B52: Басиладзе Мариами Рамазиевна | C52: 475564485 | D52: БЖУР134 | E52: Журналистика | F52: 9 | I52: 9 | N52: 8 | Q52: 7 | Y52: 6 | AC52: 8 | AD52: 9 | AE52: 10 | AH52: 8 | AR52: 2 | AU52: 8 | AZ52: 7 | BC52: 8 | BD52: 7 | BJ52: 4 | BN52: 4 | BO52: 8 | BP52: 10 | BT52: 10 | BW52: 8 | BX52: 10 | BY52: 7 | BZ52: 7 | CC52: 5 | CE52: 8 | CG52: 8 | CM52: 10 | CP52: 8 | CT52: 6 | DB52: 5 | DD52: 6 | DF52: 7 | DG52: 7 * | DH52: 7 | DJ52: 4 | DK52: 6 | DN52: 10 | DQ52: 9 | DS52: 6 | DU52: 10 | DY52: 10 | ED52: 934.14 | EE52: 306 | EF52: 41 | EG52: =IF(EF52 > 0,EE52/EF52,0) -> 7.463414634 | EH52: =MIN($F52:EC52) -> 2 | EI52: 41
A53: 42 | B53: Дымчишина Александра Юрьевна | C53: 475497099 | D53: БЖУР131 | E53: Журналистика | F53: 9 | I53: 9 | N53: 9 | T53: 9 | AA53: 8 | AC53: 9 | AD53: 9 | AE53: 10 | AH53: 8 | AN53: 9 | AR53: 6 | AU53: 7 | AZ53: 7 | BD53: 8 | BK53: 10 | BN53: 10 | BO53: 10 | BP53: 10 | BT53: 10 | BW53: 9 | BX53: 10 | BY53: 6 | BZ53: 7 | CC53: 10 | CE53: 9 | CG53: 6 | CM53: 10 | CP53: 9 | CT53: 6 | DA53: 6 | DD53: 7 | DF53: 6 | DH53: 9 | DJ53: 8 | DM53: 7 | DQ53: 10 | DT53: 8 | DU53: 9 | DY53: 10 | ED53: 933.32 | EE53: 329 | EF53: 39 | EG53: =IF(EF53 > 0,EE53/EF53,0) -> 8.435897436 | EH53: =MIN($F53:EC53) -> 6 | EI53: 42
A54: 43 | B54: Астапенко Ольга Юрьевна | C54: 474332631 | D54: БЖУР131 | E54: Журналистика | F54: 9 | I54: 9 | N54: 7 | T54: 9 | AA54: 8 | AC54: 9 | AD54: 9 | AE54: 10 | AH54: 5 | AN54: 8 | AR54: 5 | AU54: 7 | AZ54: 8 | BD54: 8 | BK54: 10 | BN54: 10 | BO54: 9 | BP54: 10 | BT54: 7 | BW54: 9 | BX54: 10 | BY54: 8 | BZ54: 9 | CC54: 6 | CE54: 9 | CG54: 8 | CM54: 10 | CP54: 9 | CT54: 8 | DD54: 6 | DF54: 5 | DH54: 9 | DJ54: 10 | DM54: 9 | DO54: 9 | DQ54: 10 | DS54: 5 | DU54: 9 | DY54: 10 | ED54: 927 | EE54: 325 | EF54: 39 | EG54: =IF(EF54 > 0,EE54/EF54,0) -> 8.333333333 | EH54: =MIN($F54:EC54) -> 5 | EI54: 43
A55: 44 | B55: Стрельцова Наталья Сергеевна | C55: 475501641 | D55: БЖУР133 | E55: Журналистика | F55: 9 | I55: 8 | N55: 9 | T55: 8 | Y55: 6 | AC55: 9 | AD55: 10 | AE55: 10 | AH55: 9 | AL55: 8 | AT55: 7 | AU55: 6 | AZ55: 7 | BD55: 9 | BJ55: 8 | BN55: 8 | BO55: 8 | BP55: 10 | BT55: 10 | BW55: 8 | BX55: 8 | BY55: 8 | BZ55: 8 | CC55: 6 | CE55: 9 | CG55: 8 | CM55: 10 | CP55: 9 | CT55: 8 | DB55: 9 | DD55: 7 | DF55: 9 | DH55: 7 | DJ55: 9 | DM55: 6 | DQ55: 8 | DT55: 8 | DU55: 8 | DY55: 10 | ED55: 918.89 | EE55: 322 | EF55: 39 | EG55: =IF(EF55 > 0,EE55/EF55,0) -> 8.256410256 | EH55: =MIN($F55:EC55) -> 6 | EI55: 44
A56: 45 | B56: Дмитриева Ольга Олеговна | C56: 475498343 | D56: БЖУР132 | E56: Журналистика | F56: 9 | I56: 10 | N56: 7 | T56: 9 | AA56: 9 | AC56: 9 | AD56: 9 | AE56: 10 | AH56: 9 | AN56: 9 | AR56: 5 | AU56: 6 | AZ56: 7 | BB56: 7 | BD56: 7 | BN56: 8 | BO56: 9 | BP56: 10 | BT56: 10 | BW56: 10 | BX56: 10 | BY56: 7 | BZ56: 7 | CC56: 7 | CE56: 8 | CG56: 7 | CM56: 10 | CP56: 9 | CT56: 8 | DB56: 6 | DD56: 5 | DF56: 5 | DH56: 7 | DJ56: 9 | DK56: 10 | DM56: 7 | DQ56: 8 | DS56: 6 | DU56: 10 | DY56: 10 | ED56: 918.43 | EE56: 325 | EF56: 40 | EG56: =IF(EF56 > 0,EE56/EF56,0) -> 8.125 | EH56: =MIN($F56:EC56) -> 5 | EI56: 45
A57: 46 | B57: Кокшарова Александра Игоревна | C57: 475501085 | D57: БЖУР133 | E57: Журналистика | F57: 9 | I57: 8 | P57: 8 | V57: 7 | Y57: 6 | AC57: 8 | AD57: 9 | AE57: 10 | AH57: 8 | AL57: 7 | AT57: 7 | AU57: 7 | AZ57: 7 | BB57: 10 | BD57: 7 | BN57: 6 | BO57: 8 | BP57: 10 | BT57: 10 | BW57: 8 | BX57: 8 | BY57: 7 | BZ57: 6 | CC57: 7 | CE57: 8 | CG57: 6 | CM57: 10 | CP57: 8 | CT57: 8 | DA57: 6 | DD57: 8 | DF57: 6 | DH57: 7 | DJ57: 10 | DM57: 9 | DQ57: 8 | DS57: 7 | DU57: 10 | DV57: 9 | DY57: 10 | ED57: 916.47 | EE57: 318 | EF57: 40 | EG57: =IF(EF57 > 0,EE57/EF57,0) -> 7.95 | EH57: =MIN($F57:EC57) -> 6 | EI57: 46
A58: 47 | B58: Халилова Арзу Идаятовна | C58: 615125946 | D58: БЖУР131 | E58: Журналистика | F58: нет оценки | I58: 9 | N58: нет оценки | S58: 7 | AB58: 7 | AC58: 10 | AD58: 8 | AG58: 10 | AH58: 10 | AJ58: 8 | AO58: 6 | AU58: 7 | AX58: 4 | AY58: 10 | AZ58: 6 | BD58: 4 | BE58: 7 | BH58: 10 | BK58: 8 | BL58: 10 | BO58: 8 | BQ58: 10 | BW58: 8 | BX58: 10 | BY58: 6 | BZ58: 6 | CC58: 8 | CE58: 7 | CG58: 7 | CM58: 10 | CP58: 9 | CT58: 7 | DA58: 8 | DC58: 7 | DD58: 7 | DF58: 6 | DH58: 6 | DJ58: 8 | DN58: 6 | DO58: 8 | DR58: 4 | DU58: 9 | DY58: 10 | ED58: 913.68 | EE58: 316 | EF58: 41 | EG58: =IF(EF58 > 0,EE58/EF58,0) -> 7.707317073 | EH58: =MIN($F58:EC58) -> 4 | EI58: 47
A59: 48 | B59: Ероносов Александр Эдуардович | C59: 481496795 | D59: БЖУР131 | E59: Журналистика | F59: 10 | I59: 9 | N59: 9 | T59: 8 | AA59: 8 | AC59: 9 | AD59: 8 | AE59: 10 | AH59: 10 | AN59: 9 | AR59: 5 | AU59: 7 | AZ59: 7 | BD59: 9 | BK59: 9 | BN59: 7 | BO59: 10 | BP59: 10 | BT59: 10 | BW59: 8 | BX59: 10 | BY59: 7 | BZ59: 6 | CC59: 8 | CE59: 8 | CG59: 8 | CM59: 10 | CP59: 9 | CT59: 6 | DD59: 7 | DF59: 4 | DH59: 7 | DJ59: 9 | DM59: 7 | DO59: 10 | DQ59: 8 | DS59: 8 | DU59: 9 | DY59: 10 | ED59: 913.05 | EE59: 323 | EF59: 39 | EG59: =IF(EF59 > 0,EE59/EF59,0) -> 8.282051282 | EH59: =MIN($F59:EC59) -> 4 | EI59: 48
A60: 49 | B60: Чехонадских Дарья Александровна | C60: 475563678 | D60: БЖУР133 | E60: Журналистика | F60: 9 | I60: 8 | N60: 8 | T60: 8 | Y60: 5 | AC60: 8 | AD60: 9 | AE60: 10 | AH60: 7 | AL60: 10 | AR60: 7 | AU60: 7 | AZ60: 7 | BD60: 7 | BK60: 9 | BN60: 7 | BO60: 8 | BP60: 10 | BT60: 10 | BW60: 10 | BX60: 5 | BY60: 7 | BZ60: 6 | CC60: 9 | CE60: 8 | CG60: 6 | CM60: 10 | CP60: 10 | CT60: 8 | CY60: 9 | DA60: 8 | DD60: 6 | DF60: 4 | DH60: 8 | DJ60: 9 | DK60: 8 | DM60: 4 | DQ60: 8 | DU60: 8 | DY60: 10 | ED60: 910.42 | EE60: 315 | EF60: 40 | EG60: =IF(EF60 > 0,EE60/EF60,0) -> 7.875 | EH60: =MIN($F60:EC60) -> 4 | EI60: 49
A61: 50 | B61: Королева Виолетта Николаевна | C61: 481499520 | D61: БЖУР132 | E61: Журналистика | F61: 9 | I61: 5 | N61: 9 | T61: 9 | AA61: 6 | AC61: 8 | AD61: 8 | AE61: 10 | AH61: 10 | AN61: 9 | AR61: 5 | AU61: 6 | AZ61: 7 | BD61: 8 | BJ61: 6 | BN61: 8 | BO61: 9 | BP61: 10 | BT61: 10 | BW61: 10 | BX61: 10 | BY61: 5 | BZ61: 8 | CC61: 7 | CE61: 8 | CG61: 7 | CM61: 10 | CP61: 9 | CT61: 7 | CY61: 7 | DB61: 9 | DD61: 7 | DF61: 6 | DH61: 7 | DJ61: 7 | DM61: 6 | DO61: 9 | DQ61: 8 | DU61: 8 | DY61: 10 | ED61: 902.72 | EE61: 317 | EF61: 40 | EG61: =IF(EF61 > 0,EE61/EF61,0) -> 7.925 | EH61: =MIN($F61:EC61) -> 5 | EI61: 50
A62: 51 | B62: Малышева Ирина Александровна | C62: 475563206 | D62: БЖУР133 | E62: Журналистика | F62: 9 | I62: 9 | N62: 8 | T62: 9 | Y62: 8 | AC62: 8 | AD62: 9 | AE62: 10 | AH62: 8 | AL62: 9 | AR62: 5 | AU62: 6 | AZ62: 7 | BD62: 7 | BK62: 10 | BN62: 9 | BO62: 9 | BP62: 10 | BT62: 8 | BW62: 9 | BX62: 8 | BY62: 7 | BZ62: 7 | CC62: 6 | CE62: 7 | CG62: 8 | CM62: 10 | CP62: 9 | CT62: 8 | DA62: 9 | DD62: 8 | DF62: 8 | DH62: 7 | DJ62: 6 | DK62: 8 | DM62: 9 | DQ62: 10 | DU62: 8 | DY62: 10 | ED62: 901.26 | EE62: 320 | EF62: 39 | EG62: =IF(EF62 > 0,EE62/EF62,0) -> 8.205128205 | EH62: =MIN($F62:EC62) -> 5 | EI62: 51
A63: 52 | B63: Герасимова Мария Александровна | C63: 475562579 | D63: БЖУР133 | E63: Журналистика | F63: 9 | I63: 9 | P63: 8 | V63: 8 | Y63: 7 | AC63: 9 | AD63: 8 | AE63: 10 | AH63: 10 | AL63: 9 | AR63: 5 | AU63: 7 | AZ63: 7 | BB63: 7 | BD63: 9 | BN63: 8 | BO63: 8 | BP63: 10 | BT63: 10 | BW63: 10 | BX63: 10 | BY63: 8 | BZ63: 7 | CC63: 8 | CE63: 8 | CG63: 7 | CM63: 10 | CP63: 9 | CT63: 10 | DD63: 9 | DF63: 9 | DH63: 9 | DJ63: 10 | DM63: 8 | DQ63: 9 | DT63: 9 | DU63: 8 | DY63: 10 | ED63: 899.93 | EE63: 326 | EF63: 38 | EG63: =IF(EF63 > 0,EE63/EF63,0) -> 8.578947368 | EH63: =MIN($F63:EC63) -> 5 | EI63: 52
A64: 53 | B64: Русских Арина Сергеевна | C64: 481504898 | D64: БЖУР134 | E64: Журналистика | F64: 9 | I64: 9 | N64: 8 | T64: 8 | Y64: 8 | AC64: 9 | AD64: 10 | AE64: 10 | AH64: 10 | AN64: 9 | AT64: 4 | AU64: 9 | AZ64: 7 | BD64: 7 | BK64: 10 | BN64: 7 | BO64: 9 | BP64: 10 | BT64: 8 | BW64: 9 | BX64: 10 | BY64: 5 | BZ64: 8 | CC64: 9 | CE64: 7 | CG64: 7 | CM64: 10 | CP64: 9 | CT64: 6 | DD64: 9 | DF64: 8 | DH64: 7 | DJ64: 9 | DM64: 10 | DO64: 8 | DQ64: 10 | DU64: 9 | DY64: 10 | ED64: 897.12 | EE64: 321 | EF64: 38 | EG64: =IF(EF64 > 0,EE64/EF64,0) -> 8.447368421 | EH64: =MIN($F64:EC64) -> 4 | EI64: 53
A65: 54 | B65: Робул Павел Константинович | C65: 475503187 | D65: БЖУР134 | E65: Журналистика | F65: 8 | I65: 9 | N65: 10 | Q65: 6 | Y65: 7 | AC65: 8 | AD65: 10 | AE65: 10 | AH65: 8 | AR65: 5 | AU65: 6 | AZ65: 7 | BC65: 7 | BD65: 10 | BJ65: 6 | BN65: 7 | BO65: 9 | BP65: 10 | BT65: 9 | BW65: 8 | BX65: 10 | BY65: 7 | BZ65: 9 | CC65: 8 | CE65: 6 | CG65: 6 | CM65: 10 | CP65: 8 | CT65: 8 | DD65: 8 | DF65: 8 | DH65: 10 | DJ65: 9 | DM65: 7 | DQ65: 8 | DT65: 10 | DU65: 10 | DY65: 10 | ED65: 891.94 | EE65: 312 | EF65: 38 | EG65: =IF(EF65 > 0,EE65/EF65,0) -> 8.210526316 | EH65: =MIN($F65:EC65) -> 5 | EI65: 54
A66: 55 | B66: Короткова Екатерина Владимировна | C66: 475561061 | D66: БЖУР132 | E66: Журналистика | F66: 9 | I66: 9 | N66: 7 | T66: 9 | Y66: 6 | AC66: 8 | AD66: 9 | AE66: 10 | AH66: 10 | AL66: 9 | AR66: 4 | AU66: 8 | AZ66: 7 | BD66: 7 | BJ66: 6 | BN66: 7 | BO66: 9 | BP66: 10 | BT66: 10 | BW66: 10 | BX66: 10 | BY66: 8 | BZ66: 7 | CC66: 9 | CE66: 9 | CG66: 8 | CM66: 10 | CP66: 7 | CT66: 9 | DB66: 5 | DD66: 7 | DF66: 8 | DH66: 7 | DJ66: 6 | DM66: 9 | DO66: 10 | DQ66: 8 | DU66: 9 | DY66: 10 | ED66: 891.21 | EE66: 320 | EF66: 39 | EG66: =IF(EF66 > 0,EE66/EF66,0) -> 8.205128205 | EH66: =MIN($F66:EC66) -> 4 | EI66: 55
A67: 56 | B67: Пржевальская Анастасия Всеволодовна | C67: 475558722 | D67: БЖУР131 | E67: Журналистика | F67: 8 | I67: 9 | N67: 6 | T67: 10 | Y67: 4 | AC67: 9 | AD67: 7 | AE67: 10 | AH67: 9 | AN67: 10 | AT67: 5 | AU67: 4 | AZ67: 6 | BD67: 8 | BK67: 10 | BN67: 9 | BO67: 5 | BP67: 10 | BT67: 9 | BW67: 10 | BX67: 10 | BY67: 8 | BZ67: 9 | CC67: 8 | CE67: 8 | CG67: 7 | CM67: 10 | CP67: 9 | CT67: 6 | CZ67: 10 | DA67: 7 | DD67: 8 | DF67: 8 | DH67: 10 | DJ67: 8 | DM67: 7 | DQ67: 8 | DU67: 9 | DV67: 9 | DY67: 10 | ED67: 890.28 | EE67: 327 | EF67: 40 | EG67: =IF(EF67 > 0,EE67/EF67,0) -> 8.175 | EH67: =MIN($F67:EC67) -> 4 | EI67: 56
A68: 57 | B68: Бидзионашвили Кетеван - | C68: 475560308 | D68: БЖУР132 | E68: Журналистика | F68: 9 | I68: 8 | P68: 8 | V68: 8 | AA68: 5 | AC68: 8 | AD68: 9 | AE68: 10 | AH68: 7 | AN68: 8 | AT68: 2 | AU68: 6 | AZ68: 7 | BD68: 7 | BK68: 10 | BN68: 4 | BO68: 9 | BP68: 10 | BT68: 9 | BW68: 8 | BX68: 10 | BY68: 7 | BZ68: 5 | CC68: 7 | CE68: 7 | CG68: 6 | CM68: 10 | CP68: 8 | CT68: 7 | DD68: 6 | DF68: 6 | DG68: 7 * | DH68: 8 | DJ68: 7 | DN68: 7 | DQ68: 8 | DS68: 6 | DT68: 7 | DU68: 8 | DY68: 10 | ED68: 885.26 | EE68: 299 | EF68: 40 | EG68: =IF(EF68 > 0,EE68/EF68,0) -> 7.475 | EH68: =MIN($F68:EC68) -> 2 | EI68: 57
A69: 58 | B69: Зражаева Алина Сергеевна | C69: 475565084 | D69: БЖУР134 | E69: Журналистика | F69: 9 | I69: 8 | N69: 7 | T69: 7 | Y69: 6 | AC69: 8 | AD69: 9 | AE69: 10 | AH69: 8 | AL69: 6 | AR69: 4 | AU69: 6 | AZ69: 7 | BD69: 7 | BK69: 10 | BN69: 9 | BO69: 9 | BP69: 10 | BT69: 10 | BW69: 8 | BX69: 10 | BY69: 6 | BZ69: 5 | CC69: 8 | CE69: 9 | CG69: 6 | CM69: 10 | CP69: 8 | CT69: 9 | DA69: 8 | DD69: 8 | DF69: 6 | DH69: 10 | DJ69: 7 | DM69: 9 | DQ69: 10 | DT69: 10 | DU69: 8 | DY69: 10 | ED69: 884.12 | EE69: 315 | EF69: 39 | EG69: =IF(EF69 > 0,EE69/EF69,0) -> 8.076923077 | EH69: =MIN($F69:EC69) -> 4 | EI69: 58
A70: 59 | B70: Голубева Анастасия Павловна | C70: 475496297 | D70: БЖУР131 | E70: Журналистика | F70: 9 | I70: 9 | N70: 7 | T70: 9 | AA70: 5 | AC70: 7 | AD70: 8 | AE70: 10 | AH70: 7 | AN70: 9 | AR70: 4 | AU70: 6 | AZ70: 7 | BB70: 7 | BD70: 8 | BK70: 10 | BN70: 8 | BO70: 10 | BP70: 10 | BT70: 9 | BW70: 8 | BX70: 9 | BY70: 7 | BZ70: 7 | CC70: 9 | CE70: 9 | CG70: 4 | CM70: 10 | CP70: 9 | CT70: 7 | DA70: 6 | DD70: 5 | DF70: 8 | DH70: 6 | DJ70: 9 | DM70: 6 | DQ70: 9 | DU70: 9 | DV70: 8 | DY70: 10 | ED70: 881.58 | EE70: 314 | EF70: 40 | EG70: =IF(EF70 > 0,EE70/EF70,0) -> 7.85 | EH70: =MIN($F70:EC70) -> 4 | EI70: 59
A71: 60 | B71: Пятибратова Екатерина Васильевна | C71: 475501379 | D71: БЖУР133 | E71: Журналистика | F71: 9 | I71: 9 | N71: 9 | T71: 9 | Y71: 9 | AC71: 9 | AD71: 9 | AE71: 10 | AH71: 8 | AL71: 8 | AR71: 4 | AU71: 8 | AZ71: 7 | BD71: 8 | BJ71: 7 | BN71: 10 | BO71: 8 | BP71: 10 | BT71: 10 | BW71: 10 | BX71: 8 | BY71: 5 | BZ71: 6 | CC71: 8 | CE71: 8 | CG71: 8 | CM71: 10 | CP71: 9 | CT71: 8 | DD71: 7 | DF71: 8 | DH71: 8 | DJ71: 7 | DM71: 10 | DQ71: 9 | DT71: 8 | DU71: 8 | DY71: 10 | ED71: 878.64 | EE71: 316 | EF71: 38 | EG71: =IF(EF71 > 0,EE71/EF71,0) -> 8.315789474 | EH71: =MIN($F71:EC71) -> 4 | EI71: 60
A72: 61 | B72: Маленкова Мария Александровна | C72: 475565410 | D72: БЖУР134 | E72: Журналистика | F72: 9 | I72: 9 | N72: 7 | T72: 8 | Y72: 6 | AC72: 8 | AD72: 10 | AE72: 10 | AH72: 7 | AL72: 7 | AR72: 4 | AU72: 7 | AZ72: 7 | BB72: 7 | BD72: 7 | BN72: 10 | BO72: 9 | BP72: 10 | BT72: 10 | BW72: 7 | BX72: 10 | BY72: 7 | BZ72: 5 | CC72: 8 | CE72: 9 | CG72: 5 | CM72: 10 | CP72: 7 | CT72: 6 | DB72: 6 | DD72: 7 | DF72: 8 | DH72: 8 | DJ72: 8 | DM72: 10 | DO72: 9 | DQ72: 10 | DU72: 10 | DY72: 10 | ED72: 878.14 | EE72: 312 | EF72: 39 | EG72: =IF(EF72 > 0,EE72/EF72,0) -> 8 | EH72: =MIN($F72:EC72) -> 4 | EI72: 61
A73: 62 | B73: Гимаева Жанна Эмзаровна | C73: 475564642 | D73: БЖУР134 | E73: Журналистика | F73: 9 | I73: 9 | N73: 8 | T73: 7 | Y73: 4 | AC73: 9 | AD73: 9 | AE73: 10 | AH73: 8 | AL73: 7 | AR73: 5 | AU73: 5 | AZ73: 7 | BB73: 7 | BD73: 5 | BN73: 6 | BO73: 8 | BP73: 10 | BT73: 10 | BW73: 8 | BX73: 10 | BY73: 7 | BZ73: 7 | CC73: 8 | CE73: 7 | CG73: 7 | CM73: 10 | CP73: 8 | CT73: 6 | DD73: 8 | DF73: 8 | DH73: 9 | DJ73: 8 | DM73: 10 | DO73: 8 | DQ73: 9 | DS73: 9 | DU73: 9 | DY73: 10 | ED73: 873.27 | EE73: 309 | EF73: 39 | EG73: =IF(EF73 > 0,EE73/EF73,0) -> 7.923076923 | EH73: =MIN($F73:EC73) -> 4 | EI73: 62
A74: 63 | B74: Осипова Светлана Витальевна | C74: 475563521 | D74: БЖУР133 | E74: Журналистика | F74: 9 | I74: 9 | N74: 6 | T74: 7 | Y74: 7 | AC74: 8 | AD74: 9 | AE74: 10 | AH74: 8 | AL74: 7 | AR74: 4 | AU74: 7 | AZ74: 7 | BB74: 9 | BD74: 8 | BN74: 8 | BO74: 8 | BP74: 10 | BT74: 9 | BW74: 9 | BX74: 10 | BY74: 5 | BZ74: 8 | CC74: 5 | CE74: 10 | CG74: 7 | CM74: 10 | CP74: 9 | CT74: 7 | DB74: 10 | DD74: 7 | DF74: 4 | DH74: 7 | DJ74: 10 | DK74: 8 | DM74: 8 | DQ74: 8 | DU74: 8 | DY74: 10 | ED74: 867.74 | EE74: 310 | EF74: 39 | EG74: =IF(EF74 > 0,EE74/EF74,0) -> 7.948717949 | EH74: =MIN($F74:EC74) -> 4 | EI74: 63
A75: 64 | B75: Швецова Екатерина Константиновна | C75: 481505154 | D75: БЖУР134 | E75: Журналистика | F75: 9 | I75: 9 | N75: 8 | T75: 7 | AA75: 8 | AC75: 8 | AD75: 9 | AE75: 10 | AH75: 7 | AN75: 6 | AT75: 6 | AU75: 7 | AZ75: 6 | BB75: 8 | BD75: 7 | BN75: 9 | BO75: 9 | BP75: 10 | BT75: 9 | BW75: 8 | BX75: 10 | BY75: 5 | BZ75: 7 | CC75: 8 | CE75: 9 | CG75: 6 | CM75: 10 | CP75: 8 | CT75: 7 | DD75: 6 | DF75: 5 | DH75: 8 | DJ75: 7 | DM75: 7 | DO75: 6 | DQ75: 9 | DS75: 8 | DU75: 9 | DY75: 10 | ED75: 859.4 | EE75: 305 | EF75: 39 | EG75: =IF(EF75 > 0,EE75/EF75,0) -> 7.820512821 | EH75: =MIN($F75:EC75) -> 5 | EI75: 64
A76: 65 | B76: Голованов Сергей Сергеевич | C76: 481499019 | D76: БЖУР132 | E76: Журналистика | F76: 9 | I76: 9 | N76: 7 | T76: 8 | AA76: 8 | AC76: 8 | AD76: 8 | AE76: 10 | AH76: 10 | AN76: 8 | AR76: 4 | AU76: 7 | AZ76: 6 | BB76: 7 | BD76: 9 | BN76: 8 | BO76: 9 | BP76: 10 | BT76: 9 | BW76: 9 | BX76: 10 | BY76: 5 | BZ76: 7 | CC76: 8 | CE76: 8 | CG76: 7 | CM76: 10 | CP76: 9 | CT76: 8 | DD76: 7 | DF76: 6 | DH76: 9 | DJ76: 9 | DK76: 10 | DM76: 9 | DQ76: 8 | DU76: 9 | DY76: 10 | ED76: 855.46 | EE76: 312 | EF76: 38 | EG76: =IF(EF76 > 0,EE76/EF76,0) -> 8.210526316 | EH76: =MIN($F76:EC76) -> 4 | EI76: 65
A77: 66 | B77: Селиванова Ксения Александровна | C77: 475503320 | D77: БЖУР134 | E77: Журналистика | F77: 9 | I77: 8 | N77: 10 | Q77: 6 | Y77: 7 | AC77: 9 | AD77: 10 | AE77: 10 | AH77: 8 | AR77: 5 | AU77: 7 | AZ77: 8 | BC77: 7 | BD77: 7 | BJ77: 6 | BN77: 8 | BO77: 8 | BP77: 10 | BT77: 9 | BW77: 7 | BX77: 10 | BY77: 5 | BZ77: 8 | CC77: 9 | CE77: 7 | CG77: 7 | CM77: 10 | CP77: 8 | CT77: 6 | DD77: 5 | DF77: 8 | DH77: 8 | DJ77: 7 | DM77: 6 | DQ77: 8 | DT77: 8 | DU77: 8 | DY77: 10 | ED77: 853.96 | EE77: 297 | EF77: 38 | EG77: =IF(EF77 > 0,EE77/EF77,0) -> 7.815789474 | EH77: =MIN($F77:EC77) -> 5 | EI77: 66
A78: 67 | B78: Головина Евгения Павловна | C78: 475500628 | D78: БЖУР133 | E78: Журналистика | F78: 9 | I78: 8 | N78: 8 | T78: 8 | Y78: 4 | AC78: 7 | AD78: 7 | AE78: 10 | AH78: 7 | AL78: 8 | AR78: 5 | AU78: 7 | AZ78: 6 | BD78: 8 | BK78: 9 | BN78: 9 | BO78: 8 | BP78: 10 | BT78: 9 | BW78: 8 | BX78: 6 | BY78: 6 | BZ78: 9 | CC78: 5 | CE78: 8 | CG78: 6 | CM78: 10 | CP78: 9 | CT78: 8 | DD78: 8 | DF78: 8 | DH78: 10 | DJ78: 9 | DM78: 10 | DQ78: 9 | DT78: 7 | DU78: 8 | DV78: 7 | DY78: 10 | ED78: 851.47 | EE78: 308 | EF78: 39 | EG78: =IF(EF78 > 0,EE78/EF78,0) -> 7.897435897 | EH78: =MIN($F78:EC78) -> 4 | EI78: 67
A79: 68 | B79: Шевелёва Кристина Дмитриевна | C79: 475561559 | D79: БЖУР132 | E79: Журналистика | F79: 9 | I79: 9 | N79: 6 | T79: 8 | Y79: 8 | AC79: 9 | AD79: 8 | AE79: 10 | AH79: 9 | AL79: 8 | AR79: 1 | AU79: 6 | AZ79: 5 | BB79: 6 | BD79: 7 | BN79: 6 | BO79: 8 | BP79: 10 | BT79: 10 | BW79: 7 | BX79: 8 | BY79: 7 | BZ79: 7 | CC79: 7 | CE79: 7 | CG79: 7 | CM79: 10 | CP79: 8 | CT79: 8 | DD79: 6 | DF79: 6 | DG79: 5 * | DH79: 6 | DJ79: 6 | DN79: 7 | DO79: 9 | DQ79: 8 | DS79: 6 | DU79: 9 | DY79: 10 | ED79: 846.04 | EE79: 297 | EF79: 40 | EG79: =IF(EF79 > 0,EE79/EF79,0) -> 7.425 | EH79: =MIN($F79:EC79) -> 1 | EI79: 68
A80: 69 | B80: Немкова Екатерина Дмитриевна | C80: 580462633 | D80: БЖУР131 | E80: Журналистика | F80: нет оценки | I80: 9 | N80: нет оценки | S80: 8 | AB80: 4 | AC80: 10 | AD80: 8 | AG80: 10 | AH80: 10 | AO80: 5 | AU80: 7 | AV80: 5 | AY80: 10 | AZ80: 7 | BD80: 7 | BE80: 6 | BG80: 6 | BJ80: 4 | BK80: 8 | BL80: 8 | BO80: 7 | BQ80: 10 | BW80: 7 | BX80: 10 | BY80: 4 | BZ80: 6 | CC80: 8 | CE80: 9 | CG80: 7 | CM80: 10 | CR80: 8 | CT80: 8 | DD80: 8 | DF80: 4 | DH80: 6 | DJ80: 5 | DN80: 6 | DO80: 9 | DR80: 4 | DU80: 9 | DY80: 10 | EB80: 9 | ED80: 845.1 | EE80: 296 | EF80: 40 | EG80: =IF(EF80 > 0,EE80/EF80,0) -> 7.4 | EH80: =MIN($F80:EC80) -> 4 | EI80: 69
A81: 70 | B81: Макарова Юлия Валерьевна | C81: 475565231 | D81: БЖУР134 | E81: Журналистика | F81: 9 | I81: 8 | N81: 7 | Q81: 7 | Y81: 7 | AC81: 9 | AD81: 10 | AE81: 10 | AH81: 8 | AR81: 4 | AU81: 5 | AZ81: 7 | BB81: 6 | BC81: 6 | BD81: 7 | BN81: 4 | BO81: 6 | BP81: 10 | BT81: 8 | BW81: 8 | BX81: 10 | BY81: 6 | BZ81: 4 | CC81: 7 | CE81: 9 | CG81: 6 | CM81: 10 | CP81: 8 | CT81: 7 | DD81: 6 | DF81: 7 | DH81: 10 | DJ81: 6 | DM81: 7 | DO81: 9 | DQ81: 8 | DS81: 9 | DU81: 9 | DY81: 10 | ED81: 843.17 | EE81: 294 | EF81: 39 | EG81: =IF(EF81 > 0,EE81/EF81,0) -> 7.538461538 | EH81: =MIN($F81:EC81) -> 4 | EI81: 70
A82: 71 | B82: Еремина Анастасия Алексеевна | C82: 475500939 | D82: БЖУР133 | E82: Журналистика | F82: 9 | I82: 9 | P82: 8 | V82: 7 | AA82: 8 | AC82: 8 | AD82: 9 | AE82: 10 | AH82: 8 | AL82: 7 | AR82: 4 | AU82: 8 | AZ82: 6 | BB82: 8 | BD82: 10 | BN82: 7 | BO82: 8 | BP82: 10 | BT82: 10 | BW82: 7 | BX82: 6 | BY82: 7 | BZ82: 8 | CC82: 6 | CE82: 9 | CG82: 6 | CM82: 10 | CP82: 7 | CT82: 7 | DD82: 5 | DF82: 4 | DH82: 6 | DJ82: 9 | DM82: 6 | DQ82: 9 | DS82: 9 | DT82: 6 | DU82: 8 | DY82: 10 | ED82: 840.4 | EE82: 299 | EF82: 39 | EG82: =IF(EF82 > 0,EE82/EF82,0) -> 7.666666667 | EH82: =MIN($F82:EC82) -> 4 | EI82: 71
A83: 72 | B83: Афян Мария Геннадьевна | C83: 475562419 | D83: БЖУР133 | E83: Журналистика | F83: 9 | I83: 10 | N83: 5 | T83: 7 | Y83: 6 | AC83: 8 | AD83: 8 | AE83: 10 | AH83: 8 | AL83: 8 | AR83: н/я | AU83: 6 | AZ83: 7 | BD83: 7 | BJ83: 5 | BN83: 6 | BO83: 9 | BP83: 10 | BT83: 8 | BW83: 7 | BX83: 7 | BY83: 4 | BZ83: 6 | CC83: 5 | CE83: 7 | CG83: 5 | CM83: 10 | CP83: 8 | CT83: 7 | DA83: 7 | DD83: 8 | DF83: 5 | DG83: 5 * | DH83: 7 | DJ83: 7 | DN83: 9 | DQ83: 9 | DT83: 10 | DU83: 8 | DY83: 10 | ED83: 832.98 | EE83: 288 | EF83: 39 | EG83: =IF(EF83 > 0,EE83/EF83,0) -> 7.384615385 | EH83: =MIN($F83:EC83) -> 4 | EI83: 72
A84: 73 | B84: Аветисян Виолетта Александровна | C84: 475557752 | D84: БЖУР131 | E84: Журналистика | F84: 10 | I84: 4 | N84: 5 | T84: 6 | Y84: 5 | AC84: 7 | AD84: 8 | AE84: 10 | AH84: 9 | AN84: 7 | AT84: 4 | AU84: 6 | AZ84: 7 | BB84: 7 | BD84: 6 | BN84: 6 | BO84: 9 | BP84: 10 | BT84: 7 | BW84: 7 | BX84: 10 | BY84: 5 | BZ84: 7 | CC84: 5 | CE84: 9 | CG84: 7 | CM84: 10 | CP84: 8 | CT84: 7 | DB84: 6 | DD84: 8 | DF84: 5 | DH84: 6 | DJ84: 9 | DM84: 7 | DO84: 9 | DQ84: 8 | DS84: 7 | DU84: 9 | DY84: 10 | ED84: 832.91 | EE84: 292 | EF84: 40 | EG84: =IF(EF84 > 0,EE84/EF84,0) -> 7.3 | EH84: =MIN($F84:EC84) -> 4 | EI84: 73
A85: 74 | B85: Маркова Кристина Алексеевна | C85: 475503059 | D85: БЖУР134 | E85: Журналистика | F85: 9 | I85: 9 | N85: 9 | T85: 9 | Y85: 7 | AC85: 9 | AD85: 10 | AE85: 10 | AH85: 9 | AL85: 8 | AT85: 5 | AU85: 6 | AZ85: 6 | BB85: 10 | BD85: 8 | BN85: 5 | BO85: 10 | BP85: 10 | BT85: 9 | BW85: 6 | BX85: 10 | BY85: 4 | BZ85: 5 | CC85: 9 | CE85: 7 | CG85: нет оценки | CM85: 10 | CP85: 7 | CT85: 6 | DB85: 5 | DD85: 6 | DF85: 5 | DH85: 8 | DJ85: 9 | DK85: 7 | DM85: 7 | DQ85: 8 | DU85: 10 | DY85: 10 | ED85: 831.48 | EE85: 297 | EF85: 38 | EG85: =IF(EF85 > 0,EE85/EF85,0) -> 7.815789474 | EH85: =MIN($F85:EC85) -> 4 | EI85: 74
A86: 75 | B86: Муратова Анастасия Александровна | C86: 481497357 | D86: БЖУР131 | E86: Журналистика | F86: 9 | I86: 9 | N86: 8 | T86: 8 | AA86: 6 | AC86: 9 | AD86: 9 | AE86: 10 | AH86: 9 | AN86: 7 | AR86: 5 | AU86: 7 | AZ86: 6 | BB86: 5 | BD86: 8 | BN86: 8 | BO86: 9 | BP86: 10 | BT86: 9 | BW86: 6 | BX86: 9 | BY86: 7 | BZ86: 7 | CC86: 4 | CE86: 9 | CG86: 8 | CM86: 10 | CP86: 8 | CT86: 8 | DD86: 8 | DF86: 7 | DH86: 6 | DJ86: 9 | DM86: 7 | DQ86: 9 | DT86: 10 | DU86: 9 | DY86: 10 | ED86: 831.13 | EE86: 302 | EF86: 38 | EG86: =IF(EF86 > 0,EE86/EF86,0) -> 7.947368421 | EH86: =MIN($F86:EC86) -> 4 | EI86: 75
A87: 76 | B87: Винокур Дана Витальевна | C87: 475560846 | D87: БЖУР132 | E87: Журналистика | F87: 9 | I87: 5 | N87: 6 | T87: 9 | Y87: 6 | AC87: 9 | AD87: 8 | AE87: 10 | AH87: 9 | AL87: 8 | AR87: 4 | AU87: 7 | AZ87: 7 | BB87: 7 | BD87: 6 | BN87: 6 | BO87: 9 | BP87: 10 | BT87: 10 | BW87: 10 | BX87: 10 | BY87: 6 | BZ87: 5 | CC87: 7 | CE87: 8 | CG87: 6 | CM87: 10 | CP87: 9 | CT87: 6 | DB87: 7 | DD87: 5 | DF87: 6 | DH87: 7 | DJ87: 7 | DM87: 7 | DQ87: 8 | DT87: 8 | DU87: 9 | DY87: 10 | ED87: 828.34 | EE87: 296 | EF87: 39 | EG87: =IF(EF87 > 0,EE87/EF87,0) -> 7.58974359 | EH87: =MIN($F87:EC87) -> 4 | EI87: 76
A88: 77 | B88: Волчек Никита Алексеевич | C88: 475561255 | D88: БЖУР132 | E88: Журналистика | F88: 9 | O88: 6 | U88: 6 | Z88: 6 | AC88: 9 | AD88: 9 | AE88: 10 | AH88: 7 | AM88: 8 | AS88: 8 | AU88: 4 | AZ88: 7 | BD88: 10 | BJ88: 8 | BN88: 10 | BO88: 10 | BP88: 10 | BS88: 9 | BT88: 10 | BW88: 7 | BX88: 10 | BY88: 5 | BZ88: 3 | CC88: 6 | CE88: 8 | CG88: 6 | CM88: 10 | CP88: 8 | CT88: 9 | DD88: 8 | DF88: 5 | DH88: 8 | DJ88: 9 | DN88: 6 | DO88: 9 | DQ88: 8 | DS88: 7 | DT88: 8 | DU88: 10 | DY88: 10 | ED88: 827.43 | EE88: 316 | EF88: 40 | EG88: =IF(EF88 > 0,EE88/EF88,0) -> 7.9 | EH88: =MIN($F88:EC88) -> 3 | EI88: 77
A89: 78 | B89: Устюжанинова Анна Александровна | C89: 475499184 | D89: БЖУР132 | E89: Журналистика | F89: 9 | I89: 9 | P89: 6 | V89: 10 | AA89: 6 | AC89: 9 | AD89: 8 | AE89: 10 | AH89: 8 | AL89: 9 | AR89: 4 | AU89: 7 | AZ89: 7 | BD89: 8 | BK89: 9 | BN89: 7 | BO89: 10 | BP89: 10 | BT89: 10 | BW89: 8 | BX89: 9 | BY89: 7 | BZ89: 6 | CC89: 9 | CE89: 8 | CG89: 6 | CM89: 10 | CP89: 8 | CT89: 7 | DD89: 5 | DF89: 6 | DH89: 7 | DJ89: 9 | DM89: 6 | DO89: 7 | DQ89: 8 | DU89: 8 | DY89: 10 | ED89: 825.3 | EE89: 300 | EF89: 38 | EG89: =IF(EF89 > 0,EE89/EF89,0) -> 7.894736842 | EH89: =MIN($F89:EC89) -> 4 | EI89: 78
A90: 79 | B90: Нарушевич Анастасия Александровна | C90: 475565551 | D90: БЖУР134 | E90: Журналистика | F90: 9 | I90: 8 | N90: 8 | T90: 7 | Y90: 6 | AC90: 9 | AD90: 9 | AE90: 10 | AH90: 9 | AL90: 7 | AR90: 4 | AU90: 6 | AZ90: 7 | BB90: 8 | BD90: 8 | BN90: 6 | BO90: 9 | BP90: 10 | BT90: 9 | BW90: 5 | BX90: 10 | BY90: 5 | BZ90: 5 | CC90: 8 | CE90: 8 | CG90: 4 | CM90: 10 | CP90: 7 | CT90: 7 | DD90: 5 | DF90: 8 | DH90: 10 | DJ90: 6 | DM90: 5 | DQ90: 8 | DS90: 6 | DT90: 7 | DU90: 10 | DY90: 10 | ED90: 824.87 | EE90: 293 | EF90: 39 | EG90: =IF(EF90 > 0,EE90/EF90,0) -> 7.512820513 | EH90: =MIN($F90:EC90) -> 4 | EI90: 79
A91: 80 | B91: Стешенкова Александра Евгеньевна | C91: 475565869 | D91: БЖУР134 | E91: Журналистика | F91: 9 | I91: 8 | N91: 7 | T91: 7 | Y91: 4 | AC91: 9 | AD91: 10 | AE91: 10 | AH91: 10 | AL91: 8 | AR91: 4 | AU91: 6 | AZ91: 8 | BD91: 9 | BJ91: 8 | BN91: 10 | BO91: 8 | BP91: 10 | BT91: 10 | BW91: 7 | BX91: 8 | BY91: 6 | BZ91: 5 | CC91: 7 | CE91: 10 | CG91: 5 | CM91: 10 | CP91: 7 | CT91: 6 | DD91: 5 | DF91: 7 | DH91: 9 | DJ91: 8 | DM91: 7 | DQ91: 8 | DT91: 8 | DU91: 8 | DY91: 10 | ED91: 821.47 | EE91: 296 | EF91: 38 | EG91: =IF(EF91 > 0,EE91/EF91,0) -> 7.789473684 | EH91: =MIN($F91:EC91) -> 4 | EI91: 80
A92: 81 | B92: Люля Арина Артемовна | C92: 475563046 | D92: БЖУР133 | E92: Журналистика | F92: 9 | I92: 8 | N92: 6 | T92: 8 | Y92: 4 | AC92: 9 | AD92: 9 | AE92: 10 | AH92: 8 | AL92: 8 | AR92: 3 | AU92: 6 | AZ92: 7 | BD92: 7 | BJ92: 6 | BN92: 6 | BO92: 8 | BP92: 10 | BT92: 8 | BW92: 8 | BX92: 8 | BY92: 5 | BZ92: 4 | CC92: 5 | CE92: 4 | CG92: 5 | CM92: 10 | CP92: 9 | CT92: 6 | DD92: 7 | DF92: 4 | DG92: 5 * | DH92: 6 | DJ92: 10 | DN92: 6 | DQ92: 8 | DS92: 6 | DT92: 7 | DU92: 8 | DY92: 10 | ED92: 818.64 | EE92: 281 | EF92: 40 | EG92: =IF(EF92 > 0,EE92/EF92,0) -> 7.025 | EH92: =MIN($F92:EC92) -> 3 | EI92: 81
A93: 82 | B93: Павлова Алиса Павловна | C93: 481500392 | D93: БЖУР132 | E93: Журналистика | F93: 9 | I93: 9 | N93: 8 | T93: 7 | AA93: 7 | AC93: 5 | AD93: 8 | AE93: 10 | AH93: 8 | AN93: 7 | AR93: 4 | AU93: 6 | AZ93: 7 | BD93: 7 | BK93: 10 | BN93: 8 | BO93: 5 | BP93: 10 | BT93: 10 | BW93: 9 | BX93: 9 | BY93: 5 | BZ93: 7 | CC93: 7 | CE93: 8 | CG93: 6 | CM93: 10 | CP93: 8 | CT93: 7 | DD93: 6 | DF93: 6 | DH93: 7 | DJ93: 8 | DK93: 8 | DM93: 5 | DQ93: 8 | DS93: 8 | DU93: 8 | DY93: 10 | ED93: 811.14 | EE93: 295 | EF93: 39 | EG93: =IF(EF93 > 0,EE93/EF93,0) -> 7.564102564 | EH93: =MIN($F93:EC93) -> 4 | EI93: 82
A94: 83 | B94: Животнёв Владислав Николаевич | C94: 475564933 | D94: БЖУР134 | E94: Журналистика | F94: 9 | I94: 9 | N94: 8 | T94: 8 | Y94: 7 | AC94: 9 | AD94: 10 | AE94: 10 | AH94: 9 | AL94: 8 | AR94: 4 | AU94: 6 | AZ94: 6 | BD94: 7 | BJ94: 6 | BN94: 9 | BO94: 9 | BP94: 10 | BT94: 10 | BW94: 7 | BX94: 10 | BY94: 5 | BZ94: 5 | CC94: 6 | CE94: 9 | CG94: 5 | CM94: 10 | CP94: 8 | CT94: 9 | DD94: 6 | DF94: 6 | DH94: 7 | DJ94: 9 | DM94: 5 | DO94: 8 | DQ94: 9 | DU94: 8 | DY94: 10 | ED94: 808.63 | EE94: 296 | EF94: 38 | EG94: =IF(EF94 > 0,EE94/EF94,0) -> 7.789473684 | EH94: =MIN($F94:EC94) -> 4 | EI94: 83
A95: 84 | B95: Кистерев Алексей Валерьевич | C95: 475562897 | D95: БЖУР133 | E95: Журналистика | F95: 10 | I95: 10 | N95: 5 | X95: 8 | Y95: 4 | AC95: 7 | AD95: 9 | AG95: 6 | AH95: 6 | AL95: 8 | AR95: 1 | AU95: 6 | AZ95: 6 | BB95: 9 | BD95: 8 | BN95: 4 | BO95: 9 | BQ95: 10 | BT95: 10 | BW95: 10 | BX95: 6 | BY95: 4 | CC95: 7 | CE95: 5 | CG95: 4 | CM95: 10 | CP95: 8 | CT95: 4 | DA95: 7 | DD95: 7 | DF95: 4 | DG95: 5 | DJ95: 7 | DK95: 8 | DN95: 6 | DQ95: 8 | DU95: 5 | DY95: 10 | ED95: 806.79 | EE95: 261 | EF95: 38 | EG95: =IF(EF95 > 0,EE95/EF95,0) -> 6.868421053 | EH95: =MIN($F95:EC95) -> 1 | EI95: 84
A96: 85 | B96: Бурцева Анастасия Юрьевна | C96: 475560670 | D96: БЖУР132 | E96: Журналистика | F96: 9 | I96: 9 | N96: 7 | T96: нет оценки | Y96: 8 | AC96: 8 | AD96: 9 | AE96: 10 | AH96: 8 | AN96: 8 | AT96: 4 | AU96: 4 | AZ96: 5 | BB96: 7 | BD96: 7 | BN96: 4 | BO96: 10 | BP96: 10 | BT96: 10 | BW96: 9 | BX96: 10 | BY96: 6 | BZ96: 5 | CC96: 8 | CE96: 9 | CG96: 6 | CM96: 10 | CP96: 8 | CT96: 7 | DA96: 5 | DD96: 7 | DF96: 5 | DH96: 6 | DJ96: 9 | DM96: 7 | DQ96: 9 | DT96: 7 | DU96: 10 | DY96: 10 | ED96: 801.8 | EE96: 290 | EF96: 38 | EG96: =IF(EF96 > 0,EE96/EF96,0) -> 7.631578947 | EH96: =MIN($F96:EC96) -> 4 | EI96: 85
A97: 86 | B97: Зубкевич Андрей Вадимович | C97: 481496924 | D97: БЖУР131 | E97: Журналистика | F97: 9 | I97: 9 | N97: 6 | T97: 9 | AA97: 8 | AC97: 7 | AD97: 8 | AE97: 10 | AH97: 7 | AN97: 10 | AR97: 7 | AU97: 8 | AZ97: 5 | BD97: 10 | BK97: 9 | BN97: 7 | BO97: 9 | BP97: 10 | BT97: 9 | BW97: 8 | BX97: 7 | BY97: 8 | BZ97: 5 | CC97: 9 | CE97: 8 | CG97: 7 | CM97: 10 | CP97: 8 | CT97: 6 | DD97: 5 | DF97: 4 | DH97: 6 | DJ97: 6 | DM97: 5 | DQ97: 5 | DU97: 9 | DV97: 5 | DY97: 10 | ED97: 784.75 | EE97: 288 | EF97: 38 | EG97: =IF(EF97 > 0,EE97/EF97,0) -> 7.578947368 | EH97: =MIN($F97:EC97) -> 4 | EI97: 86
A98: 87 | B98: Немченко Илья Михайлович | C98: 481500235 | D98: БЖУР132 | E98: Журналистика | F98: 9 | I98: 5 | N98: 7 | T98: 9 | AA98: 5 | AC98: 8 | AD98: 8 | AE98: 10 | AH98: 7 | AN98: 9 | AR98: 5 | AU98: 6 | AZ98: 5 | BD98: 8 | BK98: 10 | BN98: 5 | BO98: 10 | BP98: 10 | BT98: 9 | BW98: 7 | BX98: 8 | BY98: 5 | BZ98: 4 | CC98: 8 | CE98: 6 | CG98: 5 | CM98: 10 | CP98: 8 | CT98: 6 | DA98: 5 | DD98: 7 | DF98: 4 | DH98: 7 | DJ98: 4 | DM98: 5 | DO98: 5 | DQ98: 8 | DS98: 5 | DU98: 8 | DY98: 10 | ED98: 783.59 | EE98: 280 | EF98: 40 | EG98: =IF(EF98 > 0,EE98/EF98,0) -> 7 | EH98: =MIN($F98:EC98) -> 4 | EI98: 87
A99: 88 | B99: Буримова Александра Сергеевна | C99: 475560500 | D99: БЖУР132 | E99: Журналистика | F99: 9 | I99: 8 | P99: 7 | V99: 8 | AA99: 8 | AC99: 9 | AD99: 8 | AE99: 10 | AH99: 9 | AN99: 7 | AT99: 4 | AU99: 6 | AZ99: 6 | BD99: 7 | BJ99: 5 | BN99: 7 | BO99: 9 | BP99: 10 | BT99: 10 | BW99: 8 | BX99: 10 | BY99: 4 | BZ99: 7 | CC99: 6 | CE99: 7 | CG99: 6 | CM99: 10 | CP99: 8 | CT99: 7 | DB99: 4 | DD99: 4 | DF99: 5 | DH99: 8 | DJ99: 6 | DK99: 8 | DM99: 4 | DQ99: 8 | DU99: 9 | DY99: 10 | ED99: 780.67 | EE99: 286 | EF99: 39 | EG99: =IF(EF99 > 0,EE99/EF99,0) -> 7.333333333 | EH99: =MIN($F99:EC99) -> 4 | EI99: 88
A100: 89 | B100: Джгаркава Нино Звиадиевна | C100: 475496974 | D100: БЖУР131 | E100: Журналистика | F100: 8 | I100: 10 | N100: 8 | T100: 7 | AA100: 8 | AC100: 8 | AD100: 8 | AE100: 10 | AH100: 7 | AN100: 6 | AR100: 4 | AU100: 6 | AZ100: 6 | BB100: 7 | BD100: 7 | BN100: 6 | BO100: 8 | BP100: 10 | BT100: 10 | BW100: 6 | BX100: 10 | BY100: 4 | BZ100: 6 | CC100: 6 | CE100: 9 | CG100: 5 | CM100: 10 | CP100: 7 | CT100: 7 | DD100: 6 | DF100: 4 | DH100: 6 | DJ100: 8 | DM100: 6 | DQ100: 8 | DT100: 7 | DU100: 9 | DY100: 10 | ED100: 747.52 | EE100: 278 | EF100: 38 | EG100: =IF(EF100 > 0,EE100/EF100,0) -> 7.315789474 | EH100: =MIN($F100:EC100) -> 4 | EI100: 89
A101: 90 | B101: Масалова Анна Владиславовна | C101: 752764364 | D101: БЖУР131 | E101: Журналистика | I101: 9 | K101: 5 | M101: 7 | W101: 6 | AC101: нет оценки | AD101: нет оценки | AF101: 10 | AI101: 8 | AP101: 8 | AW101: 7 | AY101: нет оценки | AZ101: 7 | BD101: 6 | BF101: 9 | BI101: 9 | BO101: 8 | BR101: 10 | BT101: нет оценки | BV101: 8 | BX101: нет оценки | BY101: 6 | CG101: нет оценки | CL101: 8 | CM101: 10 | CP101: 7 | CT101: 8 | DB101: 9 | DD101: 4 | DF101: 5 | DI101: 6 | DJ101: 7 | DN101: 7 | DQ101: 8 | DS101: 8 | DT101: 8 | DU101: 8 | DV101: 8 | DY101: 10 | ED101: 734.5 | EE101: 244 | EF101: 32 | EG101: =IF(EF101 > 0,EE101/EF101,0) -> 7.625 | EH101: =MIN($F101:EC101) -> 4 | EI101: 90
A102: 91 | B102: Лымарева Мария Андреевна | C102: 481501825 | D102: БЖУР133 | E102: Журналистика | F102: 9 | I102: 8 | N102: 6 | T102: 7 | AA102: 8 | AC102: 8 | AD102: 9 | AE102: 10 | AH102: 8 | AN102: 7 | AR102: 4 | AU102: 6 | AZ102: 8 | BD102: 8 | BK102: 10 | BN102: 6 | BO102: 8 | BP102: 10 | BT102: 7 | BW102: 7 | BX102: 6 | BY102: 4 | BZ102: 8 | CC102: 4 | CE102: 7 | CG102: 5 | CM102: 10 | CP102: 8 | CT102: 4 | DD102: 7 | DF102: 5 | DH102: 7 | DJ102: 6 | DK102: 8 | DM102: 6 | DQ102: 7 | DU102: 5 | DY102: 10 | ED102: 730 | EE102: 271 | EF102: 38 | EG102: =IF(EF102 > 0,EE102/EF102,0) -> 7.131578947 | EH102: =MIN($F102:EC102) -> 4 | EI102: 91
A103: 92 | B103: Белобеева Ангелина Анатольевна | C103: 475557886 | D103: БЖУР131 | E103: Журналистика | F103: 8 | I103: 8 | N103: 4 | T103: 8 | Y103: 4 | AC103: 9 | AD103: 7 | AE103: 10 | AH103: 7 | AN103: 8 | AT103: 1 | AU103: 6 | AZ103: 6 | BD103: 6 | BJ103: 5 | BN103: 5 | BO103: 8 | BP103: 10 | BT103: 6 | BW103: 6 | BX103: 7 | BY103: 4 | BZ103: 3 * | CC103: 5 | CE103: 8 | CG103: 4 | CM103: 10 | CP103: 7 | CT103: 5 | DB103: 5 | DD103: 6 | DF103: 4 | DG103: 6 | DH103: 6 | DJ103: 4 | DN103: 5 | DQ103: 9 | DT103: 5 | DU103: 9 | DY103: 10 | ED103: 725.26 | EE103: 254 | EF103: 40 | EG103: =IF(EF103 > 0,EE103/EF103,0) -> 6.35 | EH103: =MIN($F103:EC103) -> 1 | EI103: 92
A104: 93 | B104: Маммаева Фарида Сулеймановна | C104: 475558344 | D104: БЖУР131 | E104: Журналистика | F104: 7 | I104: 8 | N104: 7 | T104: 7 | Y104: 6 | AC104: 8 | AD104: 7 | AE104: 10 | AH104: 6 | AN104: 6 | AT104: 4 | AU104: 4 | AZ104: 6 | BD104: 7 | BJ104: 5 | BN104: 6 | BO104: 7 | BP104: 10 | BT104: 7 | BW104: 6 | BX104: 10 | BY104: 4 | BZ104: 4 | CC104: 7 | CE104: 8 | CG104: 5 | CM104: 10 | CP104: 7 | CT104: 5 | DB104: 4 | DD104: 7 | DF104: 4 | DH104: 6 | DJ104: 7 | DM104: 4 | DO104: 7 | DQ104: 8 | DU104: 9 | DY104: 10 | ED104: 709.21 | EE104: 260 | EF104: 39 | EG104: =IF(EF104 > 0,EE104/EF104,0) -> 6.666666667 | EH104: =MIN($F104:EC104) -> 4 | EI104: 93
A105: 94 | B105: Гранкова Ксения Сергеевна | C105: 475561427 | D105: БЖУР132 | E105: Журналистика | F105: 9 | I105: 6 | P105: 5 | T105: 8 | AA105: 5 | AC105: 4 | AD105: 8 | AE105: 10 | AH105: 7 | AL105: 9 | AT105: 0 | AU105: 5 | AZ105: 5 | BD105: 6 | BJ105: 4 | BN105: 4 | BO105: 8 | BP105: 10 | BT105: 6 | BW105: 8 | BX105: 10 | BY105: 4 | BZ105: 7 | CC105: 7 | CE105: 5 | CG105: 4 | CM105: 10 | CP105: 8 | CT105: 6 | DD105: 4 | DF105: 5 | DG105: 5 * | DH105: 5 | DJ105: 6 | DK105: 10 | DN105: 4 | DQ105: 6 | DU105: 8 | DY105: 10 | ED105: 691.9 | EE105: 251 | EF105: 39 | EG105: =IF(EF105 > 0,EE105/EF105,0) -> 6.435897436 | EH105: =MIN($F105:EC105) -> 0 | EI105: 94
A106: 95 | B106: Досий Зоряна Владимировна | C106: 475564787 | D106: БЖУР134 | E106: Журналистика | F106: 8 | I106: 7 | N106: 4 | Q106: 5 | Y106: 5 | AC106: 6 | AD106: 5 | AE106: 10 | AH106: 6 | AR106: 4 | AU106: 6 | AZ106: 6 | BC106: 5 | BD106: 7 | BJ106: 5 | BN106: 4 | BO106: 7 | BP106: 10 | BT106: 10 | BW106: 7 | BX106: 5 | BY106: 4 | BZ106: 3 | CC106: 4 | CE106: 5 | CG106: 5 | CM106: 10 | CP106: 7 | CT106: 5 | DB106: 6 | DD106: 4 | DF106: 4 | DH106: 7 | DJ106: 7 | DK106: 6 | DN106: 6 | DQ106: 8 | DU106: 9 | DY106: 10 | ED106: 681.79 | EE106: 242 | EF106: 39 | EG106: =IF(EF106 > 0,EE106/EF106,0) -> 6.205128205 | EH106: =MIN($F106:EC106) -> 3 | EI106: 95
A107: 96 | B107: Алешкина Александрина Александровна | C107: 475564380 | D107: БЖУР134 | E107: Журналистика | I107: 4 | N107: нет оценки | AC107: нет оценки | AD107: 8 | AG107: 10 | AH107: н/я (ув) | AU107: 4 | AZ107: 6 | BC107: 5 | BD107: 5 | BJ107: 7 | BN107: 4 | BO107: 8 | BP107: 10 | BT107: 10 | BW107: 6 | BX107: 10 | BY107: 5 | BZ107: 6 | CC107: 5 | CE107: 8 | CG107: 6 | CO107: 10 | CQ107: 6 | CT107: 6 | DD107: 5 | DF107: 4 | DG107: 4 | DH107: 8 | DJ107: 9 | DK107: 6 | DN107: 5 | DQ107: 8 | DU107: 10 | DY107: 10 | ED107: 619.88 | EE107: 218 | EF107: 32 | EG107: =IF(EF107 > 0,EE107/EF107,0) -> 6.8125 | EH107: =MIN($F107:EC107) -> 4 | EI107: 96
A108: 97 | B108: Тесфайе Анна-Мария Синтайе | C108: 796834861 | D108: БЖУР131 | E108: Журналистика | G108: 4 | H108: 10 | J108: 4 | L108: 4 | AC108: нет оценки | AD108: нет оценки | AG108: 10 | AQ108: 8 | AR108: 4 | BA108: 4 | BD108: 8 | BJ108: 6 | BM108: 4 | BN108: 7 | BO108: 5 | BQ108: 10 | BU108: 10 | CB108: 4 | CE108: нет оценки | CH108: 4 | CI108: 8 | CJ108: 6 | CK108: 7 | CO108: 10 | CP108: 4 | CT108: нет оценки | CX108: 4 | DE108: 4 | DF108: нет оценки | DJ108: 9 | DN108: н/я (ув) | DT108: 4 | DU108: 8 | DW108: 4 | DX108: 4 | DZ108: 10 | ED108: 609.98 | EE108: 188 | EF108: 30 | EG108: =IF(EF108 > 0,EE108/EF108,0) -> 6.266666667 | EH108: =MIN($F108:EC108) -> 4 | EI108: 97
A109: 98 | B109: Глазунов Никита Сергеевич | C109: 481498934 | D109: БЖУР132 | E109: Журналистика | F109: 6 | I109: 6 | R109: 6 | AD109: нет оценки | AF109: 10 | AN109: 7 | AU109: 4 | AY109: нет оценки * | AZ109: 4 | BD109: 6 | BK109: 7 | BN109: 4 | BO109: 7 | BR109: 10 | BT109: 8 | BW109: 9 | BX109: 5 | BY109: 6 | BZ109: 7 | CA109: нет оценки | CC109: 6 | CE109: 5 | CF109: нет оценки | CG109: 6 | CN109: 10 | CP109: 8 | CT109: 6 | DD109: 6 | DF109: 6 | DG109: 4 | DH109: 6 | DJ109: 6 | DN109: 6 | DQ109: 5 | DT109: 6 | DU109: 8 | EA109: 10 | ED109: 574.76 | EE109: 216 | EF109: 33 | EG109: =IF(EF109 > 0,EE109/EF109,0) -> 6.545454545 | EH109: =MIN($F109:EC109) -> 4 | EI109: 98

Sheet Данные (hidden)
A1: ID | B1: Оценка из 10 баллов | C1: Группа | D1: Студент | E1: Фамилия | F1: Имя | G1: Отчество | H1: Номер студенческого билета | I1: Строка учебного плана | J1: Кумулятивных кредитов за испытание | K1: Вид испытания | L1: Календарный период по плану | M1: Неявка | N1: В кумулятивный рейтинг | O1: Оценка зачет/назачет | P1: Является бюджетным | Q1: Учебный план | R1: Вид записи РУП | S1: Вид дисциплины по ИУП | T1: Номер Row
A2: 1 | B2: 2 | C2: 3 | D2: 4 | E2: 5 | F2: 6 | G2: 7 | H2: 8 | I2: 9 | J2: 10 | K2: 11 | L2: 12 | M2: 13 | N2: 14 | O2: 15 | P2: 16 | Q2: 17 | R2: 18 | S2: 19 | T2: 20
A3: 475497181 | B3: 9 | C3: БЖУР131 | D3: 475497099 | E3: Дымчишина | F3: Александра | G3: Юрьевна | H3: 1301219032 | I3: Информационные технологии подготовки печатных и электронных СМИ | J3: 3 | K3: Экзамен | L3: 2013/2014 учебный год 1 модуль | N3: 27 | O3: 1 | P3: 1 | Q3: 136392534 | R3: 2098 | T3: Журналистика | U3: =MATCH(D3,Отчет!$C:$C,0) -> 53
A4: 481504396 | B4: 9 | C4: БЖУР134 | D4: 481504306 | E4: Кокорева | F4: Мария | G4: Викторовна | H4: 1311219040 | I4: Информационные технологии подготовки печатных и электронных СМИ | J4: 3 | K4: Экзамен | L4: 2013/2014 учебный год 1 модуль | N4: 27 | O4: 1 | P4: 0 | Q4: 136392534 | R4: 2098 | T4: Журналистика | U4: =MATCH(D4,Отчет!$C:$C,0) -> 39
A5: 481504541 | B5: 9 | C5: БЖУР134 | D5: 481504458 | E5: Королева | F5: Ольга | G5: Викторовна | H5: 1311219044 | I5: Информационные технологии подготовки печатных и электронных СМИ | J5: 3 | K5: Экзамен | L5: 2013/2014 учебный год 1 модуль | N5: 27 | O5: 1 | P5: 0 | Q5: 136392534 | R5: 2098 | T5: Журналистика | U5: =MATCH(D5,Отчет!$C:$C,0) -> 12
A6: 481501650 | B6: 10 | C6: БЖУР133 | D6: 481501546 | E6: Атасунцев | F6: Александр | G6: Григорьевич | H6: 1311219004 | I6: Информационные технологии подготовки печатных и электронных СМИ | J6: 3 | K6: Экзамен | L6: 2013/2014 учебный год 1 модуль | N6: 30 | O6: 1 | P6: 0 | Q6: 136392534 | R6: 2098 | T6: Журналистика | U6: =MATCH(D6,Отчет!$C:$C,0) -> 51
A7: 481501933 | B7: 9 | C7: БЖУР133 | D7: 481501825 | E7: Лымарева | F7: Мария | G7: Андреевна | H7: 1311219052 | I7: Информационные технологии подготовки печатных и электронных СМИ | J7: 3 | K7: Экзамен | L7: 2013/2014 учебный год 1 модуль | N7: 27 | O7: 1 | P7: 0 | Q7: 136392534 | R7: 2098 | T7: Журналистика | U7: =MATCH(D7,Отчет!$C:$C,0) -> 102
A8: 481502069 | B8: 9 | C8: БЖУР133 | D8: 481501975 | E8: Молоствова | F8: Анна | G8: Александровна | H8: 1311219061 | I8: Информационные технологии подготовки печатных и электронных СМИ | J8: 3 | K8: Экзамен | L8: 2013/2014 учебный год 1 модуль | N8: 27 | O8: 1 | P8: 0 | Q8: 136392534 | R8: 2098 | T8: Журналистика | U8: =MATCH(D8,Отчет!$C:$C,0) -> 26
A9: 481500625 | B9: 9 | C9: БЖУР132 | D9: 481500535 | E9: Правдюк | F9: Анна | G9: Сергеевна | H9: 1311219075 | I9: Информационные технологии подготовки печатных и электронных СМИ | J9: 3 | K9: Экзамен | L9: 2013/2014 учебный год 1 модуль | N9: 27 | O9: 1 | P9: 0 | Q9: 136392534 | R9: 2098 | T9: Журналистика | U9: =MATCH(D9,Отчет!$C:$C,0) -> 13
A10: 481500782 | B10: 9 | C10: БЖУР132 | D10: 481500688 | E10: Ревоненко | F10: Анна | G10: Николаевна | H10: 1311219078 | I10: Информационные технологии подготовки печатных и электронных СМИ | J10: 3 | K10: Экзамен | L10: 2013/2014 учебный год 1 модуль | N10: 27 | O10: 1 | P10: 0 | Q10: 136392534 | R10: 2098 | T10: Журналистика | U10: =MATCH(D10,Отчет!$C:$C,0) -> 23
A11: 481500949 | B11: 9 | C11: БЖУР132 | D11: 481500835 | E11: Цегалко | F11: Яна | G11: Николаевна | H11: 1311219101 | I11: Информационные технологии подготовки печатных и электронных СМИ | J11: 3 | K11: Экзамен | L11: 2013/2014 учебный год 1 модуль | N11: 27 | O11: 1 | P11: 0 | Q11: 136392534 | R11: 2098 | T11: Журналистика | U11: =MATCH(D11,Отчет!$C:$C,0) -> 37
A12: 481499791 | B12: 9 | C12: БЖУР132 | D12: 481499652 | E12: Королькова | F12: Елизавета | G12: Дмитриевна | H12: 1311219045 | I12: Информационные технологии подготовки печатных и электронных СМИ | J12: 3 | K12: Экзамен | L12: 2013/2014 учебный год 1 модуль | N12: 27 | O12: 1 | P12: 0 | Q12: 136392534 | R12: 2098 | T12: Журналистика | U12: =MATCH(D12,Отчет!$C:$C,0) -> 33
A13: 481500174 | B13: 9 | C13: БЖУР132 | D13: 481500039 | E13: Лебедева | F13: Ксения | G13: Кирилловна | H13: 1311219048 | I13: Информационные технологии подготовки печатных и электронных СМИ | J13: 3 | K13: Экзамен | L13: 2013/2014 учебный год 1 модуль | N13: 27 | O13: 1 | P13: 0 | Q13: 136392534 | R13: 2098 | T13: Журналистика | U13: =MATCH(D13,Отчет!$C:$C,0) -> 31
A14: 481500339 | B14: 9 | C14: БЖУР132 | D14: 481500235 | E14: Немченко | F14: Илья | G14: Михайлович | H14: 1311219066 | I14: Информационные технологии подготовки печатных и электронных СМИ | J14: 3 | K14: Экзамен | L14: 2013/2014 учебный год 1 модуль | N14: 27 | O14: 1 | P14: 0 | Q14: 136392534 | R14: 2098 | T14: Журналистика | U14: =MATCH(D14,Отчет!$C:$C,0) -> 98
A15: 481500488 | B15: 9 | C15: БЖУР132 | D15: 481500392 | E15: Павлова | F15: Алиса | G15: Павловна | H15: 1311219071 | I15: Информационные технологии подготовки печатных и электронных СМИ | J15: 3 | K15: Экзамен | L15: 2013/2014 учебный год 1 модуль | N15: 27 | O15: 1 | P15: 0 | Q15: 136392534 | R15: 2098 | T15: Журналистика | U15: =MATCH(D15,Отчет!$C:$C,0) -> 93
A16: 481497573 | B16: 10 | C16: БЖУР131 | D16: 481497484 | E16: Нещадимова | F16: Дарья | G16: Викторовна | H16: 1311219067 | I16: Информационные технологии подготовки печатных и электронных СМИ | J16: 3 | K16: Экзамен | L16: 2013/2014 учебный год 1 модуль | N16: 30 | O16: 1 | P16: 0 | Q16: 136392534 | R16: 2098 | T16: Журналистика | U16: =MATCH(D16,Отчет!$C:$C,0) -> 32
A17: 604540966 | B17: 6 | C17: БЖУР132 | D17: 481498934 | E17: Глазунов | F17: Никита | G17: Сергеевич | H17: 116-24/12-036 | I17: Информационные технологии подготовки печатных и электронных СМИ | J17: 3 | K17: Экзамен | L17: 2013/2014 учебный год 1 модуль | N17: 18 | O17: 1 | P17: 0 | Q17: 136392534 | R17: 2098 | S17: ikFirst | T17: Журналистика | U17: =MATCH(D17,Отчет!$C:$C,0) -> 109
A18: 481499131 | B18: 9 | C18: БЖУР132 | D18: 481499019 | E18: Голованов | F18: Сергей | G18: Сергеевич | H18: 1311219022 | I18: Информационные технологии подготовки печатных и электронных СМИ | J18: 3 | K18: Экзамен | L18: 2013/2014 учебный год 1 модуль | N18: 27 | O18: 1 | P18: 0 | Q18: 136392534 | R18: 2098 | T18: Журналистика | U18: =MATCH(D18,Отчет!$C:$C,0) -> 76
A19: 481499609 | B19: 9 | C19: БЖУР132 | D19: 481499520 | E19: Королева | F19: Виолетта | G19: Николаевна | H19: 1311219043 | I19: Информационные технологии подготовки печатных и электронных СМИ | J19: 3 | K19: Экзамен | L19: 2013/2014 учебный год 1 модуль | N19: 27 | O19: 1 | P19: 0 | Q19: 136392534 | R19: 2098 | T19: Журналистика | U19: =MATCH(D19,Отчет!$C:$C,0) -> 61
A20: 481497052 | B20: 9 | C20: БЖУР131 | D20: 481496924 | E20: Зубкевич | F20: Андрей | G20: Вадимович | H20: 1311219037 | I20: Информационные технологии подготовки печатных и электронных СМИ | J20: 3 | K20: Экзамен | L20: 2013/2014 учебный год 1 модуль | N20: 27 | O20: 1 | P20: 0 | Q20: 136392534 | R20: 2098 | T20: Журналистика | U20: =MATCH(D20,Отчет!$C:$C,0) -> 97
A21: 481497332 | B21: 10 | C21: БЖУР131 | D21: 481497225 | E21: Морозова | F21: Николь | G21: Дмитриевна | H21: 1311219062 | I21: Информационные технологии подготовки печатных и электронных СМИ | J21: 3 | K21: Экзамен | L21: 2013/2014 учебный год 1 модуль | N21: 30 | O21: 1 | P21: 0 | Q21: 136392534 | R21: 2098 | T21: Журналистика | U21: =MATCH(D21,Отчет!$C:$C,0) -> 15
A22: 481497444 | B22: 9 | C22: БЖУР131 | D22: 481497357 | E22: Муратова | F22: Анастасия | G22: Александровна | H22: 1311219063 | I22: Информационные технологии подготовки печатных и электронных СМИ | J22: 3 | K22: Экзамен | L22: 2013/2014 учебный год 1 модуль | N22: 27 | O22: 1 | P22: 0 | Q22: 136392534 | R22: 2098 | T22: Журналистика | U22: =MATCH(D22,Отчет!$C:$C,0) -> 86
A23: 475498737 | B23: 9 | C23: БЖУР132 | D23: 475498638 | E23: Огурцова | F23: Евгения | G23: Алексеевна | H23: 1301219069 | I23: Информационные технологии подготовки печатных и электронных СМИ | J23: 3 | K23: Экзамен | L23: 2013/2014 учебный год 1 модуль | N23: 27 | O23: 1 | P23: 1 | Q23: 136392534 | R23: 2098 | T23: Журналистика | U23: =MATCH(D23,Отчет!$C:$C,0) -> 36
A24: 474332714 | B24: 9 | C24: БЖУР131 | D24: 474332631 | E24: Астапенко | F24: Ольга | G24: Юрьевна | H24: 1301219003 | I24: Информационные технологии подготовки печатных и электронных СМИ | J24: 3 | K24: Экзамен | L24: 2013/2014 учебный год 1 модуль | N24: 27 | O24: 1 | P24: 1 | Q24: 136392534 | R24: 2098 | T24: Журналистика | U24: =MATCH(D24,Отчет!$C:$C,0) -> 54
A25: 481496751 | B25: 9 | C25: БЖУР131 | D25: 481496658 | E25: Афанасьева | F25: Татьяна | G25: Валерьевна | H25: 1311219005 | I25: Информационные технологии подготовки печатных и электронных СМИ | J25: 3 | K25: Экзамен | L25: 2013/2014 учебный год 1 модуль | N25: 27 | O25: 1 | P25: 0 | Q25: 136392534 | R25: 2098 | T25: Журналистика | U25: =MATCH(D25,Отчет!$C:$C,0) -> 43
A26: 481496879 | B26: 10 | C26: БЖУР131 | D26: 481496795 | E26: Ероносов | F26: Александр | G26: Эдуардович | H26: 1311219034 | I26: Информационные технологии подготовки печатных и электронных СМИ | J26: 3 | K26: Экзамен | L26: 2013/2014 учебный год 1 модуль | N26: 30 | O26: 1 | P26: 0 | Q26: 136392534 | R26: 2098 | T26: Журналистика | U26: =MATCH(D26,Отчет!$C:$C,0) -> 59
A27: 475497948 | B27: 9 | C27: БЖУР131 | D27: 475497867 | E27: Яковец | F27: Елизавета | G27: Николаевна | H27: 1301219107 | I27: Информационные технологии подготовки печатных и электронных СМИ | J27: 3 | K27: Экзамен | L27: 2013/2014 учебный год 1 модуль | N27: 27 | O27: 1 | P27: 1 | Q27: 136392534 | R27: 2098 | T27: Журналистика | U27: =MATCH(D27,Отчет!$C:$C,0) -> 34
A28: 475498287 | B28: 9 | C28: БЖУР132 | D28: 475498195 | E28: Булатова | F28: Катерина | G28: Николаевна | H28: 1301219012 | I28: Информационные технологии подготовки печатных и электронных СМИ | J28: 3 | K28: Экзамен | L28: 2013/2014 учебный год 1 модуль | N28: 27 | O28: 1 | P28: 1 | Q28: 136392534 | R28: 2098 | T28: Журналистика | U28: =MATCH(D28,Отчет!$C:$C,0) -> 22
A29: 475498435 | B29: 9 | C29: БЖУР132 | D29: 475498343 | E29: Дмитриева | F29: Ольга | G29: Олеговна | H29: 1301219031 | I29: Информационные технологии подготовки печатных и электронных СМИ | J29: 3 | K29: Экзамен | L29: 2013/2014 учебный год 1 модуль | N29: 27 | O29: 1 | P29: 1 | Q29: 136392534 | R29: 2098 | T29: Журналистика | U29: =MATCH(D29,Отчет!$C:$C,0) -> 56
A30: 475497322 | B30: 9 | C30: БЖУР131 | D30: 475497229 | E30: Жвик | F30: Анастасия | G30: Николаевна | H30: 1301219110 | I30: Информационные технологии подготовки печатных и электронных СМИ | J30: 3 | K30: Экзамен | L30: 2013/2014 учебный год 1 модуль | N30: 27 | O30: 1 | P30: 1 | Q30: 136392534 | R30: 2098 | T30: Журналистика | U30: =MATCH(D30,Отчет!$C:$C,0) -> 48
A31: 475497562 | B31: 8 | C31: БЖУР131 | D31: 475497479 | E31: Николаева | F31: Мария | G31: Дмитриевна | H31: 1301219068 | I31: Информационные технологии подготовки печатных и электронных СМИ | J31: 3 | K31: Экзамен | L31: 2013/2014 учебный год 1 модуль | N31: 24 | O31: 1 | P31: 1 | Q31: 136392534 | R31: 2098 | T31: Журналистика | U31: =MATCH(D31,Отчет!$C:$C,0) -> 46
A32: 475497703 | B32: 10 | C32: БЖУР131 | D32: 475497611 | E32: Ставрианиди | F32: Анна | G32: Георгиевна | H32: 1301219087 | I32: Информационные технологии подготовки печатных и электронных СМИ | J32: 3 | K32: Экзамен | L32: 2013/2014 учебный год 1 модуль | N32: 30 | O32: 1 | P32: 1 | Q32: 136392534 | R32: 2098 | T32: Журналистика | U32: =MATCH(D32,Отчет!$C:$C,0) -> 41
A33: 475497825 | B33: 9 | C33: БЖУР131 | D33: 475497743 | E33: Тищенко | F33: Виктория | G33: Андреевна | H33: 1301219093 | I33: Информационные технологии подготовки печатных и электронных СМИ | J33: 3 | K33: Экзамен | L33: 2013/2014 учебный год 1 модуль | N33: 27 | O33: 1 | P33: 1 | Q33: 136392534 | R33: 2098 | T33: Журналистика | U33: =MATCH(D33,Отчет!$C:$C,0) -> 50
A34: 475496372 | B34: 9 | C34: БЖУР131 | D34: 475496297 | E34: Голубева | F34: Анастасия | G34: Павловна | H34: 1301219024 | I34: Информационные технологии подготовки печатных и электронных СМИ | J34: 3 | K34: Экзамен | L34: 2013/2014 учебный год 1 модуль | N34: 27 | O34: 1 | P34: 1 | Q34: 136392534 | R34: 2098 | T34: Журналистика | U34: =MATCH(D34,Отчет!$C:$C,0) -> 70
A35: 475497055 | B35: 8 | C35: БЖУР131 | D35: 475496974 | E35: Джгаркава | F35: Нино | G35: Звиадиевна | H35: 1301219029 | I35: Информационные технологии подготовки печатных и электронных СМИ | J35: 3 | K35: Экзамен | L35: 2013/2014 учебный год 1 модуль | N35: 24 | O35: 1 | P35: 1 | Q35: 136392534 | R35: 2098 | T35: Журналистика | U35: =MATCH(D35,Отчет!$C:$C,0) -> 100
A36: 475501024 | B36: 9 | C36: БЖУР133 | D36: 475500939 | E36: Еремина | F36: Анастасия | G36: Алексеевна | H36: 1301219033 | I36: Информационные технологии подготовки печатных и электронных СМИ | J36: 3 | K36: Экзамен | L36: 2013/2014 учебный год 1 модуль | N36: 27 | O36: 1 | P36: 1 | Q36: 136392534 | R36: 2098 | T36: Журналистика | U36: =MATCH(D36,Отчет!$C:$C,0) -> 82
A37: 475499143 | B37: 9 | C37: БЖУР132 | D37: 475499056 | E37: Федорова | F37: Анастасия | G37: Александровна | H37: 1301219096 | I37: Информационные технологии подготовки печатных и электронных СМИ | J37: 3 | K37: Экзамен | L37: 2013/2014 учебный год 1 модуль | N37: 27 | O37: 1 | P37: 1 | Q37: 136392534 | R37: 2098 | T37: Журналистика | U37: =MATCH(D37,Отчет!$C:$C,0) -> 27
A38: 475499234 | B38: 9 | C38: БЖУР132 | D38: 475499184 | E38: Устюжанинова | F38: Анна | G38: Александровна | H38: 1301219095 | I38: Информационные технологии подготовки печатных и электронных СМИ | J38: 3 | K38: Экзамен | L38: 2013/2014 учебный год 1 модуль | N38: 27 | O38: 1 | P38: 1 | Q38: 136392534 | R38: 2098 | T38: Журналистика | U38: =MATCH(D38,Отчет!$C:$C,0) -> 89
A39: 475499405 | B39: 9 | C39: БЖУР132 | D39: 475499320 | E39: Якубович | F39: Анастасия | G39: Александровна | H39: 1301219108 | I39: Информационные технологии подготовки печатных и электронных СМИ | J39: 3 | K39: Экзамен | L39: 2013/2014 учебный год 1 модуль | N39: 27 | O39: 1 | P39: 1 | Q39: 136392534 | R39: 2098 | T39: Журналистика | U39: =MATCH(D39,Отчет!$C:$C,0) -> 49
A40: 475500570 | B40: 9 | C40: БЖУР133 | D40: 475500480 | E40: Вильшанская | F40: Елена | G40: Андреевна | H40: 1301219017 | I40: Информационные технологии подготовки печатных и электронных СМИ | J40: 3 | K40: Экзамен | L40: 2013/2014 учебный год 1 модуль | N40: 27 | O40: 1 | P40: 1 | Q40: 136392534 | R40: 2098 | T40: Журналистика | U40: =MATCH(D40,Отчет!$C:$C,0) -> 20
A41: 475563421 | B41: 9 | C41: БЖУР133 | D41: 475563331 | E41: Мусина | F41: Юлия | G41: Маратовна | H41: 1301219064 | I41: Информационные технологии подготовки печатных и электронных СМИ | J41: 3 | K41: Экзамен | L41: 2013/2014 учебный год 1 модуль | N41: 27 | O41: 1 | P41: 1 | Q41: 136392534 | R41: 2098 | T41: Журналистика | U41: =MATCH(D41,Отчет!$C:$C,0) -> 35
A42: 475498860 | B42: 9 | C42: БЖУР132 | D42: 475498778 | E42: Рудакова | F42: Юлия | G42: Владиславовна | H42: 1301219081 | I42: Информационные технологии подготовки печатных и электронных СМИ | J42: 3 | K42: Экзамен | L42: 2013/2014 учебный год 1 модуль | N42: 27 | O42: 1 | P42: 1 | Q42: 136392534 | R42: 2098 | T42: Журналистика | U42: =MATCH(D42,Отчет!$C:$C,0) -> 24
A43: 475498999 | B43: 9 | C43: БЖУР132 | D43: 475498901 | E43: Скворцова | F43: Дарья | G43: Андреевна | H43: 1301219086 | I43: Информационные технологии подготовки печатных и электронных СМИ | J43: 3 | K43: Экзамен | L43: 2013/2014 учебный год 1 модуль | N43: 27 | O43: 1 | P43: 1 | Q43: 136392534 | R43: 2098 | T43: Журналистика | U43: =MATCH(D43,Отчет!$C:$C,0) -> 18
A44: 475562714 | B44: 9 | C44: БЖУР133 | D44: 475562579 | E44: Герасимова | F44: Мария | G44: Александровна | H44: 1311219020 | I44: Информационные технологии подготовки печатных и электронных СМИ | J44: 3 | K44: Экзамен | L44: 2013/2014 учебный год 1 модуль | N44: 27 | O44: 1 | P44: 0 | Q44: 136392534 | R44: 2098 | T44: Журналистика | U44: =MATCH(D44,Отчет!$C:$C,0) -> 63
A45: 475563032 | B45: 10 | C45: БЖУР133 | D45: 475562897 | E45: Кистерев | F45: Алексей | G45: Валерьевич | H45: 12701089 | I45: Информационные технологии подготовки печатных и электронных СМИ | J45: 3 | K45: Экзамен | L45: 2013/2014 учебный год 1 модуль | N45: 30 | O45: 1 | P45: 0 | Q45: 136392534 | R45: 2098 | S45: ikPassed | T45: Журналистика | U45: =MATCH(D45,Отчет!$C:$C,0) -> 95
A46: 475563164 | B46: 9 | C46: БЖУР133 | D46: 475563046 | E46: Люля | F46: Арина | G46: Артемовна | H46: 1311219053 | I46: Информационные технологии подготовки печатных и электронных СМИ | J46: 3 | K46: Экзамен | L46: 2013/2014 учебный год 1 модуль | N46: 27 | O46: 1 | P46: 0 | Q46: 136392534 | R46: 2098 | T46: Журналистика | U46: =MATCH(D46,Отчет!$C:$C,0) -> 92
A47: 475563287 | B47: 9 | C47: БЖУР133 | D47: 475563206 | E47: Малышева | F47: Ирина | G47: Александровна | H47: 1301219056 | I47: Информационные технологии подготовки печатных и электронных СМИ | J47: 3 | K47: Экзамен | L47: 2013/2014 учебный год 1 модуль | N47: 27 | O47: 1 | P47: 1 | Q47: 136392534 | R47: 2098 | T47: Журналистика | U47: =MATCH(D47,Отчет!$C:$C,0) -> 62
A48: 475561544 | B48: 9 | C48: БЖУР132 | D48: 475561427 | E48: Гранкова | F48: Ксения | G48: Сергеевна | H48: 1311219027 | I48: Информационные технологии подготовки печатных и электронных СМИ | J48: 3 | K48: Экзамен | L48: 2013/2014 учебный год 1 модуль | N48: 27 | O48: 1 | P48: 0 | Q48: 136392534 | R48: 2098 | T48: Журналистика | U48: =MATCH(D48,Отчет!$C:$C,0) -> 105
A49: 475561692 | B49: 9 | C49: БЖУР132 | D49: 475561559 | E49: Шевелёва | F49: Кристина | G49: Дмитриевна | H49: 1311219106 | I49: Информационные технологии подготовки печатных и электронных СМИ | J49: 3 | K49: Экзамен | L49: 2013/2014 учебный год 1 модуль | N49: 27 | O49: 1 | P49: 0 | Q49: 136392534 | R49: 2098 | T49: Журналистика | U49: =MATCH(D49,Отчет!$C:$C,0) -> 79
A50: 475562346 | B50: 9 | C50: БЖУР133 | D50: 475562216 | E50: Аммосова | F50: Людмила | G50: Михайловна | H50: 1311219002 | I50: Информационные технологии подготовки печатных и электронных СМИ | J50: 3 | K50: Экзамен | L50: 2013/2014 учебный год 1 модуль | N50: 27 | O50: 1 | P50: 0 | Q50: 136392534 | R50: 2098 | T50: Журналистика | U50: =MATCH(D50,Отчет!$C:$C,0) -> 38
A51: 475562527 | B51: 9 | C51: БЖУР133 | D51: 475562419 | E51: Афян | F51: Мария | G51: Геннадьевна | H51: 1311219006 | I51: Информационные технологии подготовки печатных и электронных СМИ | J51: 3 | K51: Экзамен | L51: 2013/2014 учебный год 1 модуль | N51: 27 | O51: 1 | P51: 0 | Q51: 136392534 | R51: 2098 | T51: Журналистика | U51: =MATCH(D51,Отчет!$C:$C,0) -> 83
A52: 475561009 | B52: 9 | C52: БЖУР132 | D52: 475560846 | E52: Винокур | F52: Дана | G52: Витальевна | H52: 1311219018 | I52: Информационные технологии подготовки печатных и электронных СМИ | J52: 3 | K52: Экзамен | L52: 2013/2014 учебный год 1 модуль | N52: 27 | O52: 1 | P52: 0 | Q52: 136392534 | R52: 2098 | T52: Журналистика | U52: =MATCH(D52,Отчет!$C:$C,0) -> 87
A53: 475561170 | B53: 9 | C53: БЖУР132 | D53: 475561061 | E53: Короткова | F53: Екатерина | G53: Владимировна | H53: 1311219019 | I53: Информационные технологии подготовки печатных и электронных СМИ | J53: 3 | K53: Экзамен | L53: 2013/2014 учебный год 1 модуль | N53: 27 | O53: 1 | P53: 0 | Q53: 136392534 | R53: 2098 | T53: Журналистика | U53: =MATCH(D53,Отчет!$C:$C,0) -> 66
A54: 475561377 | B54: 9 | C54: БЖУР132 | D54: 475561255 | E54: Волчек | F54: Никита | G54: Алексеевич | H54: 1311219112 | I54: Информационные технологии подготовки печатных и электронных СМИ | J54: 3 | K54: Экзамен | L54: 2013/2014 учебный год 1 модуль | N54: 27 | O54: 1 | P54: 0 | Q54: 136392534 | R54: 2098 | T54: Журналистика | U54: =MATCH(D54,Отчет!$C:$C,0) -> 88
A55: 481505294 | B55: 9 | C55: БЖУР134 | D55: 481505154 | E55: Швецова | F55: Екатерина | G55: Константиновна | H55: 1311219105 | I55: Информационные технологии подготовки печатных и электронных СМИ | J55: 3 | K55: Экзамен | L55: 2013/2014 учебный год 1 модуль | N55: 27 | O55: 1 | P55: 0 | Q55: 136392534 | R55: 2098 | T55: Журналистика | U55: =MATCH(D55,Отчет!$C:$C,0) -> 75
A56: 475560447 | B56: 9 | C56: БЖУР132 | D56: 475560308 | E56: Бидзионашвили | F56: Кетеван | G56: - | H56: 1301219111 | I56: Информационные технологии подготовки печатных и электронных СМИ | J56: 3 | K56: Экзамен | L56: 2013/2014 учебный год 1 модуль | N56: 27 | O56: 1 | P56: 1 | Q56: 136392534 | R56: 2098 | T56: Журналистика | U56: =MATCH(D56,Отчет!$C:$C,0) -> 68
A57: 475560582 | B57: 9 | C57: БЖУР132 | D57: 475560500 | E57: Буримова | F57: Александра | G57: Сергеевна | H57: 1311219014 | I57: Информационные технологии подготовки печатных и электронных СМИ | J57: 3 | K57: Экзамен | L57: 2013/2014 учебный год 1 модуль | N57: 27 | O57: 1 | P57: 0 | Q57: 136392534 | R57: 2098 | T57: Журналистика | U57: =MATCH(D57,Отчет!$C:$C,0) -> 99
A58: 475560778 | B58: 9 | C58: БЖУР132 | D58: 475560670 | E58: Бурцева | F58: Анастасия | G58: Юрьевна | H58: 1311219015 | I58: Информационные технологии подготовки печатных и электронных СМИ | J58: 3 | K58: Экзамен | L58: 2013/2014 учебный год 1 модуль | N58: 27 | O58: 1 | P58: 0 | Q58: 136392534 | R58: 2098 | T58: Журналистика | U58: =MATCH(D58,Отчет!$C:$C,0) -> 96
A59: 475558443 | B59: 7 | C59: БЖУР131 | D59: 475558344 | E59: Маммаева | F59: Фарида | G59: Сулеймановна | H59: 1301219057 | I59: Информационные технологии подготовки печатных и электронных СМИ | J59: 3 | K59: Экзамен | L59: 2013/2014 учебный год 1 модуль | N59: 21 | O59: 1 | P59: 1 | Q59: 136392534 | R59: 2098 | T59: Журналистика | U59: =MATCH(D59,Отчет!$C:$C,0) -> 104
A60: 475558804 | B60: 8 | C60: БЖУР131 | D60: 475558722 | E60: Пржевальская | F60: Анастасия | G60: Всеволодовна | H60: 1301219076 | I60: Информационные технологии подготовки печатных и электронных СМИ | J60: 3 | K60: Экзамен | L60: 2013/2014 учебный год 1 модуль | N60: 24 | O60: 1 | P60: 1 | Q60: 136392534 | R60: 2098 | T60: Журналистика | U60: =MATCH(D60,Отчет!$C:$C,0) -> 67
A61: 481505129 | B61: 9 | C61: БЖУР134 | D61: 481505031 | E61: Савина | F61: София | G61: Леонидовна | H61: 1311219083 | I61: Информационные технологии подготовки печатных и электронных СМИ | J61: 3 | K61: Экзамен | L61: 2013/2014 учебный год 1 модуль | N61: 27 | O61: 1 | P61: 0 | Q61: 136392534 | R61: 2098 | T61: Журналистика | U61: =MATCH(D61,Отчет!$C:$C,0) -> 14
A62: 481504697 | B62: 9 | C62: БЖУР134 | D62: 481504593 | E62: Круглова | F62: Ирина | G62: Викторовна | H62: 1311219047 | I62: Информационные технологии подготовки печатных и электронных СМИ | J62: 3 | K62: Экзамен | L62: 2013/2014 учебный год 1 модуль | N62: 27 | O62: 1 | P62: 0 | Q62: 136392534 | R62: 2098 | T62: Журналистика | U62: =MATCH(D62,Отчет!$C:$C,0) -> 42
A63: 481504991 | B63: 9 | C63: БЖУР134 | D63: 481504898 | E63: Русских | F63: Арина | G63: Сергеевна | H63: 1311219082 | I63: Информационные технологии подготовки печатных и электронных СМИ | J63: 3 | K63: Экзамен | L63: 2013/2014 учебный год 1 модуль | N63: 27 | O63: 1 | P63: 0 | Q63: 136392534 | R63: 2098 | T63: Журналистика | U63: =MATCH(D63,Отчет!$C:$C,0) -> 64
A64: 475557840 | B64: 10 | C64: БЖУР131 | D64: 475557752 | E64: Аветисян | F64: Виолетта | G64: Александровна | H64: 1311219001 | I64: Информационные технологии подготовки печатных и электронных СМИ | J64: 3 | K64: Экзамен | L64: 2013/2014 учебный год 1 модуль | N64: 30 | O64: 1 | P64: 0 | Q64: 136392534 | R64: 2098 | T64: Журналистика | U64: =MATCH(D64,Отчет!$C:$C,0) -> 84
A65: 475557974 | B65: 8 | C65: БЖУР131 | D65: 475557886 | E65: Белобеева | F65: Ангелина | G65: Анатольевна | H65: 1311219008 | I65: Информационные технологии подготовки печатных и электронных СМИ | J65: 3 | K65: Экзамен | L65: 2013/2014 учебный год 1 модуль | N65: 24 | O65: 1 | P65: 0 | Q65: 136392534 | R65: 2098 | T65: Журналистика | U65: =MATCH(D65,Отчет!$C:$C,0) -> 103
A66: 481502206 | B66: 9 | C66: БЖУР133 | D66: 481502112 | E66: Сидоров | F66: Всеволод | G66: Дмитриевич | H66: 1311219085 | I66: Информационные технологии подготовки печатных и электронных СМИ | J66: 3 | K66: Экзамен | L66: 2013/2014 учебный год 1 модуль | N66: 27 | O66: 1 | P66: 0 | Q66: 136392534 | R66: 2098 | T66: Журналистика | U66: =MATCH(D66,Отчет!$C:$C,0) -> 40
A67: 481502350 | B67: 9 | C67: БЖУР133 | D67: 481502259 | E67: Титов | F67: Игорь | G67: Игоревич | H67: 1311219092 | I67: Информационные технологии подготовки печатных и электронных СМИ | J67: 3 | K67: Экзамен | L67: 2013/2014 учебный год 1 модуль | N67: 27 | O67: 1 | P67: 0 | Q67: 136392534 | R67: 2098 | T67: Журналистика | U67: =MATCH(D67,Отчет!$C:$C,0) -> 44
A68: 1164833613 | C68: БЖУР131 | D68: 580462633 | E68: Немкова | F68: Екатерина | G68: Дмитриевна | H68: 131232209 | I68: Информационные технологии подготовки печатных и электронных СМИ | J68: 3 | K68: Экзамен | L68: 2013/2014 учебный год 1 модуль | N68: 0 | P68: 0 | Q68: 136392534 | R68: 2098 | T68: Журналистика | U68: =MATCH(D68,Отчет!$C:$C,0) -> 80
A69: 1164842104 | C69: БЖУР131 | D69: 615125946 | E69: Халилова | F69: Арзу | G69: Идаятовна | H69: 131232230 | I69: Информационные технологии подготовки печатных и электронных СМИ | J69: 3 | K69: Экзамен | L69: 2013/2014 учебный год 1 модуль | N69: 0 | P69: 0 | Q69: 136392534 | R69: 2098 | T69: Журналистика | U69: =MATCH(D69,Отчет!$C:$C,0) -> 58
A70: 475503524 | B70: 9 | C70: БЖУР134 | D70: 475503448 | E70: Суханова | F70: Юлия | G70: Александровна | H70: 1301219090 | I70: Информационные технологии подготовки печатных и электронных СМИ | J70: 3 | K70: Экзамен | L70: 2013/2014 учебный год 1 модуль | N70: 27 | O70: 1 | P70: 1 | Q70: 136392534 | R70: 2098 | T70: Журналистика | U70: =MATCH(D70,Отчет!$C:$C,0) -> 16
A71: 475503681 | B71: 9 | C71: БЖУР134 | D71: 475503575 | E71: Таиров | F71: Ринат | G71: Маратович | H71: 1301219091 | I71: Информационные технологии подготовки печатных и электронных СМИ | J71: 3 | K71: Экзамен | L71: 2013/2014 учебный год 1 модуль | N71: 27 | O71: 1 | P71: 1 | Q71: 136392534 | R71: 2098 | T71: Журналистика | U71: =MATCH(D71,Отчет!$C:$C,0) -> 25
A72: 475565654 | B72: 9 | C72: БЖУР134 | D72: 475565551 | E72: Нарушевич | F72: Анастасия | G72: Александровна | H72: 1311219065 | I72: Информационные технологии подготовки печатных и электронных СМИ | J72: 3 | K72: Экзамен | L72: 2013/2014 учебный год 1 модуль | N72: 27 | O72: 1 | P72: 0 | Q72: 136392534 | R72: 2098 | T72: Журналистика | U72: =MATCH(D72,Отчет!$C:$C,0) -> 90
A73: 475565975 | B73: 9 | C73: БЖУР134 | D73: 475565869 | E73: Стешенкова | F73: Александра | G73: Евгеньевна | H73: 1301219088 | I73: Информационные технологии подготовки печатных и электронных СМИ | J73: 3 | K73: Экзамен | L73: 2013/2014 учебный год 1 модуль | N73: 27 | O73: 1 | P73: 1 | Q73: 136392534 | R73: 2098 | T73: Журналистика | U73: =MATCH(D73,Отчет!$C:$C,0) -> 91
A74: 475503395 | B74: 9 | C74: БЖУР134 | D74: 475503320 | E74: Селиванова | F74: Ксения | G74: Александровна | H74: 1301219084 | I74: Информационные технологии подготовки печатных и электронных СМИ | J74: 3 | K74: Экзамен | L74: 2013/2014 учебный год 1 модуль | N74: 27 | O74: 1 | P74: 1 | Q74: 136392534 | R74: 2098 | T74: Журналистика | U74: =MATCH(D74,Отчет!$C:$C,0) -> 77
A75: 475565036 | B75: 9 | C75: БЖУР134 | D75: 475564933 | E75: Животнёв | F75: Владислав | G75: Николаевич | H75: 1311219035 | I75: Информационные технологии подготовки печатных и электронных СМИ | J75: 3 | K75: Экзамен | L75: 2013/2014 учебный год 1 модуль | N75: 27 | O75: 1 | P75: 0 | Q75: 136392534 | R75: 2098 | T75: Журналистика | U75: =MATCH(D75,Отчет!$C:$C,0) -> 94
A76: 475565170 | B76: 9 | C76: БЖУР134 | D76: 475565084 | E76: Зражаева | F76: Алина | G76: Сергеевна | H76: 1311219036 | I76: Информационные технологии подготовки печатных и электронных СМИ | J76: 3 | K76: Экзамен | L76: 2013/2014 учебный год 1 модуль | N76: 27 | O76: 1 | P76: 0 | Q76: 136392534 | R76: 2098 | T76: Журналистика | U76: =MATCH(D76,Отчет!$C:$C,0) -> 69
A77: 475565316 | B77: 9 | C77: БЖУР134 | D77: 475565231 | E77: Макарова | F77: Юлия | G77: Валерьевна | H77: 1311219054 | I77: Информационные технологии подготовки печатных и электронных СМИ | J77: 3 | K77: Экзамен | L77: 2013/2014 учебный год 1 модуль | N77: 27 | O77: 1 | P77: 0 | Q77: 136392534 | R77: 2098 | T77: Журналистика | U77: =MATCH(D77,Отчет!$C:$C,0) -> 81
A78: 475565499 | B78: 9 | C78: БЖУР134 | D78: 475565410 | E78: Маленкова | F78: Мария | G78: Александровна | H78: 1301219055 | I78: Информационные технологии подготовки печатных и электронных СМИ | J78: 3 | K78: Экзамен | L78: 2013/2014 учебный год 1 модуль | N78: 27 | O78: 1 | P78: 1 | Q78: 136392534 | R78: 2098 | T78: Журналистика | U78: =MATCH(D78,Отчет!$C:$C,0) -> 72
A79: 475564580 | B79: 9 | C79: БЖУР134 | D79: 475564485 | E79: Басиладзе | F79: Мариами | G79: Рамазиевна | H79: 1311219007 | I79: Информационные технологии подготовки печатных и электронных СМИ | J79: 3 | K79: Экзамен | L79: 2013/2014 учебный год 1 модуль | N79: 27 | O79: 1 | P79: 0 | Q79: 136392534 | R79: 2098 | T79: Журналистика | U79: =MATCH(D79,Отчет!$C:$C,0) -> 52
A80: 475564733 | B80: 9 | C80: БЖУР134 | D80: 475564642 | E80: Гимаева | F80: Жанна | G80: Эмзаровна | H80: 1311219021 | I80: Информационные технологии подготовки печатных и электронных СМИ | J80: 3 | K80: Экзамен | L80: 2013/2014 учебный год 1 модуль | N80: 27 | O80: 1 | P80: 0 | Q80: 136392534 | R80: 2098 | T80: Журналистика | U80: =MATCH(D80,Отчет!$C:$C,0) -> 73
A81: 475564874 | B81: 8 | C81: БЖУР134 | D81: 475564787 | E81: Досий | F81: Зоряна | G81: Владимировна | H81: 1301219109 | I81: Информационные технологии подготовки печатных и электронных СМИ | J81: 3 | K81: Экзамен | L81: 2013/2014 учебный год 1 модуль | N81: 24 | O81: 1 | P81: 1 | Q81: 136392534 | R81: 2098 | T81: Журналистика | U81: =MATCH(D81,Отчет!$C:$C,0) -> 106
A82: 475503268 | B82: 8 | C82: БЖУР134 | D82: 475503187 | E82: Робул | F82: Павел | G82: Константинович | H82: 1301219079 | I82: Информационные технологии подготовки печатных и электронных СМИ | J82: 3 | K82: Экзамен | L82: 2013/2014 учебный год 1 модуль | N82: 24 | O82: 1 | P82: 1 | Q82: 136392534 | R82: 2098 | T82: Журналистика | U82: =MATCH(D82,Отчет!$C:$C,0) -> 65
A83: 475563629 | B83: 9 | C83: БЖУР133 | D83: 475563521 | E83: Осипова | F83: Светлана | G83: Витальевна | H83: 1311219070 | I83: Информационные технологии подготовки печатных и электронных СМИ | J83: 3 | K83: Экзамен | L83: 2013/2014 учебный год 1 модуль | N83: 27 | O83: 1 | P83: 0 | Q83: 136392534 | R83: 2098 | T83: Журналистика | U83: =MATCH(D83,Отчет!$C:$C,0) -> 74
A84: 475563775 | B84: 9 | C84: БЖУР133 | D84: 475563678 | E84: Чехонадских | F84: Дарья | G84: Александровна | H84: 1301219104 | I84: Информационные технологии подготовки печатных и электронных СМИ | J84: 3 | K84: Экзамен | L84: 2013/2014 учебный год 1 модуль | N84: 27 | O84: 1 | P84: 1 | Q84: 136392534 | R84: 2098 | T84: Журналистика | U84: =MATCH(D84,Отчет!$C:$C,0) -> 60
A85: 475502749 | B85: 9 | C85: БЖУР134 | D85: 475502663 | E85: Вагапова | F85: Юлия | G85: Рстамовна | H85: 1301219016 | I85: Информационные технологии подготовки печатных и электронных СМИ | J85: 3 | K85: Экзамен | L85: 2013/2014 учебный год 1 модуль | N85: 27 | O85: 1 | P85: 1 | Q85: 136392534 | R85: 2098 | T85: Журналистика | U85: =MATCH(D85,Отчет!$C:$C,0) -> 47
A86: 475502873 | B86: 9 | C86: БЖУР134 | D86: 475502790 | E86: Дергалов | F86: Руслан | G86: Сергеевич | H86: 1301219028 | I86: Информационные технологии подготовки печатных и электронных СМИ | J86: 3 | K86: Экзамен | L86: 2013/2014 учебный год 1 модуль | N86: 27 | O86: 1 | P86: 1 | Q86: 136392534 | R86: 2098 | T86: Журналистика | U86: =MATCH(D86,Отчет!$C:$C,0) -> 45
A87: 475503009 | B87: 9 | C87: БЖУР134 | D87: 475502924 | E87: Литвякова | F87: Евдокия | G87: Алексеевна | H87: 1301219050 | I87: Информационные технологии подготовки печатных и электронных СМИ | J87: 3 | K87: Экзамен | L87: 2013/2014 учебный год 1 модуль | N87: 27 | O87: 1 | P87: 1 | Q87: 136392534 | R87: 2098 | T87: Журналистика | U87: =MATCH(D87,Отчет!$C:$C,0) -> 30
A88: 475503143 | B88: 9 | C88: БЖУР134 | D88: 475503059 | E88: Маркова | F88: Кристина | G88: Алексеевна | H88: 1301219058 | I88: Информационные технологии подготовки печатных и электронных СМИ | J88: 3 | K88: Экзамен | L88: 2013/2014 учебный год 1 модуль | N88: 27 | O88: 1 | P88: 1 | Q88: 136392534 | R88: 2098 | T88: Журналистика | U88: =MATCH(D88,Отчет!$C:$C,0) -> 85
A89: 475501713 | B89: 9 | C89: БЖУР133 | D89: 475501641 | E89: Стрельцова | F89: Наталья | G89: Сергеевна | H89: 1301219089 | I89: Информационные технологии подготовки печатных и электронных СМИ | J89: 3 | K89: Экзамен | L89: 2013/2014 учебный год 1 модуль | N89: 27 | O89: 1 | P89: 1 | Q89: 136392534 | R89: 2098 | T89: Журналистика | U89: =MATCH(D89,Отчет!$C:$C,0) -> 55
A90: 475501860 | B90: 9 | C90: БЖУР133 | D90: 475501776 | E90: Чернова | F90: Кристина | G90: Валериевна | H90: 1301219102 | I90: Информационные технологии подготовки печатных и электронных СМИ | J90: 3 | K90: Экзамен | L90: 2013/2014 учебный год 1 модуль | N90: 27 | O90: 1 | P90: 1 | Q90: 136392534 | R90: 2098 | T90: Журналистика | U90: =MATCH(D90,Отчет!$C:$C,0) -> 17
A91: 475502001 | B91: 9 | C91: БЖУР133 | D91: 475501916 | E91: Чернышева | F91: Евгения | G91: Эдуардовна | H91: 1301219103 | I91: Информационные технологии подготовки печатных и электронных СМИ | J91: 3 | K91: Экзамен | L91: 2013/2014 учебный год 1 модуль | N91: 27 | O91: 1 | P91: 1 | Q91: 136392534 | R91: 2098 | T91: Журналистика | U91: =MATCH(D91,Отчет!$C:$C,0) -> 19
A92: 475501169 | B92: 9 | C92: БЖУР133 | D92: 475501085 | E92: Кокшарова | F92: Александра | G92: Игоревна | H92: 1301219041 | I92: Информационные технологии подготовки печатных и электронных СМИ | J92: 3 | K92: Экзамен | L92: 2013/2014 учебный год 1 модуль | N92: 27 | O92: 1 | P92: 1 | Q92: 136392534 | R92: 2098 | T92: Журналистика | U92: =MATCH(D92,Отчет!$C:$C,0) -> 57
A93: 475501333 | B93: 9 | C93: БЖУР133 | D93: 475501239 | E93: Липчанская | F93: Анастасия | G93: Алексеевна | H93: 1301219049 | I93: Информационные технологии подготовки печатных и электронных СМИ | J93: 3 | K93: Экзамен | L93: 2013/2014 учебный год 1 модуль | N93: 27 | O93: 1 | P93: 1 | Q93: 136392534 | R93: 2098 | T93: Журналистика | U93: =MATCH(D93,Отчет!$C:$C,0) -> 29
A94: 475501469 | B94: 9 | C94: БЖУР133 | D94: 475501379 | E94: Пятибратова | F94: Екатерина | G94: Васильевна | H94: 1301219077 | I94: Информационные технологии подготовки печатных и электронных СМИ | J94: 3 | K94: Экзамен | L94: 2013/2014 учебный год 1 модуль | N94: 27 | O94: 1 | P94: 1 | Q94: 136392534 | R94: 2098 | T94: Журналистика | U94: =MATCH(D94,Отчет!$C:$C,0) -> 71
A95: 475501598 | B95: 9 | C95: БЖУР133 | D95: 475501513 | E95: Рублева | F95: Милена | G95: Валерьевна | H95: 1301219080 | I95: Информационные технологии подготовки печатных и электронных СМИ | J95: 3 | K95: Экзамен | L95: 2013/2014 учебный год 1 модуль | N95: 27 | O95: 1 | P95: 1 | Q95: 136392534 | R95: 2098 | T95: Журналистика | U95: =MATCH(D95,Отчет!$C:$C,0) -> 21
A96: 475500726 | B96: 9 | C96: БЖУР133 | D96: 475500628 | E96: Головина | F96: Евгения | G96: Павловна | H96: 1301219023 | I96: Информационные технологии подготовки печатных и электронных СМИ | J96: 3 | K96: Экзамен | L96: 2013/2014 учебный год 1 модуль | N96: 27 | O96: 1 | P96: 1 | Q96: 136392534 | R96: 2098 | T96: Журналистика | U96: =MATCH(D96,Отчет!$C:$C,0) -> 78
A97: 475500887 | B97: 9 | C97: БЖУР133 | D97: 475500772 | E97: Дмитриева | F97: Екатерина | G97: Александровна | H97: 1301219030 | I97: Информационные технологии подготовки печатных и электронных СМИ | J97: 3 | K97: Экзамен | L97: 2013/2014 учебный год 1 модуль | N97: 27 | O97: 1 | P97: 1 | Q97: 136392534 | R97: 2098 | T97: Журналистика | U97: =MATCH(D97,Отчет!$C:$C,0) -> 28
A98: 796966531 | B98: 4 | C98: БЖУР131 | D98: 796834861 | E98: Тесфайе | F98: Анна-Мария | G98: Синтайе | H98: 10701175 | I98: Информационные технологии подготовки печатных и электронных СМИ | J98: 4.5 | K98: Экзамен | L98: 2013/2014 учебный год 1 модуль | N98: 12 | O98: 1 | P98: 0 | Q98: 136392534 | R98: 2098 | T98: Журналистика | U98: =MATCH(D98,Отчет!$C:$C,0) -> 108
A99: 796966550 | B99: 10 | C99: БЖУР131 | D99: 796834861 | E99: Тесфайе | F99: Анна-Мария | G99: Синтайе | H99: 10701175 | I99: Безопасность жизнедеятельности | J99: 0 | K99: Зачет | L99: 2013/2014 учебный год 1 модуль | N99: 5 | O99: 1 | P99: 0 | Q99: 136392534 | R99: 2098 | T99: Журналистика | U99: =MATCH(D99,Отчет!$C:$C,0) -> 108
A100: 617795854 | B100: 9 | C100: БЖУР131 | D100: 615125946 | E100: Халилова | F100: Арзу | G100: Идаятовна | H100: 131232230 | I100: Безопасность жизнедеятельности | J100: 0.5 | K100: Зачет | L100: 2013/2014 учебный год 1 модуль | N100: 4.5 | O100: 1 | P100: 0 | Q100: 136392534 | R100: 2098 | T100: Журналистика | U100: =MATCH(D100,Отчет!$C:$C,0) -> 58
A101: 475503520 | B101: 8 | C101: БЖУР134 | D101: 475503448 | E101: Суханова | F101: Юлия | G101: Александровна | H101: 1301219090 | I101: Безопасность жизнедеятельности | J101: 0.5 | K101: Зачет | L101: 2013/2014 учебный год 1 модуль | N101: 4 | O101: 1 | P101: 1 | Q101: 136392534 | R101: 2098 | T101: Журналистика | U101: =MATCH(D101,Отчет!$C:$C,0) -> 16
A102: 475503670 | B102: 9 | C102: БЖУР134 | D102: 475503575 | E102: Таиров | F102: Ринат | G102: Маратович | H102: 1301219091 | I102: Безопасность жизнедеятельности | J102: 0.5 | K102: Зачет | L102: 2013/2014 учебный год 1 модуль | N102: 4.5 | O102: 1 | P102: 1 | Q102: 136392534 | R102: 2098 | T102: Журналистика | U102: =MATCH(D102,Отчет!$C:$C,0) -> 25
A103: 771504489 | B103: 9 | C103: БЖУР131 | D103: 752764364 | E103: Масалова | F103: Анна | G103: Владиславовна | H103: 131232133 | I103: Безопасность жизнедеятельности | J103: 0.5 | K103: Зачет | L103: 2013/2014 учебный год 1 модуль | N103: 4.5 | O103: 1 | P103: 0 | Q103: 136392534 | R103: 2098 | T103: Журналистика | U103: =MATCH(D103,Отчет!$C:$C,0) -> 101
A104: 617793217 | B104: 9 | C104: БЖУР131 | D104: 580462633 | E104: Немкова | F104: Екатерина | G104: Дмитриевна | H104: 131232209 | I104: Безопасность жизнедеятельности | J104: 0.5 | K104: Зачет | L104: 2013/2014 учебный год 1 модуль | N104: 4.5 | O104: 1 | P104: 0 | Q104: 136392534 | R104: 2098 | T104: Журналистика | U104: =MATCH(D104,Отчет!$C:$C,0) -> 80
A105: 475565647 | B105: 8 | C105: БЖУР134 | D105: 475565551 | E105: Нарушевич | F105: Анастасия | G105: Александровна | H105: 1311219065 | I105: Безопасность жизнедеятельности | J105: 0.5 | K105: Зачет | L105: 2013/2014 учебный год 1 модуль | N105: 4 | O105: 1 | P105: 0 | Q105: 136392534 | R105: 2098 | T105: Журналистика | U105: =MATCH(D105,Отчет!$C:$C,0) -> 90
A106: 475565968 | B106: 8 | C106: БЖУР134 | D106: 475565869 | E106: Стешенкова | F106: Александра | G106: Евгеньевна | H106: 1301219088 | I106: Безопасность жизнедеятельности | J106: 0.5 | K106: Зачет | L106: 2013/2014 учебный год 1 модуль | N106: 4 | O106: 1 | P106: 1 | Q106: 136392534 | R106: 2098 | T106: Журналистика | U106: =MATCH(D106,Отчет!$C:$C,0) -> 91
A107: 475503391 | B107: 8 | C107: БЖУР134 | D107: 475503320 | E107: Селиванова | F107: Ксения | G107: Александровна | H107: 1301219084 | I107: Безопасность жизнедеятельности | J107: 0.5 | K107: Зачет | L107: 2013/2014 учебный год 1 модуль | N107: 4 | O107: 1 | P107: 1 | Q107: 136392534 | R107: 2098 | T107: Журналистика | U107: =MATCH(D107,Отчет!$C:$C,0) -> 77
A108: 475565030 | B108: 9 | C108: БЖУР134 | D108: 475564933 | E108: Животнёв | F108: Владислав | G108: Николаевич | H108: 1311219035 | I108: Безопасность жизнедеятельности | J108: 0.5 | K108: Зачет | L108: 2013/2014 учебный год 1 модуль | N108: 4.5 | O108: 1 | P108: 0 | Q108: 136392534 | R108: 2098 | T108: Журналистика | U108: =MATCH(D108,Отчет!$C:$C,0) -> 94
A109: 475565164 | B109: 8 | C109: БЖУР134 | D109: 475565084 | E109: Зражаева | F109: Алина | G109: Сергеевна | H109: 1311219036 | I109: Безопасность жизнедеятельности | J109: 0.5 | K109: Зачет | L109: 2013/2014 учебный год 1 модуль | N109: 4 | O109: 1 | P109: 0 | Q109: 136392534 | R109: 2098 | T109: Журналистика | U109: =MATCH(D109,Отчет!$C:$C,0) -> 69
A110: 475565305 | B110: 8 | C110: БЖУР134 | D110: 475565231 | E110: Макарова | F110: Юлия | G110: Валерьевна | H110: 1311219054 | I110: Безопасность жизнедеятельности | J110: 0.5 | K110: Зачет | L110: 2013/2014 учебный год 1 модуль | N110: 4 | O110: 1 | P110: 0 | Q110: 136392534 | R110: 2098 | T110: Журналистика | U110: =MATCH(D110,Отчет!$C:$C,0) -> 81
A111: 475565495 | B111: 9 | C111: БЖУР134 | D111: 475565410 | E111: Маленкова | F111: Мария | G111: Александровна | H111: 1301219055 | I111: Безопасность жизнедеятельности | J111: 0.5 | K111: Зачет | L111: 2013/2014 учебный год 1 модуль | N111: 4.5 | O111: 1 | P111: 1 | Q111: 136392534 | R111: 2098 | T111: Журналистика | U111: =MATCH(D111,Отчет!$C:$C,0) -> 72
A112: 475564575 | B112: 9 | C112: БЖУР134 | D112: 475564485 | E112: Басиладзе | F112: Мариами | G112: Рамазиевна | H112: 1311219007 | I112: Безопасность жизнедеятельности | J112: 0.5 | K112: Зачет | L112: 2013/2014 учебный год 1 модуль | N112: 4.5 | O112: 1 | P112: 0 | Q112: 136392534 | R112: 2098 | T112: Журналистика | U112: =MATCH(D112,Отчет!$C:$C,0) -> 52
A113: 475564727 | B113: 9 | C113: БЖУР134 | D113: 475564642 | E113: Гимаева | F113: Жанна | G113: Эмзаровна | H113: 1311219021 | I113: Безопасность жизнедеятельности | J113: 0.5 | K113: Зачет | L113: 2013/2014 учебный год 1 модуль | N113: 4.5 | O113: 1 | P113: 0 | Q113: 136392534 | R113: 2098 | T113: Журналистика | U113: =MATCH(D113,Отчет!$C:$C,0) -> 73
A114: 475564870 | B114: 7 | C114: БЖУР134 | D114: 475564787 | E114: Досий | F114: Зоряна | G114: Владимировна | H114: 1301219109 | I114: Безопасность жизнедеятельности | J114: 0.5 | K114: Зачет | L114: 2013/2014 учебный год 1 модуль | N114: 3.5 | O114: 1 | P114: 1 | Q114: 136392534 | R114: 2098 | T114: Журналистика | U114: =MATCH(D114,Отчет!$C:$C,0) -> 106
A115: 475503263 | B115: 9 | C115: БЖУР134 | D115: 475503187 | E115: Робул | F115: Павел | G115: Константинович | H115: 1301219079 | I115: Безопасность жизнедеятельности | J115: 0.5 | K115: Зачет | L115: 2013/2014 учебный год 1 модуль | N115: 4.5 | O115: 1 | P115: 1 | Q115: 136392534 | R115: 2098 | T115: Журналистика | U115: =MATCH(D115,Отчет!$C:$C,0) -> 65
A116: 475563625 | B116: 9 | C116: БЖУР133 | D116: 475563521 | E116: Осипова | F116: Светлана | G116: Витальевна | H116: 1311219070 | I116: Безопасность жизнедеятельности | J116: 0.5 | K116: Зачет | L116: 2013/2014 учебный год 1 модуль | N116: 4.5 | O116: 1 | P116: 0 | Q116: 136392534 | R116: 2098 | T116: Журналистика | U116: =MATCH(D116,Отчет!$C:$C,0) -> 74
A117: 475563771 | B117: 8 | C117: БЖУР133 | D117: 475563678 | E117: Чехонадских | F117: Дарья | G117: Александровна | H117: 1301219104 | I117: Безопасность жизнедеятельности | J117: 0.5 | K117: Зачет | L117: 2013/2014 учебный год 1 модуль | N117: 4 | O117: 1 | P117: 1 | Q117: 136392534 | R117: 2098 | T117: Журналистика | U117: =MATCH(D117,Отчет!$C:$C,0) -> 60
A118: 475564455 | B118: 4 | C118: БЖУР134 | D118: 475564380 | E118: Алешкина | F118: Александрина | G118: Александровна | H118: 231210002 | I118: Безопасность жизнедеятельности | J118: 0.5 | K118: Зачет | L118: 2013/2014 учебный год 1 модуль | N118: 2 | O118: 1 | P118: 0 | Q118: 136392534 | R118: 2098 | T118: Журналистика | U118: =MATCH(D118,Отчет!$C:$C,0) -> 107
A119: 475502745 | B119: 9 | C119: БЖУР134 | D119: 475502663 | E119: Вагапова | F119: Юлия | G119: Рстамовна | H119: 1301219016 | I119: Безопасность жизнедеятельности | J119: 0.5 | K119: Зачет | L119: 2013/2014 учебный год 1 модуль | N119: 4.5 | O119: 1 | P119: 1 | Q119: 136392534 | R119: 2098 | T119: Журналистика | U119: =MATCH(D119,Отчет!$C:$C,0) -> 47
A120: 475502869 | B120: 9 | C120: БЖУР134 | D120: 475502790 | E120: Дергалов | F120: Руслан | G120: Сергеевич | H120: 1301219028 | I120: Безопасность жизнедеятельности | J120: 0.5 | K120: Зачет | L120: 2013/2014 учебный год 1 модуль | N120: 4.5 | O120: 1 | P120: 1 | Q120: 136392534 | R120: 2098 | T120: Журналистика | U120: =MATCH(D120,Отчет!$C:$C,0) -> 45
A121: 475503005 | B121: 10 | C121: БЖУР134 | D121: 475502924 | E121: Литвякова | F121: Евдокия | G121: Алексеевна | H121: 1301219050 | I121: Безопасность жизнедеятельности | J121: 0.5 | K121: Зачет | L121: 2013/2014 учебный год 1 модуль | N121: 5 | O121: 1 | P121: 1 | Q121: 136392534 | R121: 2098 | T121: Журналистика | U121: =MATCH(D121,Отчет!$C:$C,0) -> 30
A122: 475503138 | B122: 9 | C122: БЖУР134 | D122: 475503059 | E122: Маркова | F122: Кристина | G122: Алексеевна | H122: 1301219058 | I122: Безопасность жизнедеятельности | J122: 0.5 | K122: Зачет | L122: 2013/2014 учебный год 1 модуль | N122: 4.5 | O122: 1 | P122: 1 | Q122: 136392534 | R122: 2098 | T122: Журналистика | U122: =MATCH(D122,Отчет!$C:$C,0) -> 85
A123: 475501709 | B123: 8 | C123: БЖУР133 | D123: 475501641 | E123: Стрельцова | F123: Наталья | G123: Сергеевна | H123: 1301219089 | I123: Безопасность жизнедеятельности | J123: 0.5 | K123: Зачет | L123: 2013/2014 учебный год 1 модуль | N123: 4 | O123: 1 | P123: 1 | Q123: 136392534 | R123: 2098 | T123: Журналистика | U123: =MATCH(D123,Отчет!$C:$C,0) -> 55
A124: 475501856 | B124: 10 | C124: БЖУР133 | D124: 475501776 | E124: Чернова | F124: Кристина | G124: Валериевна | H124: 1301219102 | I124: Безопасность жизнедеятельности | J124: 0.5 | K124: Зачет | L124: 2013/2014 учебный год 1 модуль | N124: 5 | O124: 1 | P124: 1 | Q124: 136392534 | R124: 2098 | T124: Журналистика | U124: =MATCH(D124,Отчет!$C:$C,0) -> 17
A125: 475501996 | B125: 9 | C125: БЖУР133 | D125: 475501916 | E125: Чернышева | F125: Евгения | G125: Эдуардовна | H125: 1301219103 | I125: Безопасность жизнедеятельности | J125: 0.5 | K125: Зачет | L125: 2013/2014 учебный год 1 модуль | N125: 4.5 | O125: 1 | P125: 1 | Q125: 136392534 | R125: 2098 | T125: Журналистика | U125: =MATCH(D125,Отчет!$C:$C,0) -> 19
A126: 475501165 | B126: 8 | C126: БЖУР133 | D126: 475501085 | E126: Кокшарова | F126: Александра | G126: Игоревна | H126: 1301219041 | I126: Безопасность жизнедеятельности | J126: 0.5 | K126: Зачет | L126: 2013/2014 учебный год 1 модуль | N126: 4 | O126: 1 | P126: 1 | Q126: 136392534 | R126: 2098 | T126: Журналистика | U126: =MATCH(D126,Отчет!$C:$C,0) -> 57
A127: 475501323 | B127: 9 | C127: БЖУР133 | D127: 475501239 | E127: Липчанская | F127: Анастасия | G127: Алексеевна | H127: 1301219049 | I127: Безопасность жизнедеятельности | J127: 0.5 | K127: Зачет | L127: 2013/2014 учебный год 1 модуль | N127: 4.5 | O127: 1 | P127: 1 | Q127: 136392534 | R127: 2098 | T127: Журналистика | U127: =MATCH(D127,Отчет!$C:$C,0) -> 29
A128: 475501465 | B128: 9 | C128: БЖУР133 | D128: 475501379 | E128: Пятибратова | F128: Екатерина | G128: Васильевна | H128: 1301219077 | I128: Безопасность жизнедеятельности | J128: 0.5 | K128: Зачет | L128: 2013/2014 учебный год 1 модуль | N128: 4.5 | O128: 1 | P128: 1 | Q128: 136392534 | R128: 2098 | T128: Журналистика | U128: =MATCH(D128,Отчет!$C:$C,0) -> 71
A129: 475501594 | B129: 9 | C129: БЖУР133 | D129: 475501513 | E129: Рублева | F129: Милена | G129: Валерьевна | H129: 1301219080 | I129: Безопасность жизнедеятельности | J129: 0.5 | K129: Зачет | L129: 2013/2014 учебный год 1 модуль | N129: 4.5 | O129: 1 | P129: 1 | Q129: 136392534 | R129: 2098 | T129: Журналистика | U129: =MATCH(D129,Отчет!$C:$C,0) -> 21
A130: 475500721 | B130: 8 | C130: БЖУР133 | D130: 475500628 | E130: Головина | F130: Евгения | G130: Павловна | H130: 1301219023 | I130: Безопасность жизнедеятельности | J130: 0.5 | K130: Зачет | L130: 2013/2014 учебный год 1 модуль | N130: 4 | O130: 1 | P130: 1 | Q130: 136392534 | R130: 2098 | T130: Журналистика | U130: =MATCH(D130,Отчет!$C:$C,0) -> 78
A131: 475500883 | B131: 10 | C131: БЖУР133 | D131: 475500772 | E131: Дмитриева | F131: Екатерина | G131: Александровна | H131: 1301219030 | I131: Безопасность жизнедеятельности | J131: 0.5 | K131: Зачет | L131: 2013/2014 учебный год 1 модуль | N131: 5 | O131: 1 | P131: 1 | Q131: 136392534 | R131: 2098 | T131: Журналистика | U131: =MATCH(D131,Отчет!$C:$C,0) -> 28
A132: 481504537 | B132: 8 | C132: БЖУР134 | D132: 481504458 | E132: Королева | F132: Ольга | G132: Викторовна | H132: 1311219044 | I132: Безопасность жизнедеятельности | J132: 0.5 | K132: Зачет | L132: 2013/2014 учебный год 1 модуль | N132: 4 | O132: 1 | P132: 0 | Q132: 136392534 | R132: 2098 | T132: Журналистика | U132: =MATCH(D132,Отчет!$C:$C,0) -> 12
A133: 481501643 | B133: 9 | C133: БЖУР133 | D133: 481501546 | E133: Атасунцев | F133: Александр | G133: Григорьевич | H133: 1311219004 | I133: Безопасность жизнедеятельности | J133: 0.5 | K133: Зачет | L133: 2013/2014 учебный год 1 модуль | N133: 4.5 | O133: 1 | P133: 0 | Q133: 136392534 | R133: 2098 | T133: Журналистика | U133: =MATCH(D133,Отчет!$C:$C,0) -> 51
A134: 481501927 | B134: 8 | C134: БЖУР133 | D134: 481501825 | E134: Лымарева | F134: Мария | G134: Андреевна | H134: 1311219052 | I134: Безопасность жизнедеятельности | J134: 0.5 | K134: Зачет | L134: 2013/2014 учебный год 1 модуль | N134: 4 | O134: 1 | P134: 0 | Q134: 136392534 | R134: 2098 | T134: Журналистика | U134: =MATCH(D134,Отчет!$C:$C,0) -> 102
A135: 481502064 | B135: 9 | C135: БЖУР133 | D135: 481501975 | E135: Молоствова | F135: Анна | G135: Александровна | H135: 1311219061 | I135: Безопасность жизнедеятельности | J135: 0.5 | K135: Зачет | L135: 2013/2014 учебный год 1 модуль | N135: 4.5 | O135: 1 | P135: 0 | Q135: 136392534 | R135: 2098 | T135: Журналистика | U135: =MATCH(D135,Отчет!$C:$C,0) -> 26
A136: 481500621 | B136: 9 | C136: БЖУР132 | D136: 481500535 | E136: Правдюк | F136: Анна | G136: Сергеевна | H136: 1311219075 | I136: Безопасность жизнедеятельности | J136: 0.5 | K136: Зачет | L136: 2013/2014 учебный год 1 модуль | N136: 4.5 | O136: 1 | P136: 0 | Q136: 136392534 | R136: 2098 | T136: Журналистика | U136: =MATCH(D136,Отчет!$C:$C,0) -> 13
A137: 481500775 | B137: 9 | C137: БЖУР132 | D137: 481500688 | E137: Ревоненко | F137: Анна | G137: Николаевна | H137: 1311219078 | I137: Безопасность жизнедеятельности | J137: 0.5 | K137: Зачет | L137: 2013/2014 учебный год 1 модуль | N137: 4.5 | O137: 1 | P137: 0 | Q137: 136392534 | R137: 2098 | T137: Журналистика | U137: =MATCH(D137,Отчет!$C:$C,0) -> 23
A138: 481500944 | B138: 9 | C138: БЖУР132 | D138: 481500835 | E138: Цегалко | F138: Яна | G138: Николаевна | H138: 1311219101 | I138: Безопасность жизнедеятельности | J138: 0.5 | K138: Зачет | L138: 2013/2014 учебный год 1 модуль | N138: 4.5 | O138: 1 | P138: 0 | Q138: 136392534 | R138: 2098 | T138: Журналистика | U138: =MATCH(D138,Отчет!$C:$C,0) -> 37
A139: 481499784 | B139: 9 | C139: БЖУР132 | D139: 481499652 | E139: Королькова | F139: Елизавета | G139: Дмитриевна | H139: 1311219045 | I139: Безопасность жизнедеятельности | J139: 0.5 | K139: Зачет | L139: 2013/2014 учебный год 1 модуль | N139: 4.5 | O139: 1 | P139: 0 | Q139: 136392534 | R139: 2098 | T139: Журналистика | U139: =MATCH(D139,Отчет!$C:$C,0) -> 33
A140: 481500166 | B140: 5 | C140: БЖУР132 | D140: 481500039 | E140: Лебедева | F140: Ксения | G140: Кирилловна | H140: 1311219048 | I140: Безопасность жизнедеятельности | J140: 0.5 | K140: Зачет | L140: 2013/2014 учебный год 1 модуль | N140: 2.5 | O140: 1 | P140: 0 | Q140: 136392534 | R140: 2098 | T140: Журналистика | U140: =MATCH(D140,Отчет!$C:$C,0) -> 31
A141: 481500335 | B141: 5 | C141: БЖУР132 | D141: 481500235 | E141: Немченко | F141: Илья | G141: Михайлович | H141: 1311219066 | I141: Безопасность жизнедеятельности | J141: 0.5 | K141: Зачет | L141: 2013/2014 учебный год 1 модуль | N141: 2.5 | O141: 1 | P141: 0 | Q141: 136392534 | R141: 2098 | T141: Журналистика | U141: =MATCH(D141,Отчет!$C:$C,0) -> 98
A142: 481500483 | B142: 9 | C142: БЖУР132 | D142: 481500392 | E142: Павлова | F142: Алиса | G142: Павловна | H142: 1311219071 | I142: Безопасность жизнедеятельности | J142: 0.5 | K142: Зачет | L142: 2013/2014 учебный год 1 модуль | N142: 4.5 | O142: 1 | P142: 0 | Q142: 136392534 | R142: 2098 | T142: Журналистика | U142: =MATCH(D142,Отчет!$C:$C,0) -> 93
A143: 481498999 | B143: 6 | C143: БЖУР132 | D143: 481498934 | E143: Глазунов | F143: Никита | G143: Сергеевич | H143: 116-24/12-036 | I143: Безопасность жизнедеятельности | J143: 0.5 | K143: Зачет | L143: 2013/2014 учебный год 1 модуль | N143: 3 | O143: 1 | P143: 0 | Q143: 136392534 | R143: 2098 | S143: ikPassed | T143: Журналистика | U143: =MATCH(D143,Отчет!$C:$C,0) -> 109
A144: 481499124 | B144: 9 | C144: БЖУР132 | D144: 481499019 | E144: Голованов | F144: Сергей | G144: Сергеевич | H144: 1311219022 | I144: Безопасность жизнедеятельности | J144: 0.5 | K144: Зачет | L144: 2013/2014 учебный год 1 модуль | N144: 4.5 | O144: 1 | P144: 0 | Q144: 136392534 | R144: 2098 | T144: Журналистика | U144: =MATCH(D144,Отчет!$C:$C,0) -> 76
A145: 481499605 | B145: 5 | C145: БЖУР132 | D145: 481499520 | E145: Королева | F145: Виолетта | G145: Николаевна | H145: 1311219043 | I145: Безопасность жизнедеятельности | J145: 0.5 | K145: Зачет | L145: 2013/2014 учебный год 1 модуль | N145: 2.5 | O145: 1 | P145: 0 | Q145: 136392534 | R145: 2098 | T145: Журналистика | U145: =MATCH(D145,Отчет!$C:$C,0) -> 61
A146: 481497048 | B146: 9 | C146: БЖУР131 | D146: 481496924 | E146: Зубкевич | F146: Андрей | G146: Вадимович | H146: 1311219037 | I146: Безопасность жизнедеятельности | J146: 0.5 | K146: Зачет | L146: 2013/2014 учебный год 1 модуль | N146: 4.5 | O146: 1 | P146: 0 | Q146: 136392534 | R146: 2098 | T146: Журналистика | U146: =MATCH(D146,Отчет!$C:$C,0) -> 97
A147: 481497328 | B147: 10 | C147: БЖУР131 | D147: 481497225 | E147: Морозова | F147: Николь | G147: Дмитриевна | H147: 1311219062 | I147: Безопасность жизнедеятельности | J147: 0.5 | K147: Зачет | L147: 2013/2014 учебный год 1 модуль | N147: 5 | O147: 1 | P147: 0 | Q147: 136392534 | R147: 2098 | T147: Журналистика | U147: =MATCH(D147,Отчет!$C:$C,0) -> 15
A148: 481497439 | B148: 9 | C148: БЖУР131 | D148: 481497357 | E148: Муратова | F148: Анастасия | G148: Александровна | H148: 1311219063 | I148: Безопасность жизнедеятельности | J148: 0.5 | K148: Зачет | L148: 2013/2014 учебный год 1 модуль | N148: 4.5 | O148: 1 | P148: 0 | Q148: 136392534 | R148: 2098 | T148: Журналистика | U148: =MATCH(D148,Отчет!$C:$C,0) -> 86
A149: 481497569 | B149: 9 | C149: БЖУР131 | D149: 481497484 | E149: Нещадимова | F149: Дарья | G149: Викторовна | H149: 1311219067 | I149: Безопасность жизнедеятельности | J149: 0.5 | K149: Зачет | L149: 2013/2014 учебный год 1 модуль | N149: 4.5 | O149: 1 | P149: 0 | Q149: 136392534 | R149: 2098 | T149: Журналистика | U149: =MATCH(D149,Отчет!$C:$C,0) -> 32
A150: 475498733 | B150: 9 | C150: БЖУР132 | D150: 475498638 | E150: Огурцова | F150: Евгения | G150: Алексеевна | H150: 1301219069 | I150: Безопасность жизнедеятельности | J150: 0.5 | K150: Зачет | L150: 2013/2014 учебный год 1 модуль | N150: 4.5 | O150: 1 | P150: 1 | Q150: 136392534 | R150: 2098 | T150: Журналистика | U150: =MATCH(D150,Отчет!$C:$C,0) -> 36
A151: 474332710 | B151: 9 | C151: БЖУР131 | D151: 474332631 | E151: Астапенко | F151: Ольга | G151: Юрьевна | H151: 1301219003 | I151: Безопасность жизнедеятельности | J151: 0.5 | K151: Зачет | L151: 2013/2014 учебный год 1 модуль | N151: 4.5 | O151: 1 | P151: 1 | Q151: 136392534 | R151: 2098 | T151: Журналистика | U151: =MATCH(D151,Отчет!$C:$C,0) -> 54
A152: 481496747 | B152: 8 | C152: БЖУР131 | D152: 481496658 | E152: Афанасьева | F152: Татьяна | G152: Валерьевна | H152: 1311219005 | I152: Безопасность жизнедеятельности | J152: 0.5 | K152: Зачет | L152: 2013/2014 учебный год 1 модуль | N152: 4 | O152: 1 | P152: 0 | Q152: 136392534 | R152: 2098 | T152: Журналистика | U152: =MATCH(D152,Отчет!$C:$C,0) -> 43
A153: 481496874 | B153: 9 | C153: БЖУР131 | D153: 481496795 | E153: Ероносов | F153: Александр | G153: Эдуардович | H153: 1311219034 | I153: Безопасность жизнедеятельности | J153: 0.5 | K153: Зачет | L153: 2013/2014 учебный год 1 модуль | N153: 4.5 | O153: 1 | P153: 0 | Q153: 136392534 | R153: 2098 | T153: Журналистика | U153: =MATCH(D153,Отчет!$C:$C,0) -> 59
A154: 475497944 | B154: 9 | C154: БЖУР131 | D154: 475497867 | E154: Яковец | F154: Елизавета | G154: Николаевна | H154: 1301219107 | I154: Безопасность жизнедеятельности | J154: 0.5 | K154: Зачет | L154: 2013/2014 учебный год 1 модуль | N154: 4.5 | O154: 1 | P154: 1 | Q154: 136392534 | R154: 2098 | T154: Журналистика | U154: =MATCH(D154,Отчет!$C:$C,0) -> 34
A155: 475498283 | B155: 9 | C155: БЖУР132 | D155: 475498195 | E155: Булатова | F155: Катерина | G155: Николаевна | H155: 1301219012 | I155: Безопасность жизнедеятельности | J155: 0.5 | K155: Зачет | L155: 2013/2014 учебный год 1 модуль | N155: 4.5 | O155: 1 | P155: 1 | Q155: 136392534 | R155: 2098 | T155: Журналистика | U155: =MATCH(D155,Отчет!$C:$C,0) -> 22
A156: 475498431 | B156: 10 | C156: БЖУР132 | D156: 475498343 | E156: Дмитриева | F156: Ольга | G156: Олеговна | H156: 1301219031 | I156: Безопасность жизнедеятельности | J156: 0.5 | K156: Зачет | L156: 2013/2014 учебный год 1 модуль | N156: 5 | O156: 1 | P156: 1 | Q156: 136392534 | R156: 2098 | T156: Журналистика | U156: =MATCH(D156,Отчет!$C:$C,0) -> 56
A157: 475497318 | B157: 9 | C157: БЖУР131 | D157: 475497229 | E157: Жвик | F157: Анастасия | G157: Николаевна | H157: 1301219110 | I157: Безопасность жизнедеятельности | J157: 0.5 | K157: Зачет | L157: 2013/2014 учебный год 1 модуль | N157: 4.5 | O157: 1 | P157: 1 | Q157: 136392534 | R157: 2098 | T157: Журналистика | U157: =MATCH(D157,Отчет!$C:$C,0) -> 48
A158: 475497556 | B158: 9 | C158: БЖУР131 | D158: 475497479 | E158: Николаева | F158: Мария | G158: Дмитриевна | H158: 1301219068 | I158: Безопасность жизнедеятельности | J158: 0.5 | K158: Зачет | L158: 2013/2014 учебный год 1 модуль | N158: 4.5 | O158: 1 | P158: 1 | Q158: 136392534 | R158: 2098 | T158: Журналистика | U158: =MATCH(D158,Отчет!$C:$C,0) -> 46
A159: 475497699 | B159: 10 | C159: БЖУР131 | D159: 475497611 | E159: Ставрианиди | F159: Анна | G159: Георгиевна | H159: 1301219087 | I159: Безопасность жизнедеятельности | J159: 0.5 | K159: Зачет | L159: 2013/2014 учебный год 1 модуль | N159: 5 | O159: 1 | P159: 1 | Q159: 136392534 | R159: 2098 | T159: Журналистика | U159: =MATCH(D159,Отчет!$C:$C,0) -> 41
A160: 475497820 | B160: 9 | C160: БЖУР131 | D160: 475497743 | E160: Тищенко | F160: Виктория | G160: Андреевна | H160: 1301219093 | I160: Безопасность жизнедеятельности | J160: 0.5 | K160: Зачет | L160: 2013/2014 учебный год 1 модуль | N160: 4.5 | O160: 1 | P160: 1 | Q160: 136392534 | R160: 2098 | T160: Журналистика | U160: =MATCH(D160,Отчет!$C:$C,0) -> 50
A161: 475496368 | B161: 9 | C161: БЖУР131 | D161: 475496297 | E161: Голубева | F161: Анастасия | G161: Павловна | H161: 1301219024 | I161: Безопасность жизнедеятельности | J161: 0.5 | K161: Зачет | L161: 2013/2014 учебный год 1 модуль | N161: 4.5 | O161: 1 | P161: 1 | Q161: 136392534 | R161: 2098 | T161: Журналистика | U161: =MATCH(D161,Отчет!$C:$C,0) -> 70
A162: 475497051 | B162: 10 | C162: БЖУР131 | D162: 475496974 | E162: Джгаркава | F162: Нино | G162: Звиадиевна | H162: 1301219029 | I162: Безопасность жизнедеятельности | J162: 0.5 | K162: Зачет | L162: 2013/2014 учебный год 1 модуль | N162: 5 | O162: 1 | P162: 1 | Q162: 136392534 | R162: 2098 | T162: Журналистика | U162: =MATCH(D162,Отчет!$C:$C,0) -> 100
A163: 475497177 | B163: 9 | C163: БЖУР131 | D163: 475497099 | E163: Дымчишина | F163: Александра | G163: Юрьевна | H163: 1301219032 | I163: Безопасность жизнедеятельности | J163: 0.5 | K163: Зачет | L163: 2013/2014 учебный год 1 модуль | N163: 4.5 | O163: 1 | P163: 1 | Q163: 136392534 | R163: 2098 | T163: Журналистика | U163: =MATCH(D163,Отчет!$C:$C,0) -> 53
A164: 475501020 | B164: 9 | C164: БЖУР133 | D164: 475500939 | E164: Еремина | F164: Анастасия | G164: Алексеевна | H164: 1301219033 | I164: Безопасность жизнедеятельности | J164: 0.5 | K164: Зачет | L164: 2013/2014 учебный год 1 модуль | N164: 4.5 | O164: 1 | P164: 1 | Q164: 136392534 | R164: 2098 | T164: Журналистика | U164: =MATCH(D164,Отчет!$C:$C,0) -> 82
A165: 475499139 | B165: 9 | C165: БЖУР132 | D165: 475499056 | E165: Федорова | F165: Анастасия | G165: Александровна | H165: 1301219096 | I165: Безопасность жизнедеятельности | J165: 0.5 | K165: Зачет | L165: 2013/2014 учебный год 1 модуль | N165: 4.5 | O165: 1 | P165: 1 | Q165: 136392534 | R165: 2098 | T165: Журналистика | U165: =MATCH(D165,Отчет!$C:$C,0) -> 27
A166: 475499230 | B166: 9 | C166: БЖУР132 | D166: 475499184 | E166: Устюжанинова | F166: Анна | G166: Александровна | H166: 1301219095 | I166: Безопасность жизнедеятельности | J166: 0.5 | K166: Зачет | L166: 2013/2014 учебный год 1 модуль | N166: 4.5 | O166: 1 | P166: 1 | Q166: 136392534 | R166: 2098 | T166: Журналистика | U166: =MATCH(D166,Отчет!$C:$C,0) -> 89
A167: 475499401 | B167: 10 | C167: БЖУР132 | D167: 475499320 | E167: Якубович | F167: Анастасия | G167: Александровна | H167: 1301219108 | I167: Безопасность жизнедеятельности | J167: 0.5 | K167: Зачет | L167: 2013/2014 учебный год 1 модуль | N167: 5 | O167: 1 | P167: 1 | Q167: 136392534 | R167: 2098 | T167: Журналистика | U167: =MATCH(D167,Отчет!$C:$C,0) -> 49
A168: 475500565 | B168: 9 | C168: БЖУР133 | D168: 475500480 | E168: Вильшанская | F168: Елена | G168: Андреевна | H168: 1301219017 | I168: Безопасность жизнедеятельности | J168: 0.5 | K168: Зачет | L168: 2013/2014 учебный год 1 модуль | N168: 4.5 | O168: 1 | P168: 1 | Q168: 136392534 | R168: 2098 | T168: Журналистика | U168: =MATCH(D168,Отчет!$C:$C,0) -> 20
A169: 475563417 | B169: 8 | C169: БЖУР133 | D169: 475563331 | E169: Мусина | F169: Юлия | G169: Маратовна | H169: 1301219064 | I169: Безопасность жизнедеятельности | J169: 0.5 | K169: Зачет | L169: 2013/2014 учебный год 1 модуль | N169: 4 | O169: 1 | P169: 1 | Q169: 136392534 | R169: 2098 | T169: Журналистика | U169: =MATCH(D169,Отчет!$C:$C,0) -> 35
A170: 475498856 | B170: 9 | C170: БЖУР132 | D170: 475498778 | E170: Рудакова | F170: Юлия | G170: Владиславовна | H170: 1301219081 | I170: Безопасность жизнедеятельности | J170: 0.5 | K170: Зачет | L170: 2013/2014 учебный год 1 модуль | N170: 4.5 | O170: 1 | P170: 1 | Q170: 136392534 | R170: 2098 | T170: Журналистика | U170: =MATCH(D170,Отчет!$C:$C,0) -> 24
A171: 475498994 | B171: 10 | C171: БЖУР132 | D171: 475498901 | E171: Скворцова | F171: Дарья | G171: Андреевна | H171: 1301219086 | I171: Безопасность жизнедеятельности | J171: 0.5 | K171: Зачет | L171: 2013/2014 учебный год 1 модуль | N171: 5 | O171: 1 | P171: 1 | Q171: 136392534 | R171: 2098 | T171: Журналистика | U171: =MATCH(D171,Отчет!$C:$C,0) -> 18
A172: 475562709 | B172: 9 | C172: БЖУР133 | D172: 475562579 | E172: Герасимова | F172: Мария | G172: Александровна | H172: 1311219020 | I172: Безопасность жизнедеятельности | J172: 0.5 | K172: Зачет | L172: 2013/2014 учебный год 1 модуль | N172: 4.5 | O172: 1 | P172: 0 | Q172: 136392534 | R172: 2098 | T172: Журналистика | U172: =MATCH(D172,Отчет!$C:$C,0) -> 63
A173: 475562977 | B173: 10 | C173: БЖУР133 | D173: 475562897 | E173: Кистерев | F173: Алексей | G173: Валерьевич | H173: 12701089 | I173: Безопасность жизнедеятельности | J173: 0.5 | K173: Зачет | L173: 2013/2014 учебный год 1 модуль | N173: 5 | O173: 1 | P173: 0 | Q173: 136392534 | R173: 2098 | S173: ikPassed | T173: Журналистика | U173: =MATCH(D173,Отчет!$C:$C,0) -> 95
A174: 475563160 | B174: 8 | C174: БЖУР133 | D174: 475563046 | E174: Люля | F174: Арина | G174: Артемовна | H174: 1311219053 | I174: Безопасность жизнедеятельности | J174: 0.5 | K174: Зачет | L174: 2013/2014 учебный год 1 модуль | N174: 4 | O174: 1 | P174: 0 | Q174: 136392534 | R174: 2098 | T174: Журналистика | U174: =MATCH(D174,Отчет!$C:$C,0) -> 92
A175: 475563283 | B175: 9 | C175: БЖУР133 | D175: 475563206 | E175: Малышева | F175: Ирина | G175: Александровна | H175: 1301219056 | I175: Безопасность жизнедеятельности | J175: 0.5 | K175: Зачет | L175: 2013/2014 учебный год 1 модуль | N175: 4.5 | O175: 1 | P175: 1 | Q175: 136392534 | R175: 2098 | T175: Журналистика | U175: =MATCH(D175,Отчет!$C:$C,0) -> 62
A176: 475561540 | B176: 6 | C176: БЖУР132 | D176: 475561427 | E176: Гранкова | F176: Ксения | G176: Сергеевна | H176: 1311219027 | I176: Безопасность жизнедеятельности | J176: 0.5 | K176: Зачет | L176: 2013/2014 учебный год 1 модуль | N176: 3 | O176: 1 | P176: 0 | Q176: 136392534 | R176: 2098 | T176: Журналистика | U176: =MATCH(D176,Отчет!$C:$C,0) -> 105
A177: 475561685 | B177: 9 | C177: БЖУР132 | D177: 475561559 | E177: Шевелёва | F177: Кристина | G177: Дмитриевна | H177: 1311219106 | I177: Безопасность жизнедеятельности | J177: 0.5 | K177: Зачет | L177: 2013/2014 учебный год 1 модуль | N177: 4.5 | O177: 1 | P177: 0 | Q177: 136392534 | R177: 2098 | T177: Журналистика | U177: =MATCH(D177,Отчет!$C:$C,0) -> 79
A178: 475562339 | B178: 8 | C178: БЖУР133 | D178: 475562216 | E178: Аммосова | F178: Людмила | G178: Михайловна | H178: 1311219002 | I178: Безопасность жизнедеятельности | J178: 0.5 | K178: Зачет | L178: 2013/2014 учебный год 1 модуль | N178: 4 | O178: 1 | P178: 0 | Q178: 136392534 | R178: 2098 | T178: Журналистика | U178: =MATCH(D178,Отчет!$C:$C,0) -> 38
A179: 475562523 | B179: 10 | C179: БЖУР133 | D179: 475562419 | E179: Афян | F179: Мария | G179: Геннадьевна | H179: 1311219006 | I179: Безопасность жизнедеятельности | J179: 0.5 | K179: Зачет | L179: 2013/2014 учебный год 1 модуль | N179: 5 | O179: 1 | P179: 0 | Q179: 136392534 | R179: 2098 | T179: Журналистика | U179: =MATCH(D179,Отчет!$C:$C,0) -> 83
A180: 475561000 | B180: 5 | C180: БЖУР132 | D180: 475560846 | E180: Винокур | F180: Дана | G180: Витальевна | H180: 1311219018 | I180: Безопасность жизнедеятельности | J180: 0.5 | K180: Зачет | L180: 2013/2014 учебный год 1 модуль | N180: 2.5 | O180: 1 | P180: 0 | Q180: 136392534 | R180: 2098 | T180: Журналистика | U180: =MATCH(D180,Отчет!$C:$C,0) -> 87
A181: 475561162 | B181: 9 | C181: БЖУР132 | D181: 475561061 | E181: Короткова | F181: Екатерина | G181: Владимировна | H181: 1311219019 | I181: Безопасность жизнедеятельности | J181: 0.5 | K181: Зачет | L181: 2013/2014 учебный год 1 модуль | N181: 4.5 | O181: 1 | P181: 0 | Q181: 136392534 | R181: 2098 | T181: Журналистика | U181: =MATCH(D181,Отчет!$C:$C,0) -> 66
A182: 481505290 | B182: 9 | C182: БЖУР134 | D182: 481505154 | E182: Швецова | F182: Екатерина | G182: Константиновна | H182: 1311219105 | I182: Безопасность жизнедеятельности | J182: 0.5 | K182: Зачет | L182: 2013/2014 учебный год 1 модуль | N182: 4.5 | O182: 1 | P182: 0 | Q182: 136392534 | R182: 2098 | T182: Журналистика | U182: =MATCH(D182,Отчет!$C:$C,0) -> 75
A183: 475560443 | B183: 8 | C183: БЖУР132 | D183: 475560308 | E183: Бидзионашвили | F183: Кетеван | G183: - | H183: 1301219111 | I183: Безопасность жизнедеятельности | J183: 0.5 | K183: Зачет | L183: 2013/2014 учебный год 1 модуль | N183: 4 | O183: 1 | P183: 1 | Q183: 136392534 | R183: 2098 | T183: Журналистика | U183: =MATCH(D183,Отчет!$C:$C,0) -> 68
A184: 475560578 | B184: 8 | C184: БЖУР132 | D184: 475560500 | E184: Буримова | F184: Александра | G184: Сергеевна | H184: 1311219014 | I184: Безопасность жизнедеятельности | J184: 0.5 | K184: Зачет | L184: 2013/2014 учебный год 1 модуль | N184: 4 | O184: 1 | P184: 0 | Q184: 136392534 | R184: 2098 | T184: Журналистика | U184: =MATCH(D184,Отчет!$C:$C,0) -> 99
A185: 475560772 | B185: 9 | C185: БЖУР132 | D185: 475560670 | E185: Бурцева | F185: Анастасия | G185: Юрьевна | H185: 1311219015 | I185: Безопасность жизнедеятельности | J185: 0.5 | K185: Зачет | L185: 2013/2014 учебный год 1 модуль | N185: 4.5 | O185: 1 | P185: 0 | Q185: 136392534 | R185: 2098 | T185: Журналистика | U185: =MATCH(D185,Отчет!$C:$C,0) -> 96
A186: 475558439 | B186: 8 | C186: БЖУР131 | D186: 475558344 | E186: Маммаева | F186: Фарида | G186: Сулеймановна | H186: 1301219057 | I186: Безопасность жизнедеятельности | J186: 0.5 | K186: Зачет | L186: 2013/2014 учебный год 1 модуль | N186: 4 | O186: 1 | P186: 1 | Q186: 136392534 | R186: 2098 | T186: Журналистика | U186: =MATCH(D186,Отчет!$C:$C,0) -> 104
A187: 475558800 | B187: 9 | C187: БЖУР131 | D187: 475558722 | E187: Пржевальская | F187: Анастасия | G187: Всеволодовна | H187: 1301219076 | I187: Безопасность жизнедеятельности | J187: 0.5 | K187: Зачет | L187: 2013/2014 учебный год 1 модуль | N187: 4.5 | O187: 1 | P187: 1 | Q187: 136392534 | R187: 2098 | T187: Журналистика | U187: =MATCH(D187,Отчет!$C:$C,0) -> 67
A188: 481505125 | B188: 9 | C188: БЖУР134 | D188: 481505031 | E188: Савина | F188: София | G188: Леонидовна | H188: 1311219083 | I188: Безопасность жизнедеятельности | J188: 0.5 | K188: Зачет | L188: 2013/2014 учебный год 1 модуль | N188: 4.5 | O188: 1 | P188: 0 | Q188: 136392534 | R188: 2098 | T188: Журналистика | U188: =MATCH(D188,Отчет!$C:$C,0) -> 14
A189: 481504691 | B189: 8 | C189: БЖУР134 | D189: 481504593 | E189: Круглова | F189: Ирина | G189: Викторовна | H189: 1311219047 | I189: Безопасность жизнедеятельности | J189: 0.5 | K189: Зачет | L189: 2013/2014 учебный год 1 модуль | N189: 4 | O189: 1 | P189: 0 | Q189: 136392534 | R189: 2098 | T189: Журналистика | U189: =MATCH(D189,Отчет!$C:$C,0) -> 42
A190: 481504987 | B190: 9 | C190: БЖУР134 | D190: 481504898 | E190: Русских | F190: Арина | G190: Сергеевна | H190: 1311219082 | I190: Безопасность жизнедеятельности | J190: 0.5 | K190: Зачет | L190: 2013/2014 учебный год 1 модуль | N190: 4.5 | O190: 1 | P190: 0 | Q190: 136392534 | R190: 2098 | T190: Журналистика | U190: =MATCH(D190,Отчет!$C:$C,0) -> 64
A191: 475557833 | B191: 4 | C191: БЖУР131 | D191: 475557752 | E191: Аветисян | F191: Виолетта | G191: Александровна | H191: 1311219001 | I191: Безопасность жизнедеятельности | J191: 0.5 | K191: Зачет | L191: 2013/2014 учебный год 1 модуль | N191: 2 | O191: 1 | P191: 0 | Q191: 136392534 | R191: 2098 | T191: Журналистика | U191: =MATCH(D191,Отчет!$C:$C,0) -> 84
A192: 475557970 | B192: 8 | C192: БЖУР131 | D192: 475557886 | E192: Белобеева | F192: Ангелина | G192: Анатольевна | H192: 1311219008 | I192: Безопасность жизнедеятельности | J192: 0.5 | K192: Зачет | L192: 2013/2014 учебный год 1 модуль | N192: 4 | O192: 1 | P192: 0 | Q192: 136392534 | R192: 2098 | T192: Журналистика | U192: =MATCH(D192,Отчет!$C:$C,0) -> 103
A193: 481502202 | B193: 9 | C193: БЖУР133 | D193: 481502112 | E193: Сидоров | F193: Всеволод | G193: Дмитриевич | H193: 1311219085 | I193: Безопасность жизнедеятельности | J193: 0.5 | K193: Зачет | L193: 2013/2014 учебный год 1 модуль | N193: 4.5 | O193: 1 | P193: 0 | Q193: 136392534 | R193: 2098 | T193: Журналистика | U193: =MATCH(D193,Отчет!$C:$C,0) -> 40
A194: 481502346 | B194: 8 | C194: БЖУР133 | D194: 481502259 | E194: Титов | F194: Игорь | G194: Игоревич | H194: 1311219092 | I194: Безопасность жизнедеятельности | J194: 0.5 | K194: Зачет | L194: 2013/2014 учебный год 1 модуль | N194: 4 | O194: 1 | P194: 0 | Q194: 136392534 | R194: 2098 | T194: Журналистика | U194: =MATCH(D194,Отчет!$C:$C,0) -> 44
A195: 481504392 | B195: 8 | C195: БЖУР134 | D195: 481504306 | E195: Кокорева | F195: Мария | G195: Викторовна | H195: 1311219040 | I195: Безопасность жизнедеятельности | J195: 0.5 | K195: Зачет | L195: 2013/2014 учебный год 1 модуль | N195: 4 | O195: 1 | P195: 0 | Q195: 136392534 | R195: 2098 | T195: Журналистика | U195: =MATCH(D195,Отчет!$C:$C,0) -> 39
A196: 796966575 | B196: 4 | C196: БЖУР131 | D196: 796834861 | E196: Тесфайе | F196: Анна-Мария | G196: Синтайе | H196: 10701175 | I196: Иностранный язык (английский) | J196: 2 | K196: Экзамен | L196: 2013/2014 учебный год 2 модуль | N196: 8.88 | O196: 1 | P196: 0 | Q196: 136392534 | R196: 2098 | T196: Журналистика | U196: =MATCH(D196,Отчет!$C:$C,0) -> 108
A197: 771504515 | B197: 5 | C197: БЖУР131 | D197: 752764364 | E197: Масалова | F197: Анна | G197: Владиславовна | H197: 131232133 | I197: История | J197: 2.83 | K197: Экзамен | L197: 2013/2014 учебный год 2 модуль | N197: 9.8 | O197: 1 | P197: 0 | Q197: 136392534 | R197: 2098 | T197: Журналистика | U197: =MATCH(D197,Отчет!$C:$C,0) -> 101
A198: 796966584 | B198: 4 | C198: БЖУР131 | D198: 796834861 | E198: Тесфайе | F198: Анна-Мария | G198: Синтайе | H198: 10701175 | I198: Философия | J198: 3.5 | K198: Экзамен | L198: 2013/2014 учебный год 2 модуль | N198: 24 | O198: 1 | P198: 0 | Q198: 136392534 | R198: 2098 | T198: Журналистика | U198: =MATCH(D198,Отчет!$C:$C,0) -> 108
A199: 771504509 | B199: 7 | C199: БЖУР131 | D199: 752764364 | E199: Масалова | F199: Анна | G199: Владиславовна | H199: 131232133 | I199: Философия | J199: 5 | K199: Экзамен | L199: 2013/2014 учебный год 2 модуль | N199: 42 | O199: 1 | P199: 0 | Q199: 136392534 | R199: 2098 | T199: Журналистика | U199: =MATCH(D199,Отчет!$C:$C,0) -> 101
A200: 475562962 | B200: 5 | C200: БЖУР133 | D200: 475562897 | E200: Кистерев | F200: Алексей | G200: Валерьевич | H200: 12701089 | I200: Философия | J200: 6 | K200: Экзамен | L200: 2013/2014 учебный год 2 модуль | N200: 30 | O200: 1 | P200: 0 | Q200: 136392534 | R200: 2098 | S200: ikPlanned | T200: Журналистика | U200: =MATCH(D200,Отчет!$C:$C,0) -> 95
... 3673 more rows
